{"text_format":"1","workbook":"xlsx","n_sheets":27,"sheets":["Endringslogg","YM-matrise","Risikomatrise","Risikomatrise-gml","Hjelpetabell","Samsvarsevaluering","Vanlige samsvarsforpliktelser","Hjelpedok. for driftskontrakter","Hjelpedok. for dekkelegging","Hjelpedok. for bruvedlikehold","Eksempler Tiltaksoversikt","Beskrivelse av prosess","Avgrensning","Miljørett og veiledning","Beskr Støy og vibrasjon","Beskr Luftforurensing","Beskr Forurensing jord og vann","Beskr Landskapsbilde","Beskr Friluftsliv by- og bygd","Beskr Naturmangfold","Beskr Kulturarv","Beskr Klimagassut - energiforbr","Beskr Materialvalg - avfallshån","Beskr Naturressurser","Data","Innspill MiljøRisken","Data1"],"not_rendered":{"charts":0,"images":3,"macros":1,"external_links":0,"defined_names":3,"comments":6,"pivot_tables":0},"unopened":[],"bounds":{"document_bytes":16777216,"sheet_cells":100000,"rows_first":2000,"rows_last":500,"rows_between":2000,"halvings":0,"cell_chars":16384,"cell_head_chars":4096},"cells_cut":0,"cells_raw":0,"read":"whole","date_system":"1900"}

{"sheet":"Endringslogg","index":0,"n_rows":25,"n_cols":4,"rows_kept":25,"cut":false,"hidden":false,"merged":[[13,0,13,3],[6,1,6,3],[7,1,7,3],[8,0,10,3],[1,0,1,1],[2,0,2,1],[3,0,3,1],[4,1,4,3],[5,1,5,3]]}
[]
["Ansvarlig:",null,null,"Godkjent dato: "]
["Naomi Paulsen",null,null,"2023-03-30"]
["BEA00 Kontrakt og marked Utbygging"]
["Godkjent av","Dokumenttype:"]
[null,"Hjelpedokument"]
["        ","Dokumentkategori:"]
[null,"Annet - hjelpedokument"]
["Merknader:"]
[]
[]
[]
[]
["Endringslogg"]
["Versjon","Dato","Endring utført av","Beskrivelse av endring"]
["1.   ","2020-11-09","Naomi Paulsen","Overført til MKH"]
["2. ","2022-10-11","Naomi Paulsen","Tilpasset miljøstyringssystemet for UTB med testing av samsvarsevaluering, oppdatert regelverk i veledning, samt re-innført omtale vibrasjon i tråd med N500 under støy, kulturarv og naturressurser. Opprettet fane med endringslogg. Oppdatert YM-matrise i tråd med ELRAPP-veileder"]
[3,"2022-12-13","Naomi Paulsen","Lagt til ny fane \"Hjelpedokument for driftskontrakter\". Oppdaterte samsvarsforpliktelser.\nForbedret hjelpetekst."]
[3,"2022-12-13","Grete Sponga","Lagt til ny fane \"hjelpedokument for dekkelegging\" og \"hjelpedokument for bruvedlikehold\""]
[4,"2023-03-27","Naomi Paulsen","Rettet \"bug\" i hjelpedok. Filer"]
[5,"2023-03-30","Naomi Paulsen","Tatt bort nedtrekksmeny i kolonnen for miljøkrav/samsvarsforpliktelser i YM-matrisen. Redigert hjelpetekst for samme kolonne. Endret arkfanefarger. Lagt til manglende kolonner i fane \"hjelpedok. Bruvedlikehold."]
[6,"2023-03-30","Naomi Paulsen","Rettet link til utgått standard i fane \"Samsvarsevaluering\". Fra NS 8141:2001 til NS 8141:22"]
[7,"2024-01-09","Naomi Paulsen","Rettet opp feil i nedtrekksmeny og kolonne miljøkrav"]
[8,"2024-01-30","Naomi Paulsen","Lagt inn tekst om lysforurensning under fane naturmangfold og Friluftliv, by- og bygdeliv. Lagt til ark med revisjonslogg for at prosjektene skal kunne føre logg over endringer  av miljørisiko i prosjektgjennomføringen.\nLagt til nye vanlige samsvarsforpliktelser\nFane \"Eksempler Tiltaksoversikt\" er endret navn til Eksempler YM tiltak. Det er presisert at dette er historiske tiltak og at direkte kopiering av tiltakene ikke er anbefalt. Lagt inn nye eksempel for gytegrus og bruk av felte trær."]
[9,"2024-02-20","Naomi Paulsen","Lagt inn tekst under kulturarv, om at er viktig å være oppmerksom på at ikke informasjon om alle kjente kulturminner er tilgjengelig i databaser og det vil være behov for utsjekking mot kulturminnemyndighet. "]

{"sheet":"YM-matrise","index":1,"n_rows":34,"n_cols":21,"rows_kept":34,"cut":false,"hidden":false,"merged":[[3,1,3,2],[3,3,3,4],[3,5,3,10],[0,1,0,2],[0,3,0,4],[0,5,0,10],[1,1,1,2],[1,3,2,4],[1,5,2,10],[2,1,2,2]]}
["PROSJEKT: ",null,null,"FORMÅL:"]
["STED: ",null,null,"PROSJEKTINFORMASJON "]
["DATO: "]
["UTARBEIDET AV :",null,null,"GRUNNLAGSDATA:"]
[]
["Fagtema","Problemstilling","Vegelement","Profil-nummer fra-til","Miljøkrav (Samsvarsforpliktelse) og egne mål","Uønsket hendelse (UH)","Kons før tiltak","Sanns før tiltak","Kolonne1","Risiko før tiltak","Tiltak","Frist/ framdriftsplan","Ansvar","Kons etter tiltak","Sanns etter tiltak","Kolonne2","Risiko etter tiltak","Prosesskode","Tegningstype/-nummer","Virksomhet","Merknad"]
[null,null,null,null,null,null,null,null,{"$f":"IF(G7=1,\"1\",\"0\")+IF(G7=2,5,0)+IF(G7=3,10,0)+IF(G7=4,25,0)+IF(G7=5,75,0)","v":0},{"$f":"H7*I7","v":0},null,null,null,null,null,{"$f":"IF(N7=1,\"1\",\"0\")+IF(N7=2,5,0)+IF(N7=3,10,0)+IF(N7=4,25,0)+IF(N7=5,75,0)","v":0},{"$f":"O7*P7","v":0}]
[null,null,null,null,null,null,null,null,{"$f":"IF(G8=1,\"1\",\"0\")+IF(G8=2,5,0)+IF(G8=3,10,0)+IF(G8=4,25,0)+IF(G8=5,75,0)","v":0},{"$f":"H8*I8","v":0},null,null,null,null,null,{"$f":"IF(N8=1,\"1\",\"0\")+IF(N8=2,5,0)+IF(N8=3,10,0)+IF(N8=4,25,0)+IF(N8=5,75,0)","v":0},{"$f":"O8*P8","v":0}]
[null,null,null,null,null,null,null,null,{"$f":"IF(G9=1,\"1\",\"0\")+IF(G9=2,5,0)+IF(G9=3,10,0)+IF(G9=4,25,0)+IF(G9=5,75,0)","v":0},{"$f":"H9*I9","v":0},null,null,null,null,null,{"$f":"IF(N9=1,\"1\",\"0\")+IF(N9=2,5,0)+IF(N9=3,10,0)+IF(N9=4,25,0)+IF(N9=5,75,0)","v":0},{"$f":"O9*P9","v":0}]
[null,null,null,null,null,null,null,null,0,0,null,null,null,null,null,{"$f":"IF(N10=1,\"1\",\"0\")+IF(N10=2,5,0)+IF(N10=3,10,0)+IF(N10=4,25,0)+IF(N10=5,75,0)","v":0},0]
[null,null,null,null,null,null,null,null,{"$f":"IF(G11=1,\"1\",\"0\")+IF(G11=2,5,0)+IF(G11=3,10,0)+IF(G11=4,25,0)+IF(G11=5,75,0)","v":0},{"$f":"H11*I11","v":0},null,null,null,null,null,{"$f":"IF(N11=1,\"1\",\"0\")+IF(N11=2,5,0)+IF(N11=3,10,0)+IF(N11=4,25,0)+IF(N11=5,75,0)","v":0},{"$f":"O11*P11","v":0}]
[null,null,null,null,null,null,null,null,0,0,null,null,null,null,null,{"$f":"IF(N12=1,\"1\",\"0\")+IF(N12=2,5,0)+IF(N12=3,10,0)+IF(N12=4,25,0)+IF(N12=5,75,0)","v":0},0]
[null,null,null,null,null,null,null,null,{"$f":"IF(G13=1,\"1\",\"0\")+IF(G13=2,5,0)+IF(G13=3,10,0)+IF(G13=4,25,0)+IF(G13=5,75,0)","v":0},{"$f":"H13*I13","v":0},null,null,null,null,null,{"$f":"IF(N13=1,\"1\",\"0\")+IF(N13=2,5,0)+IF(N13=3,10,0)+IF(N13=4,25,0)+IF(N13=5,75,0)","v":0},{"$f":"O13*P13","v":0}]
[null,null,null,null,null,null,null,null,0,0,null,null,null,null,null,0,0]
[null,null,null,null,null,null,null,null,0,0,null,null,null,null,null,0,0]
[null,null,null,null,null,null,null,null,0,0,null,null,null,null,null,0,0]
[null,null,null,null,null,null,null,null,0,0,null,null,null,null,null,0,0]
[null,null,null,null,null,null,null,null,0,0,null,null,null,null,null,0,0]
[null,null,null,null,null,null,null,null,{"$f":"IF(G19=1,\"1\",\"0\")+IF(G19=2,5,0)+IF(G19=3,10,0)+IF(G19=4,25,0)+IF(G19=5,75,0)","v":0},{"$f":"H19*I19","v":0},null,null,null,null,null,{"$f":"IF(N19=1,\"1\",\"0\")+IF(N19=2,5,0)+IF(N19=3,10,0)+IF(N19=4,25,0)+IF(N19=5,75,0)","v":0},{"$f":"O19*P19","v":0}]
[null,null,null,null,null,null,null,null,0,0,null,null,null,null,null,0,0]
[null,null,null,null,null,null,null,null,{"$f":"IF(G21=1,\"1\",\"0\")+IF(G21=2,5,0)+IF(G21=3,10,0)+IF(G21=4,25,0)+IF(G21=5,75,0)","v":0},{"$f":"H21*I21","v":0},null,null,null,null,null,{"$f":"IF(N21=1,\"1\",\"0\")+IF(N21=2,5,0)+IF(N21=3,10,0)+IF(N21=4,25,0)+IF(N21=5,75,0)","v":0},{"$f":"O21*P21","v":0}]
[null,null,null,null,null,null,null,null,{"$f":"IF(G22=1,\"1\",\"0\")+IF(G22=2,5,0)+IF(G22=3,10,0)+IF(G22=4,25,0)+IF(G22=5,75,0)","v":0},{"$f":"H22*I22","v":0},null,null,null,null,null,{"$f":"IF(N22=1,\"1\",\"0\")+IF(N22=2,5,0)+IF(N22=3,10,0)+IF(N22=4,25,0)+IF(N22=5,75,0)","v":0},{"$f":"O22*P22","v":0}]
[null,null,null,null,null,null,null,null,0,0,null,null,null,null,null,0,0]
[null,null,null,null,null,null,null,null,0,0,null,null,null,null,null,0,0]
[null,null,null,null,null,null,null,null,{"$f":"IF(G25=1,\"1\",\"0\")+IF(G25=2,5,0)+IF(G25=3,10,0)+IF(G25=4,25,0)+IF(G25=5,75,0)","v":0},{"$f":"H25*I25","v":0},null,null,null,null,null,{"$f":"IF(N25=1,\"1\",\"0\")+IF(N25=2,5,0)+IF(N25=3,10,0)+IF(N25=4,25,0)+IF(N25=5,75,0)","v":0},{"$f":"O25*P25","v":0}]
[null,null,null,null,null,null,null,null,0,0,null,null,null,null,null,0,0]
[null,null,null,null,null,null,null,null,0,0,null,null,null,null,null,0,0]
[null,null,null,null,null,null,null,null,0,0,null,null,null,null,null,0,0]
[null,null,null,null,null,null,null,null,{"$f":"IF(G29=1,\"1\",\"0\")+IF(G29=2,5,0)+IF(G29=3,10,0)+IF(G29=4,25,0)+IF(G29=5,75,0)","v":0},{"$f":"H29*I29","v":0},null,null,null,null,null,0,0]
[null,null,null,null,null,null,null,null,null,0,null,null,null,null,null,null,0]
[null,null,null,null,null,null,null,null,0,0,null,null,null,null,null,{"$f":"IF(N31=1,\"1\",\"0\")+IF(N31=2,5,0)+IF(N31=3,10,0)+IF(N31=4,25,0)+IF(N31=5,75,0)","v":0},{"$f":"O31*P31","v":0}]
[null,null,null,null,null,null,null,null,0,0,null,null,null,null,null,0,0]
[null,null,null,null,null,null,null,null,0,0,null,null,null,null,null,0,0]
[null,null,null,null,null,null,null,null,{"$f":"IF(G34=1,\"1\",\"0\")+IF(G34=2,5,0)+IF(G34=3,10,0)+IF(G34=4,25,0)+IF(G34=5,75,0)","v":0},{"$f":"H34*I34","v":0},null,null,null,null,null,0,0]

{"sheet":"Risikomatrise","index":2,"n_rows":36,"n_cols":7,"rows_kept":36,"cut":false,"hidden":false,"merged":[[10,2,10,6],[12,6,14,6],[12,4,14,4],[21,4,23,4],[21,5,23,5],[18,4,20,4],[18,5,20,5],[12,5,14,5],[21,2,23,2],[21,3,23,3],[15,3,17,3],[12,1,14,1],[12,2,14,2],[12,3,14,3],[18,1,20,1],[18,2,20,2],[18,3,20,3],[29,0,29,4],[15,6,17,6],[18,6,20,6],[21,6,23,6],[24,6,26,6],[28,0,28,1],[24,1,26,1],[24,2,26,2],[24,3,26,3],[24,4,26,4],[15,4,17,4],[15,5,17,5],[24,5,26,5],[21,1,23,1],[15,1,17,1],[15,2,17,2]]}
[]
[]
[]
[]
[]
[]
[]
[]
[]
[]
[null,null,"S-verdier"]
["K-verdier",null,"S1=1","S2=2","S3=3","S4=4","S5=5"]
[null,"Svært alvorlige og langvarige miljøskader. Sterk ødeleggelse/påvirkning. Stort ukontrollert utslipp. Regionale og lokale konsekvenser med restaureringstid > 10 år",75,150,225,300,375]
["K5=75"]
[]
[null,"Betydelige og langvarige forringelser/påvirkninger/miljøskader. Stort utslipp med\nbehov for tiltak. Lokale konsekvenser med restaureringstid 3-10 år.",25,50,75,100,125]
["K4=25"]
[]
[null,"Alvorlige forringelser/påvirkninger/miljøskader. Forringelse/påvirkning registrerbar.\nModerate utslipp med behov for tiltak. Restaureringstid 1-3 år.",10,20,30,40,50]
["K3=10"]
[]
[null," Moderate miljøskader. Forringelse/påvirkning nesten ikke registrerbar. Mindre\nuønsket utslipp. Registrerbar skade iresipient. Restaureringstid < 1 år.",5,10,15,20,25]
["K2=5"]
[]
[null,"Små miljøskader. Forringelse/påvirkning merkes lite. Mindre utslipp som ikke er registrerbar iresipient.",1,2,3,4,5]
["K1=1"]
[]
[]
["Risiko = Konsekvens x Sannsynlighet."]
["Eks: K3 x S4 = 10 x 4 = 40 Risikotallet (40) gjør det mulig å rangere risiko innefor en tiltaksgrense ( farge) "]
[]
["Tallene i matrisen angir risikopotensialet for en bestemt faresituasjon som identifiseres i risikovurderingen"]
[" beregnet med utgangspunkt i formelen over."]
["Rødt område: ","Tiltak er nødvendig "]
["Gult område: ","Tiltak må vurderes (kost/nytte)."]
["Grønt område:","Tiltak vanligvis ikke nødvendig."]

{"sheet":"Risikomatrise-gml","index":3,"n_rows":38,"n_cols":6,"rows_kept":38,"cut":false,"hidden":true,"merged":[[12,1,12,5],[14,1,16,1],[14,2,16,2],[14,3,16,3],[14,4,16,4],[14,5,16,5],[20,1,22,1],[20,2,22,2],[20,3,22,3],[20,4,22,4],[20,5,22,5],[17,1,19,1],[17,2,19,2],[17,3,19,3],[17,4,19,4],[17,5,19,5],[26,1,28,1],[26,2,28,2],[26,3,28,3],[26,4,28,4],[26,5,28,5],[23,1,25,1],[23,2,25,2],[23,3,25,3],[23,4,25,4],[23,5,25,5]]}
[null,"K5 - Meget stor negativ (katastrofal)","K4 - Stor negativ (kritisk)","K3 - Middels negativ (Alvorlig)","K2 - Liten negativ (Moderat)","K1 - Nesten ubetydelig (Minimal)"]
["Støy\nVibrasjoner\nKulturarv Luftforurensing ","Uakseptabel varig* sterk ødeleggelse \nBryter lover og forskrifter","Betydelig varig* forringelse","Merkbar varig* forringelse"," Forringelse merkes nesten ikke/ikke varig","Forringelse merkes lite/ikke varig"]
["Landskapskarakter/bybilde\nFriluftsliv/bymiljø","Uakseptabel varig* sterk ødeleggelse","Betydelig varig* forringelse","Merkbar varig* forringelse","Forringelse merkes nesten ikke/ikke varig","Forringelse merkes lite/ikke varig"]
["Naturmangfold\nForurensing av jord og vann ","Uakseptabel varig* sterk ødeleggelse \nBryter lover og forskrifter \nRestaureringstid > 10 år ","Betydelig varig* forringelse\nRestaureringstid 3-10 år","Merkbar varig* forringelse\nRestaureringstid 1-3 år","Forringelse merkes lite/ikke varig\nRestaureringstid < 1 år","Forringelse merkes nesten ikke/ikke varig"]
["Klimagasser/Energiforbruk",null,"Prosjekt-ets mål m.h.p. CO2-utslipp"]
["Materialvalg og avfallshåndtering","Bryter lover og forskrifter ","Bryter bransje-standarder",null," Potensial for mer miljøvennlig valg"]
[null,"S5 - Svært sannsynlig","  S4 - Meget sannsynlig","S3 - Sannsynlig","S2 - Mindre sannsynlig","S1 - Lite sannsynlig"]
[null,"Forventet å kunne skje","Vil kunne skje","Har vært registrert i sammenlignbare prosjekter","Har vært registrert lignende hendelser","Aldri vært registrert lignende hendelser"]
[null,"> 85 %","50-85 %","15-50 %","5-15 %","<5 %"]
[]
[]
[]
[null,"S-verdier"]
["K-verdier","S1=1","S2=2","S3=3","S4=4","S5=5"]
[null,75,150,225,300,375]
["K5=75"]
[]
[null,25,50,75,100,125]
["K4=25"]
[]
[null,10,20,30,40,50]
["K3=10"]
[]
[null,5,10,15,20,25]
["K2=5"]
[]
[null,1,2,3,4,5]
["K1=1"]
[]
[]
["Risiko = Konsekvens x Sannsynlighet."]
["Eks: K3 x S4 = 10 x 4 = 40","Risikotallet (40) gjør det mulig å rangere risiko innefor en tiltaksgrense ( farge) "]
[]
["Tallene i matrisen angir risikopotensialet for en bestemt faresituasjon som identifiseres i risikovurderingen"]
[" beregnet med utgangspunkt i formelen over."]
["Rødt område: ","Tiltak er nødvendig "]
["Gult område: ","Tiltak må vurderes (kost/nytte)."]
["Grønt område:","Tiltak vanligvis ikke nødvendig."]

{"sheet":"Hjelpetabell","index":4,"n_rows":37,"n_cols":2,"rows_kept":37,"cut":false,"hidden":true,"merged":[]}
["Forurensning av jord og vann","Anleggsveger"]
["Friluftsliv og nærmiljø","Annet veg- og gateutstyr"]
["Andre forhold/Generelt fagtemaer","Avlastet veg"]
["Klimagasser og Energiforbruk","Belysning"]
["Kulturarv","Byggetid"]
["Landskapsbilde","Elver og bekker"]
["Luftforurensning","Fartsdempende tiltak (fartshump/dump)"]
["Materialvalg og avfallshåndtering","Fjellskjæringer"]
["Naturmangfold","Forstøtninger (murer o.l.)"]
["Naturressurser","Fyllinger"]
["Støy","Gjenbruk av asfalt"]
["Vibrasjoner","Grøfter, parallelle g/s-veger og adkomstveger"]
[null,"Jordskjæringer"]
[null,"Kontrollplasser, vedlikeholdslommer, busslommer"]
[null,"Kryss"]
[null,"Kryssinger"]
[null,"Kryssinger"]
[null,"Massedeponi"]
[null,"Opplagsplass for snø"]
[null,"Overgangsbruer og kulverter"]
[null,"Rasteplasser"]
[null,"Rekkverk og kantstein"]
[null,"Renseløsning (sedimentasjonsbasseng, tekniske renseløsninger, bortledning)"]
[null,"Rigg- og anleggsområde"]
[null,"Sedimentasjons- og fordrøyningsbasseng"]
[null,"Skilt"]
[null,"Støyskjerming (skjerm og voll)"]
[null,"Underganger og kulverter"]
[null,"Vann og strandsone"]
[null,"Veg- og gatebelegning"]
[null,"Vegbruer (inkl fyllinger i vann)"]
[null,"Vegetasjon: Eksisterende og ny"]
[null,"Veglinje generelt"]
[null,"Veglinjens lokalisering i landskapet"]
[null,"Vegoppmerking, rumlefelt etc (lydgivende)"]
[null,"Vegtunnel"]
[null,"Viltgjerder og andre gjerder"]

{"sheet":"Samsvarsevaluering","index":5,"n_rows":98,"n_cols":6,"rows_kept":98,"cut":false,"hidden":false,"merged":[]}
["Lov, forskrift, retningslinje","Link","Veiledere/ føringer/nyttige linker","Relevant for prosjektet ","Merknad"]
["Plan og bygningsloven","Lov om planlegging og byggesaksbehandling (plan- og bygningsloven) - Lovdata","Nasjonale og vesentlige regionale interesser på miljøområdet – klargjøring av miljøforvaltningens innsigelsespraksis - regjeringen.no",null,null,"Ja"]
["Forskrift om konsekvensutredninger","Forskrift om konsekvensutredninger - Lovdata",null,"Ja",null,"Nei"]
["Forskrift om systematisk helse-, miljø- og sikkerhetsarbeid i virksomheter (internkontrollforskriften)","Forskrift om systematisk helse-, miljø- og sikkerhetsarbeid i virksomheter (Internkontrollforskriften) - Lovdata"]
["Lov om vegar (veglova)","Lov om vegar (veglova) - Lovdata"]
["Statlige planretningslinjer for differensiert forvaltning av strandsonen langs sjøen","Statlige planretningslinjer for differensiert forvaltning av strandsonen langs sjøen - regjeringen.no"]
["Lov om rett til miljøinformasjon og deltakelse i offentlige beslutningsprosesser av betydning for miljø (Miljøinformasjonsloven)","Lov om rett til miljøinformasjon og deltakelse i offentlige beslutningsprosesser av betydning for miljøet (miljøinformasjonsloven) - Lovdata"]
["Lov om offentlige anskaffelser","Lov om offentlige anskaffelser (anskaffelsesloven) - Lovdata"]
[]
["Forurensingsloven","Lov om vern mot forurensninger og om avfall (forurensningsloven) - Lovdata"]
["Forurensingsforskriften","Forskrift om begrensning av forurensning (forurensningsforskriften) - Lovdata"]
["Forskrift om varsling av akutt forurensning eller fare for akutt forurensning","Forskrift om varsling av akutt forurensning eller fare for akutt forurensning - Lovdata"]
["Forskrift om gjenvinning og behandling av avfall (avfallsforskriften)","Forskrift om gjenvinning og behandling av avfall (avfallsforskriften) - Lovdata","Prop. 72 LS (2021–2022) (regjeringen.no)"]
["Forskrift om forurensningslovens anvendelse på radioaktiv forurensning og radioaktivt avfall ","Forskrift om forurensningslovens anvendelse på radioaktiv forurensning og radioaktivt avfall - Lovdata"]
["Retningslinje for behandling av støy i arealplanlegging T1442/2021","Retningslinje for behandling av støy i arealplanlegging (regjeringen.no)","Veileder om behandling av støy i arealplanlegging - Miljødirektoratet (miljodirektoratet.no)"]
["Forskrift om begrensing av støy i Oslo kommune, Oslo","Forskrift om begrensning av støy i Oslo kommune, Oslo - Lovdata"]
["T-1520 Retningslinje for behandling av luftkvalitet i arealplanlegging ","Retningslinje for behandling av luftkvalitet i arealplanlegging - regjeringen.no","Luftkvalitet i arealplanlegging - Miljødirektoratet (miljodirektoratet.no), https://www.miljodirektoratet.no/globalassets/publikasjoner/m1860/m-1860.pdf"]
[]
["Lov om kontroll med produkter og forbrukertjenester (produktkontrolloven)","Lov om kontroll med produkter og forbrukertjenester (produktkontrolloven) - Lovdata"]
["Reach forskriften","Forskrift om registrering, vurdering, godkjenning og begrensning av kjemikalier (REACH-forskriften) - Lovdata"]
[]
["Forskrifter om biocider (Biocidforskriften)","Forskrift om biocider (Biocidforskriften) - Lovdata"]
["Forskrift om begrensning i bruk av helse- og miljøfarlige kjemikalier og andre produkter (produktforskriften)","Forskrift om begrensning i bruk av helse- og miljøfarlige kjemikalier og andre produkter (produktforskriften) - Lovdata"]
["Forskrift om plantevernmidler","Forskrift om plantevernmidler - Lovdata"]
["Forskrift om tekniske krav til byggverk (Byggteknisk forskrift)","Forskrift om tekniske krav til byggverk (Byggteknisk forskrift) - Lovdata"]
[]
["Lov om vassdrag og grunnvann (vannressursloven)","Lov om vassdrag og grunnvann (vannressursloven) - Lovdata"]
["Lov om laksefisk og innlandsfisk (lakse- og innlandsfiskeloven)","Lov om laksefisk og innlandsfisk mv. (lakse- og innlandsfiskloven) - Lovdata"]
["Forskrift om rammer for vannforvaltning (Vannforskriften)","Forskrift om rammer for vannforvaltningen - Lovdata"]
["Forskrift og vannforsyning og drikkevann (drikkevannsforskriften)","Forskrift om vannforsyning og drikkevann (drikkevannsforskriften) - Lovdata"]
["Forskrift om rikspolitiske retningslinjer for vernede vassdrag","Rikspolitiske retningslinjer for vernede vassdrag - Lovdata"]
[]
["Lov om forvaltning av naturens mangfold (naturmangfoldloven)","Lov om forvaltning av naturens mangfold (naturmangfoldloven) - Lovdata"]
["Forskrift om utvalgte naturtyper etter naturmangfoldloven","Forskrift om utvalgte naturtyper etter naturmangfoldloven - Lovdata"]
["Forskrifter om priorterte arter","Forskrifter om prioriterte arter - regjeringen.no","https://lovdata.no/dokument/SF/forskrift/2011-05-20-517?q=dragehode, https://lovdata.no/dokument/SF/forskrift/2011-05-20-518?q=dvergg%C3%A5s, https://lovdata.no/dokument/SF/forskrift/2011-05-20-519?q=elvesandjeger, https://lovdata.no/dokument/SF/forskrift/2011-05-20-520?q=eremitt, https://lovdata.no/dokument/SF/forskrift/2011-05-20-521?q=honningblom, https://lovdata.no/dokument/SF/forskrift/2011-05-20-522?q=klippebl%C3%A5vinge, https://lovdata.no/dokument/SF/forskrift/2011-05-20-523?q=r%C3%B8d%20skogfrue, https://lovdata.no/dokument/SF/forskrift/2011-05-20-524?q=svarthalespove"]
["Forskrift om fysiske tiltak i vassdrag","Forskrift om fysiske tiltak i vassdrag - Lovdata"]
["Forskrift om fremmede organismer","Forskrift om fremmede organismer - Lovdata"]
["Forskrift om fredning av truede arter","Forskrift om fredning av truede arter - Lovdata"]
["Forskrift om ferskvannskreps","Forskrift om ferskvannskreps - Lovdata"]
["Lov om naturområdet i Oslo og nærliggende kommuner (markaloven)","Lov om naturområder i Oslo og nærliggende kommuner (markaloven) - Lovdata","Iverksetting av markaloven - regjeringen.no, https://www.regjeringen.no/no/dokumenter/t-409-fylkesmannens-myndighet-i-klagesak/id577070/"]
[]
["NS 8176:2017 Vibrasjoner og støt - Måling i bygninger av vibrasjoner fra landbasert samferdsel, vibrasjonsklasser og veiledning for bedømmelse av virkninger på menneserk","NS 8176:2017 (standard.no)"]
["Norsk standard NS 8175:2019 Lydforhold i bygninger - Lydklasser for ulike bygningstyper","NS 8175:2019 (standard.no)"]
["NS 8141 Vibrasjoner og støy. Måling av svingehastighet og beregning av veiledende grenseverdier for å unngå skader på byggverk.","NS 8141-1:2022 (standard.no)"]
[]
["Veileder universell utforming","Veileder i universell utforming - regjeringen.no"]
["Norsk arkitektturpolitkk \"arkitektur.nå\"","https://www.regjeringen.no/no/dokumenter/arkitekturna/id574549/"]
["Den europeiske landskapskonvensjonen","Den europeiske landskapskonvensjonen - regjeringen.no"]
[]
["Lov om friluftslivet (friluftsloven)","Lov om friluftslivet (friluftsloven) - Lovdata"]
["Lov om folkehelsearbeid (folkehelseloven)","Lov om folkehelsearbeid (folkehelseloven) - Lovdata"]
["Rikspolitiske retningslinjer for barn og planlegging","Rikspolitiske retningslinjer for barn og planlegging - Lovdata"]
[]
["Lov om kulturminner (kulturminneloven)","Lov om kulturminner [kulturminneloven] - Lovdata"]
["Forskrift om fredning av byggverk i Statens vegvesens eie","Forskrift om fredning av byggverk i Statens vegvesens eie - Lovdata"]
["Forskrift om fredning av broer i Statens vegvesen eie","Forskrift om fredning av broer i Statens vegvesens eie - Lovdata"]
["Forskrift om fredning av veganlegg i Statens vegvesens eie (1 og 2)","Forskrift om fredning av veganlegg i Statens vegvesens eie - Lovdata  ","Forskrift om fredning av veganlegg i Statens vegvesens eie - Lovdata"]
[]
["Lov om matproduksjon og mattrygghet (matloven)","Lov om matproduksjon og mattrygghet mv. (matloven) - Lovdata"]
["Lov om jord (jordlova)","Lov om jord (jordlova) - Lovdata"]
["Forskrift om floghavre","Forskrift om floghavre - Lovdata"]
[]
["Lov om reindrift (reindriftsloven)","Lov om reindrift (reindriftsloven) - Lovdata"]
[]
["Lov om klimamål (klimaloven)","Lov om klimamål (klimaloven) - Lovdata"]
[]
["Lov om vern mot brann, eksplsjon og ulykker med farlig stoff og om brannvesenets redningsoppgaver (brann- og eksplosjonsvernloven)","Lov om vern mot brann, eksplosjon og ulykker med farlig stoff og om brannvesenets redningsoppgaver (brann- og eksplosjonsvernloven) - Lovdata"]
["Forskrift om håndtering av brannfarlig, reaksjonsfarlig og trykksatt stoff samt utstyr og anlegg som benyttes ved håndteringen","Forskrift om håndtering av brannfarlig, reaksjonsfarlig og trykksatt stoff samt utstyr og anlegg som benyttes ved håndteringen - Lovdata"]
[]
["Lov om rettshøve mellom grannar (grannelova)","Lov om rettshøve mellom grannar (grannelova) - Lovdata"]
["Lov om helligdager og helligdagsfred","Lov om helligdager og helligdagsfred - Lovdata"]
[]
["Flomdirektivet: Europaparlamentets og Rådets direktiv 2007/60/EF av 23. oktober 2007 om vurdering og styring av risikoen for oversvømmelser","Flomdirektivet: vurdering og forvaltning av flommer | europalov"]
["Lov om erverv og utvinning av mineralressurser (mineralloven)","Lov om erverv og utvinning av mineralressurser (mineralloven) - Lovdata"]
["Havressursloven","Lov om forvaltning av viltlevande marine ressursar (havressurslova) - Lovdata"]
["Miljøstyringsystemet"]
[]
["N100 Veg- og gateutforming","Statens vegvesen. N100:2021"]
["N200 Vegbygging","Statens vegvesen. N200:2021"]
["N400 Bruprosjektering","Statens vegvesen. N400:2022"]
["N500 Vegtunneler","Statens vegvesen. N500:2021"]
[]
[]
["V130 - Vegen i landskapet","V130 - Vegen i landskapet (vegvesen.no)"]
["V132 Veg og kulturmiljø","Håndbok V132 Veg og kulturmiljø (vegvesen.no)"]
["V 133 Veg og reiseliv"]
["V134 Veger og dyreliv"]
["R211 Feltundersøkelser"]
["V220 Geoteknikk i vegbygging"]
["V240 Vannhåndtering - Flomberegning og hydraulisk dimensjonering"]
["V271 Vegetasjon i veg- og gatemiljø"]
["V275 Postvegen. Rettleiar for skjøtsel, restaurering og vern"]
["V520 Tunnelveiledning"]
["V712 Konsekvensanalyser"]
["R760 Styring av vegprosjekter"]
["R761 Prosessjode 1 Standard beskrivelsestekster for vegkontrakter, hovedprosess 1-7"]
["R762 Prosesskode 2 Standard beskrivelsestekster for bruker og kaier, hovedprosess 8"]
["V770 Modelgrunnlag"]

{"sheet":"Vanlige samsvarsforpliktelser","index":6,"n_rows":74,"n_cols":10,"rows_kept":74,"cut":false,"hidden":false,"merged":[]}
["Krav (lov/retningslinje)","Vesentlige krav","Kolonne1","Kolonne2","Info/beskrivelse","Nyttige linker","Interne retningslinjer/krav dokumenter","Samsvarsvurdering (ok/ikke aktuelt/trenger oppfølging","Dokumentasjon (eks. link til aktuelt dokument)","Oppfølging"]
["Forurensingsloven"," § 7 plikt til å unngå forurensning",{"$f":"_xlfn.CONCAT(A2:B2)","v":"Forurensingsloven § 7 plikt til å unngå forurensning"},"Forurensingsloven § 7 plikt til å unngå forurensning","Ingen må ha, gjøre eller sette i verk noe som kan medføre fare for forurensning uten at det er lovlig etter §§ 8 eller 9, eller tillatt etter vedtak i medhold av § 11.\nNår det er fare for forurensning i strid med loven, eller vedtak i medhold av loven skal den ansvarlige for forurensning sørge for tiltak for å hindre at den inntrer. Har forurensningen inntrådt skal han sørge for tiltak for å stanse, fjerne eller begrense virkningen av den. Den ansvarlige plikter også å treffe tiltak for å avbøte skader og ulemper som følge av forurensningen eller av tiltakene for å motvirke den. Plikten etter dette ledd gjelder tiltak som står i et rimelig forhold til de skader og ulemper som skal unngås.\nBestemmelsen i annet ledd gjelder også forurensning som er tillatt etter § 11 dersom det er åpenbart at vedtaket kan omgjøres etter § 18 første ledd nummer 1 eller 2. Tilsvarende gjelder dersom det av samme grunner er åpenbart at det etter § 9 tredje ledd kan gjøres unntak fra forskrift som tillater forurensning.",null,"Forurensing vurderes ved utarbeidelse av YM plan og risiikovurderinger utføres i miljørisken. Krav implementeres i konkurransegrunnlag.  Hoved prosess i KS: https://kvalitetssystemet.vegvesen.no/svv/?objid=bce3ac2b-9a96-4f3c-b4c5-686dd606dbb9 . Relevante retningslinjer: Mal for YM plan, Miljørisken, Veileder til YM plan, Sjekkliste YM - før oppstart kontraktsarbeid og løpende, krav i byggekontrakter,  Krav til beredskaplan N500"]
["Forurensingsloven"," § 8 Begrensning i plikten til å unngå forurensninger",{"$f":"_xlfn.CONCAT(A3:B3)","v":"Forurensingsloven § 8 Begrensning i plikten til å unngå forurensninger"},"Forurensingsloven § 8 Begrensning i plikten til å unngå forurensninger","Vanlig forurensing fra midlertidig anleggsvirksomhet er tillatt:\"forurensing som ikke medførere nevneverdig skade\". Kan arbeidet medføre skade skal det søkes om tilltatelse etter §11. Dette må vurderes i hvert prosjekt. Denne lovparagrafen åpner for at forurensning fra midlertidig anleggsvirksomhet er tillatt. Unntaket gjelder kun dersom anleggsvirksomheten ikke medfører uakseptable skadevirkninger på natur og miljø (herunder sjø og vassdrag). Ved usikkerhet på om tiltaket er innenfor eller utenfor forurensningslovens §8 kontaktes statsforvalter, på bakgrunn av miljørisikovurdering. Med større vegprosjekter følger full søknad og saksbehandling",null,"Vurderinger gjøres ved utarbeidelse av YM plan, krav i N500"]
["Forurensingsloven"," § 11 Særskilt tillatelse til forurensende tiltak",{"$f":"_xlfn.CONCAT(A4:B4)","v":"Forurensingsloven § 11 Særskilt tillatelse til forurensende tiltak"},"Forurensingsloven § 11 Særskilt tillatelse til forurensende tiltak","Forurensningsmyndigheten kan etter søknad gi tillatelse til virksomhet som kan medføre forurensning. De kan sette vilkår etter § 16. Er det vurdert behov for utslippstillatelse? Krav til innhold i søknad er beskrevet i forurensningsforskriften § 36-2. Overholdes krav i gjeldende utslippstillatelse?","Utslippstillatelser kan finnes: https://www.norskeutslipp.no/","Knyttet til hovedprosess KS: HMS for byggherre (vegvesen.no). Egen prosess: «Søke og følge opp utslippstillatelse» er under utarbeiding. Behov for å vurdere utslippstillatelse er beskrevet i Veileder til YM plan (MKH7049207).  Oppfølging av utslippstillatelser utføres i byggefasen. Brudd på tillatelser skal rapporteres som uønsket hendelse i avvik systemet."]
["Forurensingsloven"," § 27 Avfall","Forurensingsloven § 27 Avfall","Forurensingsloven § 27 Avfall","Med avfall menes løsøregjenstander eller stoffer som noen har kassert, har til hensikt å kassere eller er forpliktet til å kassere. Viktig å merke seg at næringsavfall også kan inkludere overskuddsmasser som skal fjernes fra anleggsområdet. Bunnrenskmasser er definert som avfall.",null,"Det er standardkrav til avfallplan og rapportering av avfall i ELRAPP i alle prosjekter. Krav til avfallshåndtering er gitt i mal for konkurransegrunnlag kap C. Prosess KS: HMS for byggherre/Følge opp og kontrollere SHA og YM/Følge opp og kontrollere avfallshåndtering"]
["Forurensingsloven"," § 28 Forbud mot forsøpling","Forurensingsloven § 28 Forbud mot forsøpling","Forurensingsloven § 28 Forbud mot forsøpling","Ingen må tømme, etterlate, oppbevare eller transportere avfall slik at det kan virke skjemmende eller være til skade eller ulempe for miljøet.",null,"Det er standardkrav til avfallplan og rapportering av avfall i ELRAPP i alle prosjekter. Krav til avfallshåndtering er gitt i mal for konkurransegrunnlag kap C. "]
["Forurensingsloven"," § 32 Håndtering av næringsavfall","Forurensingsloven § 32 Håndtering av næringsavfall","Forurensingsloven § 32 Håndtering av næringsavfall","\"Den som produserer næringsavfall, skal sørge for at avfallet blir brakt til lovlig avfallsanlegg eller gjennomgår gjenvinning, slik at det enten opphører å være avfall eller på annen måte kommer til nytte ved å erstatte materialer som ellers ville blitt brukt. Annen disponering av avfall fra fiske, jordbruk og skogbruk mv. er likevel tillatt, såfremt forurensningen dette kan medføre omfattes av § 8 første ledd nr. 1. Forurensningsmyndigheten kan i særlige tilfeller gjøre unntak ved enkeltvedtak eller forskrift fra første ledd første punktum på nærmere fastsatte vilkår\". Overskuddsmasser av ikke forurenset jord og stein defineres som næringsavfall etter forureningsloven. Miljødirkektoratat arbeider med en forskrift for disponering av slike masser på land. Frem til forskriftbestemmelsene trer i kraft er det ikke behov for søknad om unntak fra §32 første ledd til annen disponering såfremt: muligheter for gjenvinning er vurdert, disponeringen er avklart etter plan og bygningsloven og disponeringen skjer på land. For utfylling i sjø og vasdrag må det søkes om unntak etter § 32. ","Disponering av jord og stein som ikke er forurenset. - Miljødirektoratet (miljodirektoratet.no)","YM plan, Miljørisken,  YM plan veileder"]
["Forurensningsloven ","§ 51 Pålegg om undersøkelse","§ 51 Pålegg om undersøkelse","§ 51 Pålegg om undersøkelse","Forurensningsmyndigheten kan pålegge virksomheter å gjennomføre undersøkelser for om et tiltak kan medføre forurensning, klarlegge årsak til en faktisk forurensning og hvordan den kan motvirkes. "]
["Foruresningsloven"," kap 6 Akutt foruresning. §§39-41","Foruresningsloven kap 6 Akutt foruresning. §§39-41","Foruresningsloven kap 6 Akutt foruresning. §§39-41","Krav om varslingsplikt, beredskapsplikt og beredskapsplaner.",null,"Varslingsplikt, beredskapsplikt og beredskapsplaner utarbeides ved følgende dokumenter: Mal for alvorlige interne hendelser (retningslinje, internt krav, MKH6481650) , Mal for SHA plan (internt krav, MKH8167721) , Mal Varslingsplan Utb. Krav til vedlegg SHA plan (internt krav), Stans av farlig arbeid (Retningslinje, internt krav, MKH7036010) , Krav til rapportering og oppfølging av uønskede hendelser (33.2) , Månedsrapport med status for ytre miljø og risikoarbeider, Byggherrens oppfølging av K4 og K5 hendelser (internt krav, retningslinje MKH7036539). Krav i konkurransegrunnlag til beredskapsutstyr, absorbsjonsmiddel, krav at leverandører har HMS system som tilfredstiller kravene i internkontrollforskriften, R760: SHA og YM koordinators ansvar i gjennomføringen: \"utarbeide varslingsplan\"."]
[null,null,"",""]
["Forurensingsforskriften"," Del 1. Forurenset grunn og sedimenter. kap 2. Opprydning i forurenset grunn ved bygge- og gravearbeider","Forurensingsforskriften Del 1. Forurenset grunn og sedimenter. kap 2. Opprydning i forurenset grunn ved bygge- og gravearbeider","Forurensingsforskriften Del 1. Forurenset grunn og sedimenter. kap 2. Opprydning i forurenset grunn ved bygge- og gravearbeider","Tiltakshaver er ansvarlig for å vurdere om det er forurenset grunn, gjøre nødvendige undersøkelser og utarbeide tiltaksplan. Forurenset grunn har vi når normverdiene i vedlegg 1 overskrides. Se også Fagsystem for grunnforurensning: https://grunnforurensning.miljodirektoratet.no/ ","Miljødirektoratets veileder om forurenset grunn  \n"]
["Forurensingsforskriften"," Del 3. Lokal luftkvalitet. Kap 7 Lokal luftkvalitet. §7-2, §7-3 og §7-6 ","Forurensingsforskriften Del 3. Lokal luftkvalitet. Kap 7 Lokal luftkvalitet. §7-2, §7-3 og §7-6 ","Forurensingsforskriften Del 3. Lokal luftkvalitet. Kap 7 Lokal luftkvalitet. §7-2, §7-3 og §7-6 ","Bestemmelsene i dette kapitlet har som formål å fremme menneskers helse og trivsel og beskytte vegetasjon og økosystemer ved å sette minstekrav og målsettingsverdier til luftkvalitet og sikre at disse blir overholdt."]
["Forurensingsforskriften"," Del 7. Krav til forebygging av foruresnings fra visse virksomheter eller utslippskilder. Kapittel 30 - Forurensingser fra produksjon av pukk, grus, sand og singel","Forurensingsforskriften Del 7. Krav til forebygging av foruresnings fra visse virksomheter eller utslippskilder. Kapittel 30 - Forurensingser fra produksjon av pukk, grus, sand og singel","Forurensingsforskriften Del 7. Krav til forebygging av foruresnings fra visse virksomheter eller utslippskilder. Kapittel 30 - Forurensingser fra produksjon av pukk, grus, sand og singel","Gjelder midlertidige knuseverk. Krav om meldeplikt. Utslippskrav til luft, støy, vann. Er det sendt inn melding til Statsforvalteren om midlertidige knuseverk? Overholdes utslippskrav?"]
["Forurensingsforskriften"," kap 15A, §15A-4","Forurensingsforskriften kap 15A, §15A-4","Forurensingsforskriften kap 15A, §15A-4","Ved påslipp av både rent og forurenset overvann  til kommunalt avløpsnett gjelder forurensingsforskriften kapittel 15A og §15A-4 og kommunen er forurensningsmyndighet. "]
["Retningslinje for behandling av støy i arealplanlegging (T1442)"," Skal ligge til grunn i planfaser (kap 3) og gir føringer for bygge og anleggstøy (kap 6)","Retningslinje for behandling av støy i arealplanlegging (T1442) Skal ligge til grunn i planfaser (kap 3) og gir føringer for bygge og anleggstøy (kap 6)","Retningslinje for behandling av støy i arealplanlegging (T1442) Skal ligge til grunn i planfaser (kap 3) og gir føringer for bygge og anleggstøy (kap 6)","Retningslinjen skal legges til grunn ved arealplanlegging og behandling av byggesaker etter plan- og bygningsloven. Retningslinjen gir anbefalte grenseverdier for støynivå utendørs, på fasade og på uteoppholdsarealer for støyfølsom bebyggelse. Retningslinjen gir også kvalitetskriterier for planlegging av ny støyfølsom bebyggelse og planlegging av støyende anlegg og virksomhet. "]
[null,null,"",""]
["Naturmangfoldloven"," § 6.(generell aktsomhetsplikt)","Naturmangfoldloven § 6.(generell aktsomhetsplikt)","Naturmangfoldloven § 6.(generell aktsomhetsplikt)","Enhver skal opptre aktsomt og gjøre det som er rimelig for å unngå skade på naturmangfoldet i strid med målene i §§ 4 og 5. Utføres en aktivitet i henhold til en tillatelse av offentlig myndighet, anses aktsomhetsplikten oppfylt dersom forutsetningene for tillatelsen fremdeles er til stede."]
["Naturmangfoldloven"," §8 Kunnskapsgrunnlaget","Naturmangfoldloven §8 Kunnskapsgrunnlaget","Naturmangfoldloven §8 Kunnskapsgrunnlaget","Offentlige beslutninger som berører naturmangfoldet skal så langt det er rimelig bygge på vitenskapelig kunnskap om arters bestandssituasjon, naturtypers utbredelse og økologiske tilstand, samt effekten av påvirkninger. Kravet til kunnskapsgrunnlaget skal stå i et rimelig forhold til sakens karakter og risiko for skade på naturmangfoldet. Myndighetene skal videre legge vekt på kunnskap som er basert på generasjoners erfaringer gjennom bruk av og samspill med naturen, herunder slik samisk bruk, og som kan bidra til bærekraftig bruk og vern av naturmangfoldet"]
["Naturmangfoldloven"," § 9 (føre-var-prinsippet)","Naturmangfoldloven § 9 (føre-var-prinsippet)","Naturmangfoldloven § 9 (føre-var-prinsippet)","Når det treffes en beslutning uten at det foreligger tilstrekkelig kunnskap om hvilke virkninger den kan ha for naturmiljøet, skal det tas sikte på å unngå mulig vesentlig skade på naturmangfoldet. Foreligger en risiko for alvorlig eller irreversibel skade på naturmangfoldet, skal ikke mangel på kunnskap brukes som begrunnelse for å utsette eller unnlate å treffe forvaltningstiltak"]
["Naturmangfoldloven","§ 10.(økosystemtilnærming og samlet belastning)",{"$f":"_xlfn.CONCAT(A20:B20)","v":"Naturmangfoldloven§ 10.(økosystemtilnærming og samlet belastning)"},null,"En påvirkning av et økosystem skal vurderes ut fra den samlede belastning som økosystemet er eller vil bli utsatt for."]
["Naturmangfoldloven","§ 11.(kostnadene ved miljøforringelse skal bæres av tiltakshaver)",{"$f":"_xlfn.CONCAT(A21:B21)","v":"Naturmangfoldloven§ 11.(kostnadene ved miljøforringelse skal bæres av tiltakshaver)"},null,"Tiltakshaveren skal dekke kostnadene ved å hindre eller begrense skade på naturmangfoldet som tiltaket volder, dersom dette ikke er urimelig ut fra tiltakets og skadens karakter."]
["Naturmangfoldloven","§ 12.(miljøforsvarlige teknikker og driftsmetoder)",{"$f":"_xlfn.CONCAT(A22:B22)","v":"Naturmangfoldloven§ 12.(miljøforsvarlige teknikker og driftsmetoder)"},null,"For å unngå eller begrense skader på naturmangfoldet skal det tas utgangspunkt i slike driftsmetoder og slik teknikk og lokalisering som, ut fra en samlet vurdering av tidligere, nåværende og fremtidig bruk av mangfoldet og økonomiske forhold, gir de beste samfunnsmessige resultater."]
["Naturmangfoldloven"," § 23 prioriterte arter og § 24 beskyttelsens innhold","Naturmangfoldloven § 23 prioriterte arter og § 24 beskyttelsens innhold","Naturmangfoldloven § 23 prioriterte arter og § 24 beskyttelsens innhold","En forskrift om prioriterte arter etter § 23 første ledd kan: a: fastsette forbud mot enhver form for uttak, skade eller ødeleggelse av en prioritert art eller bestemte bestander av den, og at reglene i §§ 15 til 22 bare gjelder så langt det følger av forskriften, b: gi regler om beskyttelse av visse typer økologiske funksjonsområder av mindre omfang. De hensyn som pålegges må ikke medføre en vesentlig vanskeliggjøring av igangværende bruk. Dersom summen av hensyn i etterkant av vedtaket gir restriksjoner som medfører en vesentlig vanskeliggjøring og et vesentlig tap, kan grunneier kreve at området vernes etter kapittel V eller at det gjøres unntak fra prioriteringen for de aktuelle områdene etter femte ledd. Bestemmelsen gjelder ikke i sjø,c: sette krav om å klarlegge følgene for arten av planlagte inngrep i dens funksjonsområder, herunder klarlegging av alternative funksjonsområder som kan bidra til å sikre bevaring av arten i samsvar med § 5 første. Forskriften kan gi regler om skjøtselstiltak i samsvar med § 47 når dette er nødvendig for å sikre bevaring av arten. Offentlige tilskuddsordninger skal så langt mulig bidra til å sikre bevaring av en prioritert art.Gis det regler om beskyttelse av visse typer økologiske funksjonsområder for prioriterte arter etter første ledd bokstav b, der aktiv skjøtsel eller andre typer tiltak er en forutsetning for ivaretakelse av funksjonsområdet, skal staten legge frem en handlingsplan for å sikre slike områder. Det offentlige kan inngå nærmere avtale med grunneier eller rettighetshaver om skjøtsel av et økologisk funksjonsområde for prioriterte arter.Samtidig med forskrift etter § 23 første ledd skal myndigheten vurdere om det for å bevare arten og dens genetiske mangfold er nødvendig å treffe ytterligere vedtak om økologiske funksjonsområder etter denne eller andre lover.Myndigheten etter loven kan gjøre unntak fra forskrift etter § 23 dersom det ikke forringer artens bestandssituasjon eller bestandsutvikling, eller dersom vesentlige samfunnshensyn gjør det nødvendig."]
[null,null,"",""]
["Forskrift om utvalgte naturtyper etter naturmangfoldloven"," § 3 Utvalgte naturtyper","Forskrift om utvalgte naturtyper etter naturmangfoldloven § 3 Utvalgte naturtyper","Forskrift om utvalgte naturtyper etter naturmangfoldloven § 3 Utvalgte naturtyper","Utvalgte naturtyper skal det tas særskilt hensyn til (jmf. naturmangfoldloven §53). Er det utvalge naturtyper i prosjektet og er dette hensyntatt?"]
["Forskrift om fremmede organismer"," § 9. Forbud mot utsetting og omsetning, §18 Alminnelige krav til aktsomhet","Forskrift om fremmede organismer § 9. Forbud mot utsetting og omsetning, §18 Alminnelige krav til aktsomhet","Forskrift om fremmede organismer § 9. Forbud mot utsetting og omsetning, §18 Alminnelige krav til aktsomhet","Formålet med forskriften er å hindre innførsel, utsetting og spredning av fremmede organismer som medfører, eller kan medføre, uheldige følger for naturmangfoldet. "," https://www.vegvesen.no/globalassets/fag/fokusomrader/miljo-og-omgivelser/svv-rapport-387-fremmede-skadelige-arter.pdf"]
["Lov om reindrift (reindriftsloven)","§ 22.Flyttleier","Lov om reindrift (reindriftsloven)§ 22.Flyttleier","","Reindriftsutøvere har adgang til fritt og uhindret å drive og forflytte rein i de deler av reinbeiteområdet hvor reinen lovlig kan ferdes og adgang til flytting med rein etter tradisjonelle flyttleier. Med til flyttlei regnes også faste inn- og avlastingsplasser for transport av reinen.\n\nReindriftens flyttleier må ikke stenges, men Kongen kan samtykke i omlegging av flyttlei og i åpning av nye flyttleier når berettigede interesser gir grunn til det. Eventuell skade som følge av omlegging av flyttlei eller åpning av ny flyttlei erstattes etter avgjørelse ved jordskifteretten. Kongen kan bestemme at også fastleggingen i detalj av den nye flyttleien skal overlates til skjønnet."]
["Lov om vassdrag og grunnvann (Vannressursloven)"," § 8 Konsesjonspliktige tiltak","Lov om vassdrag og grunnvann (Vannressursloven) § 8 Konsesjonspliktige tiltak","Lov om vassdrag og grunnvann (Vannressursloven) § 8 Konsesjonspliktige tiltak","Loven har til formål å sikre en samfunnsmessig forsvarlig bruk og forvaltning av vassdrag og grunnvann. Mange tiltak i vassdrag krever tillatelse, er dette vurdert? Det er tiltakshavers ansvar å vurdere om det er konsesjonspliktig. NVE kan rådføres. De fleste vegtiltak er ikke innenfor krav til konsesjon etter dette lovverket, men krever tillatelse etter annet vannrelatert regelverk. "]
["Lov om vassdrag og grunnvann (Vannressursloven)"," § 11 Kantvegetasjon","Lov om vassdrag og grunnvann (Vannressursloven) § 11 Kantvegetasjon","Lov om vassdrag og grunnvann (Vannressursloven) § 11 Kantvegetasjon","Det er strenge krav til å bevare og skjøtte kantvegetasjon. Reguleringsplanen kan med fordel ha med en bestemmelse som sikrer rydding av siktlinjer og sikkerhetssoner. Dermed unngår en kravet om å søke dispensasjon for driftstiltak. "]
["Lov om vassdrag og grunnvann (Vannressursloven)"," Kap. 5 Vernede vassdrag og nasjonale laksevassdrag","Lov om vassdrag og grunnvann (Vannressursloven) Kap. 5 Vernede vassdrag og nasjonale laksevassdrag","Lov om vassdrag og grunnvann (Vannressursloven) Kap. 5 Vernede vassdrag og nasjonale laksevassdrag","Det skal tas særskilte hensyn i vernede vassdrag og nasjonale laksevassdrag."]
[null,null,"",""]
["Forskrift om rammer for vannforvaltning (Vannforskriften)"," Kapittel 2 - §4 Miljømål for overflatevann","Forskrift om rammer for vannforvaltning (Vannforskriften) Kapittel 2 - §4 Miljømål for overflatevann","Forskrift om rammer for vannforvaltning (Vannforskriften) Kapittel 2 - §4 Miljømål for overflatevann","Tilstanden i overflatevann skal beskyttes mot forringelse, forbedres og gjenopprettes med sikte på at vannforekomstene skal ha minst god økologisk og god kjemisk tilstand, i samsvar med klassifiseringen i vedlegg V og miljøkvalitetsstandardene i vedlegg VIII. Prosjektet må vurdere om bygging/drift av veg vil påvirke miljømålene for berørte vannforekomster. Påvirkning på resipienter bør dokumenteres ved før, under og etterundersøkelser."]
["Forskrift om rammer for vannforvaltning (Vannforskriften)"," Kapittel 2 . § 6 Miljømål for grunnvann","Forskrift om rammer for vannforvaltning (Vannforskriften) Kapittel 2 . § 6 Miljømål for grunnvann","Forskrift om rammer for vannforvaltning (Vannforskriften) Kapittel 2 . § 6 Miljømål for grunnvann","Tilstanden i grunnvann skal beskyttes mot forringelse"]
["Forskrift om rammer for vannforvaltning (Vannforskriften)"," Kapittel 2,  §12 Ny aktivitet eller nye inngrep","Forskrift om rammer for vannforvaltning (Vannforskriften) Kapittel 2,  §12 Ny aktivitet eller nye inngrep","Forskrift om rammer for vannforvaltning (Vannforskriften) Kapittel 2,  §12 Ny aktivitet eller nye inngrep","Vannforskriften retter seg mot offentlige myndigheter. Forskriften setter rammer for vannforvaltningen, men den endrer ikke gjeldende ansvarsfordeling mellom de ulike sektormyndighetenes ansvar for lovverk og virkemidler. Det er derfor den aktuelle sektormyndigheten for det omsøkte tiltaket som foretar vurderingen etter § 12, både om den kommer til anvendelse og om vilkårene i § 12 er oppfylt. https://www.vannportalen.no/veiledere/veileder-2021-veileder-til-vannforskriften--12/","09.07. 2021: Veileder til vannforskriften § 12 (vannportalen.no)"]
[null,null,"",""]
["Forskrift om fysiske tiltak i vassdrag"," § 1 Forbud mot iverksettelse av tiltak i vassdrag","Forskrift om fysiske tiltak i vassdrag § 1 Forbud mot iverksettelse av tiltak i vassdrag","Forskrift om fysiske tiltak i vassdrag § 1 Forbud mot iverksettelse av tiltak i vassdrag","Uten tillatelse fra statsforvalteren eller fylkeskommunen er det forbudt å sette i verk: A: fysiske tiltak som medfører eller kan medføre fare for forringelse av produksjonsmulighetene for fisk eller andre ferskvannsorganismer, B: fysiske tiltak i og langs vassdrag, herunder bygging av terskler, graving av fiskehøler og utlegging av større steiner, som kan øke fangsten av fisk på stedet eller forskyve fangsten av fisk i vassdraget, C: fysiske tiltak for anadrome laksefisk eller innlandsfisk som har til hensikt å forandre en eller flere arters produksjon, bestandsstørrelse eller utbredelse. Statsforvalteren har ansvar for tiltak på strekninger som fører anadrome laksefisk eller kreps. Fylkeskommunen har ansvaret for tiltak i vassdrag eller deler av vassdrag som ikke fører anadrome laksefisk eller kreps. Dersom det på den aktuelle strekningen finnes arter eller bestander av innlandsfisk som fylkeskommunen ikke har forvaltningsansvar for, skal avgjørelser fattes i samråd med statsforvalteren. Fysiske tiltak etter første ledd som kan medføre spredning av organismer som ikke er av stedegen stamme, krever tillatelse etter forskrift om fremmede organismer. Tillatelse etter forskrift om fremmede organismer kreves likevel ikke hvis tiltaket kun kan medføre spredning av innlandsfisk innen samme kultiveringssone."]
[null,null,"",""]
["Lov om laksefisk og innlandsfisk (lakse og innlandsfiskeloven)"," § 7 Regulering av utbygging og annen virksomhet og §7a Nasjonale laksevassdrag og nasjonale laksefjorder","Lov om laksefisk og innlandsfisk (lakse og innlandsfiskeloven) § 7 Regulering av utbygging og annen virksomhet og §7a Nasjonale laksevassdrag og nasjonale laksefjorder","Lov om laksefisk og innlandsfisk (lakse og innlandsfiskeloven) § 7 Regulering av utbygging og annen virksomhet og §7a Nasjonale laksevassdrag og nasjonale laksefjorder","Lovens formål er å sikre at naturlige bestander av anadrome laksefisk, innlandsfisk og deres leveområder samt andre ferskvannsorganismer forvaltes i samsvar med naturmangfoldloven og slik at naturens mangfold og produktivitet bevares. Innenfor disse rammer skal loven gi grunnlag for utvikling av bestandene med sikte på økt avkastning, til beste for rettighetshavere og fritidsfiskere. Loven er hjemmelsgrunnlaget for forskrift om fysiske tiltak i vassdrag og mulighet for myndighetene til å gi pålegg om utbedring. "]
[null,null,"",""]
["Kulturminneloven"," § 3 Forbud mot inngrep i automatisk fredete kulturminner","Kulturminneloven § 3 Forbud mot inngrep i automatisk fredete kulturminner","Kulturminneloven § 3 Forbud mot inngrep i automatisk fredete kulturminner","Ingen må – uten at det er lovlig etter § 8 – sette i gang tiltak som er egnet til å skade, ødelegge, grave ut, flytte, forandre, tildekke, skjule eller på annen måte utilbørlig skjemme automatisk fredet kulturminne eller fremkalle fare for at dette kan skje."]
["Kulturminneloven"," §9 undersøkelsesplikt","Kulturminneloven §9 undersøkelsesplikt","Kulturminneloven §9 undersøkelsesplikt","Kulturminner og kulturmiljøer med deres egenart og variasjon skal vernes både som del av vår kulturarv og identitet og som ledd i en helhetlig miljø- og ressursforvaltning. Ved planlegging av offentlige og større private tiltak plikter den ansvarlige leder eller det ansvarlige forvaltningsorgan å undersøke om tiltaket vil virke inn på automatisk fredete kulturminner på en måte som nevnt i § 3 første ledd, jfr. § 8 første ledd."]
[null,null,"",""]
["Lov om matproduksjon og mattrygghet (matloven)"," § 18 Plantehelse","Lov om matproduksjon og mattrygghet (matloven) § 18 Plantehelse","Lov om matproduksjon og mattrygghet (matloven) § 18 Plantehelse","Enhver skal utvise nødvendig aktsomhet, slik at det ikke oppstår fare for utvikling eller spredning av planteskadegjørere. Planter skal ikke omsettes eller flyttes når det er grunn til mistanke om planteskadegjørere som kan gi vesentlige samfunnsmessige konsekvenser. Kongen kan gi nærmere forskrifter for å forebygge, overvåke og bekjempe planteskadegjørere, herunder om: a) klassifisering og gruppering av planteskadegjørere, b: oppretting av soner, c: krav til planter, gjenstander, produkter og organismer som kan medføre risiko for spredning av planteskadegjørere, d: plikt til å informere om restriksjoner pga. planteskadegjørere, herunder plikt til å tinglyse restriksjoner på eiendommen. \nBestemmelsen viser grunnlaget for å sette krav om å handtere jordbruksjord innenfor samme eiendom. Loven gir hjemmel for ulike forskrifter innen plantehelse. Det er store økonomiske konsekvenser av å spre farlige planteskadegjørere til eiendommer med spesialproduksjoner og til andre som kan bli pålagt karantene og utestengt fra slik produksjon. "]
["Jordlova"," § 9 Bruk av dyrka og dyrkbar jord","Jordlova § 9 Bruk av dyrka og dyrkbar jord","Jordlova § 9 Bruk av dyrka og dyrkbar jord","Dyrka jord må ikkje brukast til føremål som ikkje tek sikte på jordbruksproduksjon. Dyrkbar jord må ikkje disponerast slik at ho ikkje vert eigna til jordbruksproduksjon i framtida. Departementet kan i særlege høve gi dispensasjon dersom det etter ei samla vurdering av tilhøva finn at jordbruksinteressene bør vika. Ved avgjerd skal det mellom anna takast omsyn til godkjende planar etter plan- og bygningslova, drifts- eller miljømessige ulemper for landbruket i området, kulturlandskapet og det samfunnsgagnet ei omdisponering vil gi. Det skal òg takast omsyn til om arealet kan førast attende til jordbruksproduksjon. Det kan krevjast lagt fram alternative løysingar. Samtykke til omdisponering kan givast på slike vilkår som er nødvendige av omsyn til dei føremåla lova skal fremja. Dispensasjonen fell bort dersom arbeid for å nytta jorda til det aktuelle føremålet ikkje er sett igang innan tre år etter at vedtaket er gjort."]
["Forskrift om floghavre"," §8-10","Forskrift om floghavre §8-10","Forskrift om floghavre §8-10","Krav om rengjøring av maskiner, krav om søknad til mattilsynet ved flytting av jord med floghavre fra en eiendom til en annen. "]
["Forskrift om planter og tiltak mot planteskadegjørere","Kap. I og II og vedlegg 1 og 2. ","Forskrift om planter og tiltak mot planteskadegjørereKap. I og II og vedlegg 1 og 2. ","","Forskriften definerer farlige planteskadegjørere og gir Mattilsynet fullmakt til å fastsette tiltak inkl. desinfeksjoner og dyrkingsforbud/karantene. Mange av disse spres med jord fra en eiendom til neste. Derfor aktuelt med god kartlegging og krav til å holde jord fra dyrka mark innenfor samme eiendom og renhold av maskiner. Spredning av noen av disse organismene har store økonomiske konsekvenser og kan utløse betydelige erstatningskrav. "]
["Forskrift om tekniske krav til byggverk (Byggteknisk forskrift / TEK -17)"," Kap 9 Ytre miljø","Forskrift om tekniske krav til byggverk (Byggteknisk forskrift / TEK -17) Kap 9 Ytre miljø","Forskrift om tekniske krav til byggverk (Byggteknisk forskrift / TEK -17) Kap 9 Ytre miljø","Byggverk skal prosjekteres, oppføres, driftes og rives på en måte som medfører minst mulig belastning på naturressurser og det ytre miljøet. Byggavfallet skal håndteres tilsvarende. §9-2 - §9-9 stiller krav blant annet krav til bruk av miljøskadelige stoffer, byggavfall, avfallsplan, miljøsaneringsbeskrivelse, avfallssortering og sluttrapport for avfall. "]
[null,null,"",""]
["Forskrift om gjennvinning og behandling av avfall (avfallsforskriften)"," Kap 9. Deponering av avfall. §9-3 Definisjoner, §9-4 Forbud mot deponering av visse avfallstyper, §9-5 Kategorier av deponier, §9-6 Avfall som tillates deponert på de ulike deponikategoriene. Vedlegg II - Karakterisering og kriterier for mottak av avfall","Forskrift om gjennvinning og behandling av avfall (avfallsforskriften) Kap 9. Deponering av avfall. §9-3 Definisjoner, §9-4 Forbud mot deponering av visse avfallstyper, §9-5 Kategorier av deponier, §9-6 Avfall som tillates deponert på de ulike deponikategoriene. Vedlegg II - Karakterisering og kriterier for mottak av avfall","Forskrift om gjennvinning og behandling av avfall (avfallsforskriften) Kap 9. Deponering av avfall. §9-3 Definisjoner, §9-4 Forbud mot deponering av visse avfallstyper, §9-5 Kategorier av deponier, §9-6 Avfall som tillates deponert på de ulike deponikategoriene. Vedlegg II - Karakterisering og kriterier for mottak av avfall","Formålet med bestemmelsene i dette kapitlet er å sikre at deponering av avfall skjer på en forsvarlig og kontrollert måte slik at skadevirkninger på miljøet og menneskers helse forebygges eller reduseres så langt det er mulig. Generelle kontraktsbestemmelser for avfall er gitt i kap.C i SVV's kontraktsmaler. Vedlegg II i forskriften beskriver detaljer om basiskarakterisering av avfall som avfallsprodusenten (SVV) skal følge. Avfall skal også rapporteres i ELRAPP. "]
["Forskrift om gjennvinning og behandling av avfall (avfallsforskriften)"," Kap 11. Farlig avfall, § 11-2 om definisjon av farlig avfall, §11-5 Forsvarlig oppbevaring av farlig avfall, §11-8 Leveringsplikt, §11-12 Virksomhetens deklarasjonsplikt om avfallets innhold, ","Forskrift om gjennvinning og behandling av avfall (avfallsforskriften) Kap 11. Farlig avfall, § 11-2 om definisjon av farlig avfall, §11-5 Forsvarlig oppbevaring av farlig avfall, §11-8 Leveringsplikt, §11-12 Virksomhetens deklarasjonsplikt om avfallets innhold, ","Forskrift om gjennvinning og behandling av avfall (avfallsforskriften) Kap 11. Farlig avfall, §11-5 Forsvarlig oppbevaring av farlig avfall, §11-8 Leveringsplikt, §11-12 Virksomhetens deklarasjonsplikt om avfallets innhold, ","Bestemmelsene i dette kapitlet har til formål å sikre at farlig avfall tas hånd om på en slik måte at det ikke skaper forurensning eller skade på mennesker eller dyr, eller fare for dette, og å bidra til et hensiktsmessig og forsvarlig system for håndtering av farlig avfall, Bestemmelsene i dette kapitlet gjelder oppbevaring, transport og håndtering av farlig avfall. Vedlegg 1 - Den europeiske avfallslisten (EAL) beskriver avfallskoder og Vedlegg 2 beskriver Kriterer som gjør avfall til farlig avfall."]
["Forskrift om gjennvinning og behandling av avfall (avfallsforskriften)"," Kap 14A Betong og tegl fra riveprosjekter","Forskrift om gjennvinning og behandling av avfall (avfallsforskriften) Kap 14A Betong og tegl fra riveprosjekter","Forskrift om gjennvinning og behandling av avfall (avfallsforskriften) Kap 14A Betong og tegl fra riveprosjekter","Bestemmelsene i dette kapitlet gjelder rivning av byggverk eller del av byggverk i betong eller tegl og bruk av betong og tegl fra riveprosjekter til anleggsarbeid, inkludert bygging av vei eller parkeringsplass, etablering av støyvoll og igjenfylling etter graving"]
[null,null,"",""]
["Lov om kontroll med produkter og forbrukertjenester (Produktkontrollloven)"," § 3 a. Substitusjonsplikt","Lov om kontroll med produkter og forbrukertjenester (Produktkontrollloven) § 3 a. Substitusjonsplikt","Lov om kontroll med produkter og forbrukertjenester (Produktkontrollloven) § 3 a. Substitusjonsplikt","Virksomhet som bruker produkt med innhold av kjemisk stoff som kan medføre virkning som nevnt i § 1 skal vurdere om det finnes alternativ som medfører mindre risiko for slik virkning. Virksomheten skal i så fall velge dette alternativet, hvis det kan skje uten urimelig kostnad eller ulempe. ",null,"Tema beskrevet i Veileder til YM plan. Krav til kjemikaliehåndtering er en del av standard kontraktsmaler. Kap C. "]
[null,null,"",""]
["Klimaloven"," § 3 Klimamål for 2030","Klimaloven § 3 Klimamål for 2030","Klimaloven § 3 Klimamål for 2030","Målet skal være at klimagassutslippene i 2030 reduseres med minst 50 og opp mot 55 prosent fra utslippsnivået i referanseåret 1990."]
[null,null,"",""]
["Plan og bygningsloven"," §3.1 Oppgaver og hensyn i planlegging etter loven","Plan og bygningsloven §3.1 Oppgaver og hensyn i planlegging etter loven","Plan og bygningsloven §3.1 Oppgaver og hensyn i planlegging etter loven","Innenfor rammen av § 1-1 skal planer etter denne lov: a) sette mål for den fysiske, miljømessige, økonomiske, sosiale og kulturelle utviklingen i kommuner og regioner, avklare samfunnsmessige behov og oppgaver, og angi hvordan oppgavene kan løses, b) sikre jordressursene, kvaliteter i landskapet og vern av verdifulle landskap og kulturmiljøer, c) sikre naturgrunnlaget for samisk kultur, næringsutøvelse og samfunnsliv, d) legge til rette for verdiskaping, næringsutvikling og tilstrekkelig boligbygging, e) legge til rette for god forming av bygde omgivelser, gode bomiljøer og gode oppvekst- og levekår, f) fremme befolkningens helse og motvirke sosiale helseforskjeller, samt bidra til å forebygge kriminalitet, g) ta klimahensyn gjennom reduksjon av klimagassutslipp og tilpasning til forventede klimaendringer, herunder gjennom løsninger for energiforsyning, areal og transport, h) fremme samfunnssikkerhet ved å forebygge risiko for tap av liv, skade på helse, miljø og viktig infrastruktur, materielle verdier mv, i) legge til rette for helhetlig forvaltning av vannets kretsløp, med nødvendig infrastruktur. Planleggingen skal fremme helhet ved at sektorer, oppgaver og interesser i et område ses i sammenheng gjennom samordning og samarbeid om oppgaveløsning mellom sektormyndigheter og mellom statlige, regionale og kommunale organer, private organisasjoner og institusjoner, og allmennheten. Planleggingen skal bygge på økonomiske og andre ressursmessige forutsetninger for gjennomføring og ikke være mer omfattende enn nødvendig. Planer skal bidra til å gjennomføre internasjonale konvensjoner og avtaler innenfor lovens virkeområde.Vedtatte planer skal være et felles grunnlag for kommunal, regional, statlig og privat virksomhet i planområdet"]
["Plan og bygningsloven"," Kap. 4 - Generelle utredningskrav","Plan og bygningsloven Kap. 4 - Generelle utredningskrav","Plan og bygningsloven Kap. 4 - Generelle utredningskrav","§4-1 Planprogram, §4-2 Planbeskrivelse og konsekvensutredning, § 4-3 Samfunnsikkerhet og risiko og sårbarhetsanalyse"]
[null,null,"",""]
[null,null,"",""]
["Forskrift om konsekvensutrending","Kap.2 - Planer og tiltak som omfattes av forskriften","Forskrift om konsekvensutrendingKap.2 - Planer og tiltak som omfattes av forskriften","Forskrift om konsekvensutrendingKap.2 - Planer og tiltak som omfattes av forskriften","Formålet med forskriften er å sikre at hensynet til miljø og samfunn blir tatt i betraktning under forberedelsen av planer og tiltak, og når det tas stilling til om og på hvilke vilkår planer eller tiltak kan gjennomføres.  §6 Planer og tiltak som alltid skal konsekvensutredes og ha planprogram eller melding, § 7 Planer og tiltak etter andre lover som alltid skal konsekvensutredes, men ikke ha melding § 8 Planer og tiltak som skal konsekvensutredes hvis de kan får vesentlige virkninger for miljø eller samfunn"]
["Forskrift om konsekvensutrending","Kap. 3 - Vurdering av om planer eller tiltak etter §8 krever konsekvensutredning","Forskrift om konsekvensutrendingKap. 3 - Vurdering av om planer eller tiltak etter §8 krever konsekvensutredning","Forskrift om konsekvensutrendingKap. 3 - Vurdering av om planer eller tiltak etter §8 krever konsekvensutredning"]
["Forskrift om konsekvensutrending"," Kap. 5 - Innholdet i konsekvensutredningen","Forskrift om konsekvensutrending Kap. 5 - Innholdet i konsekvensutredningen","Forskrift om konsekvensutrending Kap. 5 - Innholdet i konsekvensutredningen","Konsekvensutredningen skal ta utgangspunkt i krav til dokumentasjon som følger dette kapittelet i forskriften. §18 særlig om overordnede planer: Konsekvensutredningen av arealdelen skal beskrive virkninger utbygging av nye områder eller vesentlig endret arealbruk i utbygde områder kan få for miljø og samfunn. Det skal også gis en vurdering av virkningene av de samlede arealbruksendringene i planen. Inneholder planen bare strategier for fremtidig arealbruk, skal det vurderes hvordan disse vil påvirke miljø og samfunn. Metoden i V712 dekker kravene etter KU-forskriften. "]
["Internkontroll forskiften","§ 5 Innholdet i det systematiske helse-, miljø- og sikkerhetsarbeidet. Krav til dokumentasjon","Internkontroll forskiften§ 5 Innholdet i det systematiske helse-, miljø- og sikkerhetsarbeidet. Krav til dokumentasjon","Internkontroll forskiften","Internkontroll innebærer at virksomheten skal:\t\n1. sørge for at de lover og forskrifter i helse-, miljø- og sikkerhetslovgivningen som gjelder for virksomheten er tilgjengelig, og ha oversikt over de krav som er av særlig viktighet for virksomheten\n2. sørge for at arbeidstakerne har tilstrekkelig kunnskaper og ferdigheter i det systematiske helse-, miljø- og sikkerhetsarbeidet, herunder informasjon om endringer\n3. sørge for at arbeidstakerne medvirker slik at samlet kunnskap og erfaring utnyttes\n4. fastsette mål for helse, miljø og sikkerhet\t\n5. ha oversikt over virksomhetens organisasjon, herunder hvordan ansvar, oppgaver og myndighet for arbeidet med helse, miljø og sikkerhet er fordelt\t\n6. kartlegge farer og problemer og på denne bakgrunn vurdere risiko, samt utarbeide tilhørende planer og tiltak for å redusere risikoforholdene\t\n7. iverksette rutiner for å avdekke, rette opp og forebygge overtredelser av krav fastsatt i eller i medhold av helse-, miljø- og sikkerhets- lovgivningen\t\n8. foreta systematisk overvåkning og gjennomgang av internkontrollen for å sikre at den fungerer som forutsatt\t\n\nPunkt 4 til 8 må dokumenteres skriftlig",null,"Samsvarsevaluering\nYM-plan (Kvalitetsplan)\nELRAPP/Synergi"]
[null,null,"",""]
["For bygge prosjekt: Reguleringsbestemmelser for prosjektet"," Aktuelle bestemmelser settes inn for enkeltprosjekt","For bygge prosjekt: Reguleringsbestemmelser for prosjektet Aktuelle bestemmelser settes inn for enkeltprosjekt","For bygge prosjekt: Reguleringsbestemmelser for prosjektet Aktuelle bestemmelser settes inn for enkeltprosjekt"]
[null,null,"",""]
["N100 Veg- og gateutforming",null,"N100 Veg- og gateutforming","N100 Veg- og gateutforming"]
["N200 Vegbygging (digitale vegnormaler)",null,"N200 Vegbygging (digitale vegnormaler)","N200 Vegbygging (digitale vegnormaler)"]
["N400 Bruprosjektering","Krav 1.1.2-2 Skal",{"$f":"_xlfn.CONCAT(A70:B70)","v":"N400 BruprosjekteringKrav 1.1.2-2 Skal"},null,"Prosjektert løsning skal optimaliseres med hensyn til klimagass, miljø og bærekraft, innenfor prosjektets tekniske og økonomiske rammer"]
["N500 Vegtunneler (digitale vegnormaler)",null,"N500 Vegtunneler (digitale vegnormaler)","N500 Vegtunneler (digitale vegnormaler)"]
["V712 Konsekvensanalyser",null,"V712 Konsekvensanalyser","V712 Konsekvensanalyser"]
["Andre (se totaloversikt og angi i merknadsfelt)",null,{"$f":"_xlfn.CONCAT(A73:B73)","v":"Andre (se totaloversikt og angi i merknadsfelt)"},"Andre (se totaloversikt og angi i merknadsfelt)"]
[null,null,""]

{"sheet":"Hjelpedok. for driftskontrakter","index":7,"n_rows":85,"n_cols":23,"rows_kept":85,"cut":false,"hidden":false,"merged":[[3,1,3,2],[3,3,3,4],[3,5,3,10],[0,1,0,2],[0,3,0,4],[0,5,0,10],[1,1,1,2],[1,3,2,4],[1,5,2,10],[2,1,2,2]]}
["PROSJEKT: ",null,null,"FORMÅL:"]
["STED: ",null,null,"PROSJEKTINFORMASJON "]
["DATO: "]
["UTARBEIDET AV :",null,null,"GRUNNLAGSDATA:"]
[]
["Fagtema","Problemstilling","Vegelement","Profil-nummer fra-til","Miljøkrav (Samsvarsforpliktelse) og egne mål","Uønsket hendelse (UH)","Kons før tiltak","Sanns før tiltak","Kolonne1","Risiko før tiltak","Tiltak gitt i kontraktsmal","Tiltak for spesiell beskrivelse/krever strekningsvurderinger","Frist/ framdriftsplan","Ansvar","Kons etter tiltak","Sanns etter tiltak","Kolonne2","Risiko etter tiltak","Prosesskode (tiltak i kontraktsmal)","Kontraktsspesifikke tiltak","Tegningstype/-nummer","Virksomhet","Merknad"]
["Luftforurensing","Spredning av luftforurensing som kan være skadelig for befolkningen. ",null,null,"Forurensingsforskriften kap. 7, T-1520 (2012)     ","Helseplage/for tidlig død grunnet påvirkning fra luftforurensing fra vegtrafikk",5,2,{"$f":"IF(G7=1,\"1\",\"0\")+IF(G7=2,5,0)+IF(G7=3,10,0)+IF(G7=4,25,0)+IF(G7=5,75,0)","v":75},{"$f":"H7*I7","v":150},"Kritiske perioder er vår før feiing og høst før snø. Viktigste tiltak er rengjøring etter vintersesong. ","Feiing på natt i sentrumsnære områder (identifiser sentrumsnære områder her). Økt renhold ved sårbar bebyggelse nær veg, dvs. barnehage, skole, institusjoner (skriv inn strekninger her). Vurdere krav til vanning ved feiing. ",null,"EN",5,1,{"$f":"O7*P7","v":5},{"$f":"P7*Q7","v":5},"73.31","73.31 c",null,null,"Instruks for luftkvalitet skal  utarbeides/tilpasses ved behov"]
["Klimagassutslipp","Klimagassutslipp knyttet til kjøretøy",null,null,"Statens vegvesens mål om 50% reduksjon av klimagassutslipp innen 2030 (NTP)","Større utslipp fra kjøretøyparken enn nødvendig",4,2,25,50,"Det skal søkes benyttet metoder, maskiner og utstyr som minimaliserer utslipp av klimagasser og andre negative påvirkninger av ytre miljø. Rapportering av energi- og drivstofforbruk  og kjørte kilometer/timer månedlig. Bensin - eller dieseldreven kjøretøyer som benyttes som eget transportkjøretøy ved regningsarbeider forutsettes godkjent etter EURO 6/VI eller bedre.","Risiko vurderes etter hvilke tiltak som er satt i kontrakten. Målet er reduksjon på 50%.",null,"BH",null,null,0,0,"C3 43.11",null,null,null,"Tilbud fra kontrakt"]
["Andre forhold/generelt fagtemaer","Informasjon om Ytre miljø",null,null,null,"Manglende eller mangelfull informasjon om ytre miljø til entreprenør",4,2,25,50,"Det avholdes planmøte for drift og vedlikehold av grøntarealer før hovedsesongen. Aktuelle ytre miljø tema skal være del av møtet (fremmede arter, artsrike vegkanter, grøntanlegg, bruk av plantevernmidler etc).","Spesielle forhold i kontrakten inkluderes i møtet ",null,"EN",5,1,5,5,"C3 8.3.5","C3 8.3.5"]
["Naturmangfold","Spre fremmede arter som skal begrenses (hagelupin, russekål, kanadagullris)",null,null,"Naturmangfoldloven, kap. 4 og fremmedartsforskriften","Mangelfull kantklipp",3,5,10,50,null,"Utarbeide oversikt over områder med fremmede arter i D2-S34 (og NVDB). Arter som inkluderes skal ha regionale risikovurderinger, f.eks. ved hjelp av handlingsplaner fra Statsforvalter. Artene nevnt er eksempler på arter som kan ha mål \"begrense spredning\". Her må det gjøre regionale vurderinger. Gjelder alle punkter med fremmede arter. Strekninger som krever flere klipp (som ikke allerede fanges opp av generelle klippekrav) eller slått til tidspunkt tilpasset blomstring (feks før 15. juni) må spesifiseres i kontrakt.",null,"EN",3,2,6,12,"C3 43.5, 74.8c, 74.821c"]
["Naturmangfold","Spre fremmede arter som skal bekjempes (park- og kjempeslirekne, kjempespringfrø, kjempebjørnekjeks)",null,null,"Naturmangfoldloven, kap. 4 og fremmedartsforskriften","Spre fremmede arter som skal bekjempes, f.eks. ved å foreta kantklipp uten nødvendige hensyn",5,5,75,375,null,"Entreprenør skal sørge for at utførende personell er kjent med beliggenhet og ulike tiltak for de aktuelle områdene i henhold til vedlegg D2-S34. Speseilt gjelder dette slirekne som ikke skal slås. Hvordan dette skal sikres innarbeides i kontrakt (feks fysisk merking, bruk av app).",null,"EN",4,2,8,16,"74.82","D2-S34"]
["Naturmangfold","Spre fremmede arter som skal bekjempes (park- og kjempeslirekne, kjempespringfrø, kjempebjørnekjeks)",null,null,"Naturmangfoldloven, kap. 4 og fremmedartsforskriften","Mangelfull utført bekjempelse av kjempebjørnekjeks, kjempespringfrø, parkslikekne (arter tilpasses)",2,5,5,25,"Kjempebjørnekjeks, tromspalme, slirekne og kjempespringfrø (og eventuelt andre arter) skal bekjempes i henhold til instrukser","Utarbeide oversikt over områder med fremmede arter i D2-S34 (og NVDB). Arter som inkluderes skal ha regionale risikovurderinger, f.eks. ved hjelp av handlingsplaner fra Statsforvalter.  ",null,"EN",2,3,6,18,"74.8, 74.81, 74.82, 74.821,C3 43.5","D2- ID7480d-f, D2-S34"]
["Naturmangfold","Artsrike vegkanter og verneområder med direkte tilknytning/nærhet til forekomster av fremmede skadelige arter (tas med om relevant)",null,null,"Naturmangfoldloven, kap. 4 og fremmedartsforskriften","Fremmede arter spres fra veg inn i verneområder",5,3,75,225,null,"Forekomster ved verneområder og artsrike vegkanter tas opp spesielt på grøntmøter og følges opp spesielt i kontrollplan e.l. for å sørge for at tiltak gjennomføres i disse områdene",null,"BH",null,null,0,0,null,"C3 8.3.5"]
["Naturmangfold","Spre fremmede arter fra innkjøpt jord",null,null,"Naturmangfoldloven, kap. 4 og fremmedartsforskriften","Spredning av fremmede arter via innkjøpt jord",4,2,25,50,null,"Eventuell innkjøpt jord skal være fri for rotugras og fremmede arter",null,null,null,null,0,0,null,"74.81"]
["Naturmangfold","Kantsoner ned mot vassdrag reduseres/skades ved f.eks. siktrydding eller kantklipp",null,null,"Vannressursloven","Skade på kantsoner",4,5,25,125,null,"Vegetasjon mellom veg og vassdrag skal beholdes. Skal det tynnes/hugges kreves egne, stedsspesifikken vurderinger og dispensasjonssøknad. Oversikt over aktuelle kantsoner i slåttesona (f.eks. er i gjengroing)",null,"BH",4,2,8,16,null,"C3 43.5"]
["Naturmangfold","Skade på vilt",null,null,"Dyrevelferdsloven, Naturmangfoldloven","Viltpåkjørsler med død eller alvorlig skade på vilt i faunapassasjer",2,5,5,25,"Faunapassasjer skal driftes jmf intruks","Faunapassasjer listes i D2-S18. Instruks for de aktuelle faunpassasjene må innarbeides i D2-ID7480b. Viltskilt med aktiviering må følges opp",null,null,2,3,6,18,"74.821","74.821a, D2-S18, D2-ID7480b"]
["Naturmangfold","Skade på vilt",null,null,"Dyrevelferdsloven, Naturmangfoldloven","Viltpåkjørsler med død eller alvorlig skade på vilt utenfor faunapassasjer",2,4,5,20,null,"Skaffe oversikt over eventuelle strekninger med behov for tiltak (f.eks. vegetasjonsrydding)",null,null,null,null,0,0,null,"74.821c"]
["Naturmangfold","Ivaretagelse av verdifulle trær",null,null,null,"Verdifulle trær skades av vegdrift",3,5,10,50,null,"Skaffe oversikt over verdifulle trær, oversikt i D2-S07. Rydding og felling av trær vurderes i hvert enkelt tilfelle.  Innarbeide tiltak, feks at greiner som fjernes skal legges inntil treet for å sikre levevilkår for insekter og fugler som lever av/i døde greiner.\n\nTrærne skal ikke skades av kantslåttmaskinen eller annet utstyr.",null,null,null,null,0,0,null,"74.811, D2-S05"]
["Naturmangfold","Saltskader på trær. Annet vegetasjon vurderes ikke da det ikke er påvist effekt av salting på annet enn trær",null,null,"Naturmangfoldloven             ","Trær skades av vegsalt",3,4,10,40,null,"Gjøre stedspesifikk risikovurdering av strekninger som ikke kan saltes på grunn av sårbar natur ",null,null,null,null,0,0,null,"C3 43.5"]
["Naturmangfold","Artsrike vegkanter (eller vegkanter med rødlistearter) skades av plantevernmidler ",null,null,"Naturmangfoldloven","Artsrike vegkanter (eller vegkanter med rødlistearter) skades av plantevernmidler",4,1,25,25,"Det er generelt forbud mot bruk av plantevernmidler. Eventuell bruk må godkjennes av byggherre. ","Ikke gi tillaltelse til bruk av plantevernmidler i disse områdene.",null,null,null,null,0,0,"C3 43.5, D2-S36"]
["Naturmangfold","Artsrike vegkanter og rødlistede arter i vegkant",null,null,"Naturmangfoldloven","Lokaliteter med artsrik vegkant/rødlistede arter skades i kantklipp",4,3,25,75,null,"Utarbeide oversikt over slike områder i D2-S35 og tilhørende hensyn for drift.  Oppfølging ved grøntmøte i forkant av klippesesongen. ",null,null,null,null,0,0,null,"D2-S35, 74.821c"]
["Naturmangfold","Rødlistede arter/artsrik vegkant",null,null,"Naturmangfoldloven","Lokaliteter med rødlistede arter skades i grøfterensk",4,2,25,50,null,"Er grøfterensk bestillingsarbeid i kontrakten? Gjøres vurderinger av rødlistede arter i forbindelse med bestilling. Del av kontrakten? Gå gjennom strekninger hvor det planlegges grøfterensk og vurdere disse. Tiltak kan ev. være å legge tilside toppmasser med frø. ",null,null,null,null,0,0,null,"48.2, 48.3"]
["Naturmangfold","Grøfterensk",null,null,"Naturmangfoldloven, § 4 og fremmedartsforskriften","Spre fremmede arter ved grøfterensk",4,4,25,100,null,"Er grøfterensk bestillingsarbeid i kontrakten? Gjøres vurderinger av fremmede arter i forbindelse med bestilling. Del av kontrakten? Gå gjennom strekninger hvor det planlegges grøfterensk og vurdere disse. Ved arbeid i forekomst med fremmede arter skal massene behandles slik at spredning unngås, det gjennomføres risikovurdering jmf naturmangfoldloven ved gjenbruk. Følges opp i ENs avfallplan dersom massene skal leveres. Maskiner og utstyr skal rengjøres på stedet.       ",null,null,null,null,0,0,null,"48.2, 48.3"]
["Naturmangfold","Vasking, vann til vegformål",null,null,"Naturmangfoldloven, kap. 4 og fremmedartsforskriften","Spre fremmede skadelige arter ved flytting av vann",4,2,25,50,null,"Risikovurdering dersom det ikke brukes kommunalt vann, må knyttes spesielt til vassdrag med smitte.",null,null,null,null,0,0,null,"C3 43.5"]
["Naturmangfold","Driftstiltak og akutte hendelser som forringer artsrik vegkant",null,null,"Naturmangfoldloven ","Tidlig slått av artsrike vegkanter som skal slås sent",4,4,25,100,null,"Artsrike sideområder er listet i kap. D2- S35. Eventuelt andre områder som er viktige for biologisk mangfold og skal ha spesiell slått. Dette listes også i kap. D2-S35. Entreprenør skal sørge for at utførende personell er kjent med beliggenhet og ulike restriksjoner/skjøtselsanbefalinger for de aktuelle områdene i henhold til vedlegg D2-S35.",null,null,null,null,0,0,null,"74.821c, D2-S35"]
["Naturmangfold","Kantslått som skader prioritert planteart",null,null,"Naturmangfoldloven, prioritert art ","Skade på prioritert planteart som følge av kantslått ",5,2,75,150,null,"Undersøke om det er prioriterte plantearter i kontraktsområdet. Det må søkes disp for å kantslå for disse. Tiltak må innarbeides i D2-S35",null,null,null,null,0,0,null,"D2-S35, 74.821c"]
["Naturmangfold","Skader fra drift på prioritert art",null,null,"Naturmangfoldloven, prioritert art ","Skade på prioritert art generelt",5,1,75,75,null,"Undersøke om det er prioriterte arter i kontraktsområdet som krever ytterligere hensyn. Innarbeides i D2-S35 (eller er det S07 som er rett her?)",null,null,null,null,0,0]
["Naturmangfold","Skade fra drift på utvalgt naturtype",null,null,"Naturmangfoldloven kap. 6, utvalgt naturtype","Skade på utvalgt naturtype",5,2,75,150,null,"Skaffe oversikt over utvalgte naturtyper i kontrakten. Innarbeides i D2-S35 (eller S7??) Tiltak må sees i sammenheng med naturtypen. Eks: Hul eik; skal ivaretas. Alle tiltak må søkes om. Slåttemark; prioritere å begrense fremmede arter, ikke kantslått. Utvalgt naturtype i skog; prioritere å begrense fremmede arter, ikke siktrydding. Kalksjø; vurderes tiltak for å redusere avrenning ",null,null,null,null,0,0]
["Naturmangfold","Skade på verneområde ved driftsaktivitet",null,null,"Naturmangfoldloven, aktuell forskrift for venreområdet","Driftstiltak utføres innenfor vernegrense",5,2,75,150,null,"Verneområder listes i D2-S07 med tilhørende krav til hensyn for drift ",null,null,null,null,0,0,"C3 43.5","D2-S07"]
["Naturmangfold","Fiskevandringshinder: Kulverter skal holdes åpne for å bevare fiskens og andre vannlevende organismers utbredelsesomåde.  ",null,null,"Naturmangfoldloven, laks- og innlandsfiskeloven","Vandringshindre i fiskeførende kulverter grunnet manglende opprydding/rensk. ",3,2,10,20,"Fiskepassasjer skal ettersees og utbedres for fall ved utløp.","Kartlegge områder med viktige fiskestammer. Disse listes opp i kontrakt. Fiskepassasjer skal ha systematisk inspeksjon og rensk 2 ganger per år:\n\nI perioden januar – februar\ni perioden august\nVegetasjon og uønskede gjenstander som hindrer frie vannveier i passasjen, inkl. eventuell inntaksrist, fjernes.",null,null,null,null,0,0,"48.1, 88.7","C3 43.5"]
["Naturmangfold","Fiskeførende vassdrag",null,null,"Naturmangfoldloven             Laks- og innlandsfiskeloven         ","Påvirke vannkvalitet i  fiskeførende elver og bekker",3,1,10,10,null,"Skaffe oversikt over viktige fiskeførende vassdrag i området. Tilpasse tidspunkt for aktiviteter etter risikovurdering.  ",null,null,null,null,0,0,null,"C3 43.5"]
["Naturmangfold","Skrantesyke ",null,null,"Forskrift om midlertidige tiltak for å begrense spredning av Chronic Wasting Disease (CWD)","Smitte av skrantesyke fra døde dyr",4,2,25,50,"Retningslinjer for håndtering av døde hjortedyr med potensiell smitte er gitt i D2- ID7330a.",null,null,null,null,null,0,0,"D2- ID7330a."]
["Støy","Nattarbeid",null,null,"T1442 og ev. lokale støyforskrifter brytes","Brudd på forskrifter",1,5,1,5,"Driftsaktiviteter flytter seg og ansees slik å ikke utgjøre et stort problem. Ved vedlikeholdsoppgaver som stikkrenneskift, skifte av rekkverk nær bebyggelse e.l. må dette avklares med kommunelegen.",null,null,null,null,null,0,0]
["Støy","Manglende vedlikehold av støyskjermer",null,null,"T1442 og ev. lokale støyforskrifter brytes","Støyskjermer har nedsatt funksjon grunnet dårlig vedlikehold",4,1,25,25,"Skal holdes tette. De fleste strekninger har fått rustet opp støyskjermer de siste årene. Disse skal være iht. krav. ",null,null,null,null,null,0,0]
["Friluftsliv/ by- og bygdeliv","Ulempe for eller skade på tredjeperson",null,null,"Ulempe for eller skade på tredjeperson","Barn eller andre blir påkjørt under drift",5,1,75,75,null,"Vurderes i SHA-plan, skal utføres SJA før arbeidsoperasjoner. Fokus på at SJA er \"reell\", etterspørre på vernerunder.",null,null,null,null,0,0]
["Friluftsliv/ by- og bygdeliv","Ulempe for eller skade på tredjeperson",null,null,"Ulempe for eller skade på tredjeperson","Barn eller andre føler seg utrygge ved ferdsel i områder med driftsaktivitet",3,4,10,40,null,"Vurderes i SHA-plan, skal utføres SJA før arbeidsoperasjoner. Fokus på at SJA er \"reell\", etterspørre på vernerunder.",null,null,null,null,0,0]
["Friluftsliv/ by- og bygdeliv","Ulempe for eller skade på tredjeperson",null,null,"Ulempe for eller skade på tredjeperson","Personer blir hindret offentlig tilgjengelighet til friluftsområder",2,1,5,5,null,"Anees som liten i og med at aktivitetene er mobile",null,null,null,null,0,0]
["Friluftsliv/ by- og bygdeliv","Ulempe for eller skade på tredjeperson",null,null,"Ulempe for eller skade på tredjeperson","Driftsaktiviteter blir til sjenanse eller ubehag for naboer og brukere av veg og sideområder",2,4,5,20,null,"Vurdere nattarbeid, avveining ift. støy. Det skal sikres trygge, universelt utformede passeringsmuligheter forbi arbeidsområdet.",null,null,null,null,0,0]
["Friluftsliv/ by- og bygdeliv","Sprøytemidler",null,null,"Plantevernforskriften","Avdrift fra sprøytemidler virker generende på mennesker eller skader hager",1,1,{"$f":"IF(G39=1,\"1\",\"0\")+IF(G39=2,5,0)+IF(G39=3,10,0)+IF(G39=4,25,0)+IF(G39=5,75,0)","v":1},{"$f":"H39*I39","v":1},"Ikke bruk av plantevernmidler i kontrakten utover bekjempelse av enkelte fremmede skadelige arter/ punktsprøyting, eventuelt avtale med byggeherre. ",null,null,null,null,null,{"$f":"O39*P39","v":0},{"$f":"P39*Q39","v":0}]
["Materialvalg og avfallshåndtering","Fjerning av torvkanter",null,null,"Forurensingsforskriften ","Spre forurenset jord (avfall)",3,2,10,20,"Leveres på godkjent deponi",null,null,null,null,null,0,0,"48.2"]
["Materialvalg og avfallshåndtering","Rensk av grøfter",null,null,"Forurensingsforskriften ","Spre forurenset jord (avfall)",3,2,10,20,"Skal håndteres ifg. avfallsplan til EN. BH må følge opp denne.",null,null,"BH",null,null,0,0,"48.3"]
["Forurensning av jord og vann","Rensk og slamsuging av kummer og oppsamlingsbasseng (sandfag, renseløsninger/rensebasseng)",null,null,"Forurensingsforskriften ","Spre forurenset slam (avfall)",3,2,10,20,"Skal håndteres ifg. avfallsplan til EN. BH må følge opp denne.",null,null,"BH",null,null,0,0,"48.7"]
["Forurensning av jord og vann","Rensk og slamsuging av kummer og oppsamlingsbasseng (sandfag, renseløsninger/rensebasseng)",null,null,"Forurensingsforskriften ","For dårlig vedlikehold gir mangelfull funksjon",3,4,10,40,"Sandfang og kummer skal følges opp systematisk gjennom året og ekstra knyttet til værhendelser. Det samme for rensløsninger og rense-/sedimentasjonsbasseng.",null,null,null,null,null,0,0,"48.7"]
["Forurensning av jord og vann","Rensk og slamsuging av kummer og sandfang knyttet til tunnel ",null,null,"Forurensingsforskriften ","Manglende tømming gir økt forurensing",3,4,{"$f":"IF(G44=1,\"1\",\"0\")+IF(G44=2,5,0)+IF(G44=3,10,0)+IF(G44=4,25,0)+IF(G44=5,75,0)","v":10},{"$f":"H44*I44","v":40},null,"Sandfag og kummer i tunnel bør tømmes både før og etter tunnelvask. Vurderes i hvert enkelt tilfelle.",null,null,null,null,{"$f":"O44*P44","v":0},{"$f":"P44*Q44","v":0}]
["Forurensning av jord og vann","Rensk og slamsuging av kummer og oppsamlingsbasseng (sandfag, renseløsninger/rensebasseng)",null,null,"Forurensingsforskriften ","For dårlig drift og vedlikehold gir mangelfull funksjon- her knyttet til tunnel",4,5,25,125,"BH må ha oversikt over renseanlegg i tunnel og sikre opplæring av entreprenør.  ","Finnes det tunneller som har egne kontrakter i kontraktaområdet?",null,"BH",2,5,10,50,"48.7"]
["Forurensning av jord og vann","Utslipp av tunnelvaskevann - oppfyllelse av utslippstillatelser",null,null,"Forurensingsforskriften ","Oversikt over tunneler",4,5,25,125,null,"Hvilke tunneler har utslippstillatelse, og hvilke ikke?",null,"BH",3,5,15,75]
["Forurensning av jord og vann","Utslippstillatelse for xxx tunnelen",null,null,"Forurensingsforskriften Utslippstillatelse","Tunnel driftes ikke i henhold til utslippstillatelse",null,null,0,0,null,"Kjenne til vilkår i utslippstillatelse og krav til prøvetaking for aktuell tunnel.",null,null,null,null,0,0]
["Forurensning av jord og vann","Sedimentasjon i tunnel",null,null,"Forurensingsloven","Dårligere vannkvalitet enn nødvendig",null,null,0,0,null,"Minimum oppholdstid 25 dager for tilstrekkelig sedimentering, eventuelt andre tiltak for andre renseløsninger enn sedimentering",null,null,null,null,0,0]
["Forurensning av jord og vann","Utslipp av tunnelvaskevann fra tunneller uten renseløsning",null,null,"Forurensingsloven","Skade på omgivelsene som følge av utslipp fra tunnelrenhold fra tunneler uten utslippstillatelse",null,null,0,0,null,"For tunneler uten renseløsning må utslippet miljørisikovurderes. Videre kan man vurdere det om det utføres vask med hyppigere intervall enn tabell i D1 37.21. Begrunnes med aktuell miljøverdi",null,null,null,null,0,0,"37.21"]
["Forurensning av jord og vann","Feiemasser fra tunnel",null,null,"Forurensingsloven","Feiemasser fra tunnel deponeres feil",5,4,75,300,"Leveres til godkjent deponi, mellomlagring må skje uten risiko for spredning","Vann fra feiebil skal også leveres på godkjent mottak",null,null,null,null,0,0]
["Forurensning av jord og vann","Feiemasser fra dagsone",null,null,"Forurensingsloven","Feiemasser fra tunnel deponeres feil",4,4,25,100,"Oppsamlet feiemasser som etter prøvetaking viser høy forurensingsgrad skal behandles som spesialavfall og leveres til godkjent deponi. Det tas prøver av massene innenfor og utenfor tettbebygd strøk for å avdekke forurensingsgrad. Dersom det ikke er tatt prøver må feiemasser regnes som forurensede.  Ved behov for midlertidig lagring av feiemasser skal dette skje i samråd med byggherre","Vann fra feiebil skal også leveres på godkjent mottak",null,null,null,null,0,0]
["Forurensning av jord og vann","Forurensede masser i sideterrenget",null,null,"Forurensingsloven","Spredning av forurensede masser (avfall) ved bestillingsarbeid",5,5,75,375,null,"Er dette bestillingsarbeid i kontrakten? Gjøres vurderinger i forbindelse med bestilling. Del av kontrakten? Gå gjennom strekninger hvor det planlegges grøfterensk og vurdere disse.",null,null,null,null,0,0]
["Forurensning av jord og vann","Bruk av såpe ved tunnellvask",null,null,"Forurensingsforskriften ","Spre forurenset vann/vaskemiddel",1,1,1,1,null,"Vurdere behov for bruk av såpe. Påse at substitusjonsvurderinger er utført. ",null,null,null,null,0,0]
["Forurensning av jord og vann","Renhold av vegger og tak i underganger",null,null,"Forurensingsforskriften ","Spre forurenset vann/vaskemiddel",1,5,1,5,null,"Oppfølging av substitusjonsplikt",null,null,null,null,0,0]
["Forurensning av jord og vann","Behandle olje, diesel og bensinsøl",null,null,"Forurensingsforskriften ","Diesel- og oljesøl",1,5,1,5,null,"Påse gode rutiner ved fylling og sjekk av slanger.",null,null,null,null,0,0]
["Forurensning av jord og vann","Behandle olje, diesel og bensinsøl",null,null,"Forurensingsforskriften","Diesel-/oljesøl blir liggende",2,5,5,25,"Krav om absorberende materiale i maskiner. ","Om det skjer søl på ikke tett flate må søl graves opp.",null,null,1,5,5,25]
["Forurensning av jord og vann","Drift av rensebasseng",null,null,"Forurensingsloven","Feil håndtering av slam",null,null,0,0,"Skal leveres til deponi",null,null,null,null,null,0,0]
["Forurensning av jord og vann","Drift av rensebasseng",null,null,"Forurensingsloven","Forurenset vann kommer ut i resipient",null,null,0,0,null,"Sikre at rensebasseng har god funksjon (slamsuge, rydde vegetasjon, sikre tilgang etc)",null,null,null,null,0,0]
["Forurensning av jord og vann","Bruk av plantevernmidler",null,null,"Plantevernforskriften","Skader på vannlevende organismer og/eller forrigelse av drikkevann ved avrenning",3,1,{"$f":"IF(F59=1,\"1\",\"0\")+IF(F59=2,5,0)+IF(F59=3,10,0)+IF(F59=4,25,0)+IF(F59=5,75,0)","v":0},0,null,"Det skal ikke brukes plantevernmidler i kontrakten, kun for bekjemping av enkelte fremmede skadelige arter.",null,null,null,null,0,0]
["Forurensning av jord og vann","Rengjøring av bruer, vask av støv, skitt og salt fra vinterdrift i bruelementer",null,null,"Forurensingsloven","Avrenning fra forurenset snø/skitt fra bru til ferskvann",2,5,{"$f":"IF(G60=1,\"1\",\"0\")+IF(G60=2,5,0)+IF(G60=3,10,0)+IF(G60=4,25,0)+IF(G60=5,75,0)","v":5},25,null,"Feiebil med oppsug før vask av bru. Fokus på tidspunkt for gjennomføring. Vann fra feiebil må leveres på godkjent mottak.",null,null,null,null,0,0]
["Forurensning av jord og vann","Snødeponering",null,null,"Forurensingsloven","Saltholdig og forurenset snø tømmes i vann og vassdrag",2,2,5,10,"Det er forbudt å tømme snø ut i vann og vassdrag","Dersom det er fare for forurensning til vassdrag og grunn fra et snødeponi, må det søkes om utslippstillatelse fra Statsforvalteren i xxx. Snø fra tettbebygde strøk vil typisk inneholde forurensing som krever slik tillatelse. ",null,"BH",null,null,0,0]
["Forurensning av jord og vann","Strøing med salt",null,null,"Vannforskriften","Påvirkning på vannforekomster",3,4,10,40,null,"Følge opp at EN har fokus på riktig saltbruk. Evt identifisere strekninger med sårbare resipienter som krever ekstra tiltak.",null,null,null,null,0,0]
["Forurensning av jord og vann","Feiemasser er forurensede",null,null,"Forurensingsloven","Feiemasser forurenser sårbar resipient, det feies ut i grøft",3,2,10,20,null,"Krav til oppsamling kun der det er vanskelig å få feid det ut i sideterreng. Identifiser streninger.",null,null,null,null,0,0]
["Landskapsbilde","Ivaretagelse av grøntanlegg og trær",null,null,"Estetikk","Grøntarealer skjøttes ikke tilfredstillende",3,3,10,30,null,"Spesielle beskrivelser for parklike arealer. Vurdere om det trengs oppdatering. D2-S5: Oppdatere/kvalitetssikre innhold","EN",3,3,2,6,12,null,"D2 S5"]
["Landskapsbilde","Ivaretagelse av grøntanlegg og trær",null,null,"Estetikk","Trær skades ved drift",3,4,10,40,null,"Spesielle beskrivelser for trær i parklike og naturlike arealer. Hensynsfull klipping rundt trær. D2-S5 og D2 S35 oppdateres ","EN",3,3,{"$f":"IF(N65=1,\"1\",\"0\")+IF(N65=2,5,0)+IF(N65=3,10,0)+IF(N65=4,25,0)+IF(N65=5,75,0)","v":10},30,300,null,"D2 S5, D2 S35"]
["Landskapsbilde","Ivaretagelse av grøntanlegg og trær",null,null,"Estetikk","Trær skades ved beskjæring",3,2,10,20,null,"Vurdere behov for om beskjæring av trær i parklike arealer skal utføres av sertifisert arborist (fagskoleutdannet, og/eller ISA/ETW-sertifisert) eller anleggsgartner med dokumenterbar erfaring fra tilsvarende arbeider. ","EN",3,1,10,10,100]
["Landskapsbilde","Ivaretagelse av grøntanlegg og trær",null,null,"Estetikk","Vegens frie rom ryddes med slagklipper eller stammen kuttes ved rydding av veiens frie rom",3,4,10,40,"Krav til rene kutt ved utførelse. ",null,"EN",3,1,10,10,100]
["Landskapsbilde","Ivaretagelse av grøntanlegg og trær",null,null,"Estetikk","Snøopplag i grøntanlegg skader planter",3,3,10,30,null,"Pressisere snøopplag i kontrakt. Tunge kjøretøy skal ikke benyttes i grøntanlegg eller over røtter i mykt underlag.",null,null,null,0,0,0]
["Landskapsbilde","Ivaretagelse av grøntanlegg og trær",null,null,"Estetikk","Områder med skjøtselsplaner følges ikke opp ihht. plan",2,5,5,25,null,"Det er områder med egne skjøtselsplaner, vedlegg S-05, D2-S01","EN",2,2,5,10,50]
["Landskapsbilde","Ivaretagelse av grøntanlegg og trær",null,null,"Estetikk","Manglende skjøtselsplaner for grøntanlegg",2,5,5,25,null,"Utarbeide skjøtselsplaner",null,null,null,0,0,0]
["Landskapsbilde","Ivaretagelse av utsmykningsobjekter",null,null,"Estetikk","Hærverk utført av tredjepart, skade ved drift, feil eller mangelfullt vedlikehold av utsmykningsobjekter.",null,null,0,{"$f":"H71*I71","v":0},null,"Lage oversikt over alle utsmykningsobjekter med tiltak for vedlikehold og drift i kap. D2-S-31",null,null,null,null,{"$f":"O71*P71","v":0},{"$f":"P71*Q71","v":0}]
["Kulturarv","Ødelegge eller forringe kulturminner ved driftsoppgaver",null,null,"Kulturminneloven","Skade på automatisk fredede kulturminner",5,4,75,300,"Kontraktsarbeidet skal ikke komme i konflikt med kulturminner med eller uten forvaltningsplaner. ","Kulturminner med krav om spesielle tiltak innarbeides i kontrakt kap. D2- S33. Identifisere driftsoppgaver som kan påvirke kulturminnene og innarbeide i kontrakt.",null,null,null,{"$f":"IF(N72=1,\"1\",\"0\")+IF(N72=2,5,0)+IF(N72=3,10,0)+IF(N72=4,25,0)+IF(N72=5,75,0)","v":0},0,0]
["Kulturarv","Forringe kulturminner fredet etter Nasjonal verneplan for vegrelaterte kulturminner i driftsaktiviteter",null,null,"Nasjonal verneplan for vegrelaterte kulturminner","Skader eller ødelegger kulturminner etter nasjonal verneplan ",5,1,75,75,"Kontraktsarbeidet skal ikke komme i konflikt med kulturminner med eller uten forvaltningsplaner. ","Kulturminner med krav om spesielle tiltak innarbeides i kontrakt kap. D2- S33.  Identifisere driftsoppgaver som kan påvirke kulturminnene og innarbeide i kontrakt.",null,null,null,{"$f":"IF(N73=1,\"1\",\"0\")+IF(N73=2,5,0)+IF(N73=3,10,0)+IF(N73=4,25,0)+IF(N73=5,75,0)","v":0},0,0]
["Kulturarv","Manglende drift av kulturminner",null,null,"Kulturminneloven","Mangelde drift fører til forringelse av kulturminnet.",5,3,75,225,null,"Identifisere kulturminner som krever oppfølging i kontraktsperioden og spesifisere tiltak","BH",5,5,1,5,5,"C3 43.5","D2- S33"]
["Naturressurser","Drikkevannskilder",null,null,"Drikkevannsforskriften","Drikkevannskilder skades av vegsalt",3,2,10,20,null,"Strekninger som på grunn av drikkevannskilder ikke skal saltes listes i kontrakt",null,null,2,1,2,2,null,"C3 43.5"]
["Naturressurser","Planteskadegjørere",null,null,"Forskrift om planter og tiltak mot planteskadegjørere\nForskrift om floghavre","Spredning av planteskadegjørere som følge av driftsaktiviteter",5,3,75,225,null,"Planteskadegjørere listes i D2-S34. Tiltak og hensyn angis for de ulike forekomstene. Innkjøpt jord skal være fri for planteskadegjørere og ugras.",null,null,5,2,10,20,null,"D2- S34"]
["Materialvalg og avfallshåndtering","Feiing av strøsand",null,null,"Forurensingsloven","Strøsand (avfall) feies ut ned mot bekk/vassdrag",null,null,0,0,null,"Dersom aktuelt, vurdere hvilke områder strøsand kan feies ut i sideterrenget og ikke.",null,null,null,null,0,0,"73.31"]
["Materialvalg og avfallshåndtering","Substitusjonsvurderinger utføres ikke",null,null,"Substitusjonsplikten","Påse at substitusjonsplikt overholdes ved valg av vaskemiddel og andre kjemikalier til f.eks. fjerning av grafitti",3,2,null,0,null,"Etterspørre substitusjonsvurderinger av vaskemiddel til tunnelvask","BH",2,1,null,0,0]
["Materialvalg og avfallshåndtering","Bruk av miljøfientlige produkter eller materialer fra uetisk/miljøfientlig produksjon",null,null,"Produktkontrolloven","Bruk av miljøfiendtlig/uetisk produsert materiale",2,2,{"$f":"IF(G79=1,\"1\",\"0\")+IF(G79=2,5,0)+IF(G79=3,10,0)+IF(G79=4,25,0)+IF(G79=5,75,0)","v":5},10,"Bruk av materialer fra uetisk/miljøfiendtlig produksjon skal unngås. Miljømerkede og/eller engergisparende alternativer foretrekkes. Ekstra krav om tremateriale i mal.",null,null,null,null,{"$f":"IF(N79=1,\"1\",\"0\")+IF(N79=2,5,0)+IF(N79=3,10,0)+IF(N79=4,25,0)+IF(N79=5,75,0)","v":0},0,0]
["Materialvalg og avfallshåndtering","Feil avfallshåndtering",null,null,"Avfallsforskriften","Ulovlig avhending av farlig avfall",4,2,25,50,"Avfallshåndtering er kontaktsfestet. BH tar kostnaden for å levere om det er et kostnadsspørsmål. Stille krav om deklarering og basiskarakterisering av avfall i kontrakt. Avfall skal leveres til godkjent avfallsmottak ",null,"EN",4,2,{"$f":"IF(N80=1,\"1\",\"0\")+IF(N80=2,5,0)+IF(N80=3,10,0)+IF(N80=4,25,0)+IF(N80=5,75,0)","v":25},50,1250]
["Materialvalg og avfallshåndtering","Feil avfallshåndtering",null,null,"Avfallsforskriften","Manglende kildesortering",3,2,10,20,"Avfallshåndtering er kontaktsfestet ",null,"EN",null,null,{"$f":"IF(N81=1,\"1\",\"0\")+IF(N81=2,5,0)+IF(N81=3,10,0)+IF(N81=4,25,0)+IF(N81=5,75,0)","v":0},0,0]
["Materialvalg og avfallshåndtering","Dårlige toalettfasiliteter og søppelkasser gir mye søppel på avveie ",null,null,"Avfallsforskriften","Forsøpling fra brukere av vegnettet",3,5,10,50,"Entreprenøren skal tømme søppel ved behov. ","Fokus på oppfølging av EN, men kan bli veldig fullt fort.","BH",null,null,{"$f":"IF(N82=1,\"1\",\"0\")+IF(N82=2,5,0)+IF(N82=3,10,0)+IF(N82=4,25,0)+IF(N82=5,75,0)","v":0},0,0]
["Materialvalg og avfallshåndtering","Maglende gjenbruk",null,null,"Avfallsforskriften","Manglende gjenbruk",null,null,0,0,"Gjenbruk der det er mulig (strøsand, brøytestikker, skilt, skiltfundament, kantstein)",null,null,null,null,null,0,0]
["Materialvalg og avfallshåndtering","Håndtering av dødt vilt",null,null,"Avfallsforskriften","Feil håndtering av dødt vilt",3,3,{"$f":"IF(G84=1,\"1\",\"0\")+IF(G84=2,5,0)+IF(G84=3,10,0)+IF(G84=4,25,0)+IF(G84=5,75,0)","v":10},{"$f":"H84*I84","v":30},"Hjortevilt skal leveres og prøvetas etter kontrakt og varsles viltnemda i kommunen",null,"EN","EN",3,2,{"$f":"O84*P84","v":6},{"$f":"P84*Q84","v":12}]
["Forurensning av jord og vann","Sårbare resipienter",null,null,"Vannforskriften","Sårbare resipienter påvirkes vegsalt",5,5,75,375,"Fokus på riktig saltbruk",null,null,null,null,null,0,0]

{"sheet":"Hjelpedok. for dekkelegging","index":8,"n_rows":28,"n_cols":21,"rows_kept":28,"cut":false,"hidden":false,"merged":[[3,1,3,2],[3,3,3,4],[3,5,3,10],[0,1,0,2],[0,3,0,4],[0,5,0,10],[1,1,1,2],[1,3,2,4],[1,5,2,10],[2,1,2,2]]}
["PROSJEKT: ","Asfaltarbeider ",null,"FORMÅL:",null,"Dekkefornying i Drift og vedlikehold xx"]
["STED: ",null,null,"PROSJEKTINFORMASJON ",null,"Dekkefornying i Drift og vedlikehold xx"]
["DATO: "]
["UTARBEIDET AV :",null,null,"GRUNNLAGSDATA:",null,"Sammenstilling av kunnskap om YM og dekkelegging, revisjon av utgave fra 2018."]
[]
["Fagtema","Problemstilling","Vegelement","Profil-nummer fra-til","Miljøkrav (Samsvarsforpliktelse) og egne mål","Uønsket hendelse (UH)","Kons før tiltak","Sanns før tiltak","Kolonne1","Risiko før tiltak","Tiltak","Frist/ framdriftsplan","Ansvar","Kons etter tiltak","Sanns etter tiltak","Kolonne2","Risiko etter tiltak","Prosesskode","Tegningstype/-nummer","Virksomhet","Merknad"]
["Materialvalg og avfallshåndtering","Stoffer som brukes: bitumen emulsjon og slipp-middel",null,null,"Forurensingsloven Substitusjonsplikten","BH påser ikke at EN utfører substitusjon",1,1,{"$f":"IF(G7=1,\"1\",\"0\")+IF(G7=2,5,0)+IF(G7=3,10,0)+IF(G7=4,25,0)+IF(G7=5,75,0)","v":1},{"$f":"H7*I7","v":1},"Ingen tiltak. Valg av miljøvennlige alternativer godt innarbeidet.","Under dekkelgging","BH",1,1,{"$f":"IF(N7=1,\"1\",\"0\")+IF(N7=2,5,0)+IF(N7=3,10,0)+IF(N7=4,25,0)+IF(N7=5,75,0)","v":1},{"$f":"O7*P7","v":1}]
["Materialvalg og avfallshåndtering","Asfaltrester gir forurensing og kan gi skader til naturmangfoldet i vegkanten.",null,null,"Forurensingsloven  Naturmangfoldloven","Manglende opprydding av asfaltrester som havner i grøfta undervegs i utleggingen. ",2,5,{"$f":"IF(G8=1,\"1\",\"0\")+IF(G8=2,5,0)+IF(G8=3,10,0)+IF(G8=4,25,0)+IF(G8=5,75,0)","v":5},{"$f":"H8*I8","v":25},"EN skal rydde opp etter seg, fokus under oppfølging av EN og bruk av sanksjonsmuligheter.","Under dekkelegging","EN",2,3,{"$f":"IF(N8=1,\"1\",\"0\")+IF(N8=2,5,0)+IF(N8=3,10,0)+IF(N8=4,25,0)+IF(N8=5,75,0)","v":5},{"$f":"O8*P8","v":15}]
["Materialvalg og avfallshåndtering","Stoffer som brukes: bitumenmeulsjon/asfaltlim",null,null,"Forurensingsloven","Lim blir liggende igjen etter parkering av limtraktor",2,3,{"$f":"IF(G9=1,\"1\",\"0\")+IF(G9=2,5,0)+IF(G9=3,10,0)+IF(G9=4,25,0)+IF(G9=5,75,0)","v":5},{"$f":"H9*I9","v":15},"EN skal rydde opp eventuelt søl.","I etterkant av arbeid","EN",2,1,{"$f":"IF(N9=1,\"1\",\"0\")+IF(N9=2,5,0)+IF(N9=3,10,0)+IF(N9=4,25,0)+IF(N9=5,75,0)","v":5},{"$f":"O9*P9","v":5}]
["Støy","Forarbeider på kveld/natt i bynære områder",null,null,"T-1442","Støyplage fra senkning/frigjøring av gategods etter kl 23 som ikke er varslet",2,5,5,25,"Fokus på å gjennomføre dette i starten på nattskift før kl 23    Varsle i forkant","I forkant av arbeidet","BH",2,4,{"$f":"IF(N10=1,\"1\",\"0\")+IF(N10=2,5,0)+IF(N10=3,10,0)+IF(N10=4,25,0)+IF(N10=5,75,0)","v":5},20]
["Støy","Fresing og asfaltering",null,null,"T-1442","EN starter arbeider uten tillatelse fra kommunelege",5,1,{"$f":"IF(G11=1,\"1\",\"0\")+IF(G11=2,5,0)+IF(G11=3,10,0)+IF(G11=4,25,0)+IF(G11=5,75,0)","v":75},{"$f":"H11*I11","v":75},"BH følger opp at EN har innhentet tillatelse (eventuelt melding uten svar)","I forkant av arbeidet","BH",1,1,{"$f":"IF(N11=1,\"1\",\"0\")+IF(N11=2,5,0)+IF(N11=3,10,0)+IF(N11=4,25,0)+IF(N11=5,75,0)","v":1},{"$f":"O11*P11","v":1}]
["Luftforurensing","Lokal støvproblematikk ved fresing",null,null,"T-1520           Forurensingsloven","Støv ved fresing gir helseplage",2,2,5,10,"Tilsetning av vann under fresing","Under dekkelgging","EN",1,1,{"$f":"IF(N12=1,\"1\",\"0\")+IF(N12=2,5,0)+IF(N12=3,10,0)+IF(N12=4,25,0)+IF(N12=5,75,0)","v":1},1]
["Luftforurensing","Lokal støvproblematikk ved feiing",null,null,"T-1520           Forurensingsloven","Støv ved feiing etter fresing gir helseplage",2,3,5,15,"Krav til feiebil med oppsug og fukting ved rengjøring","Under dekkelgging","EN",1,1,{"$f":"IF(N13=1,\"1\",\"0\")+IF(N13=2,5,0)+IF(N13=3,10,0)+IF(N13=4,25,0)+IF(N13=5,75,0)","v":1},1]
["Luftforurensing","Lokal støvproblematikk ved feiing",null,null,"T-1520           Forurensingsloven","Støv etter feiing ved påsetting av trafikk, før asfaltlegging, gir helseplage",1,1,1,1,"Ingen tiltak. Kortvarig utfordring. ","Før dekkelegging","EN",1,1,1,1]
["Naturressurser","Dyrking av grovfòr langs veg",null,null,"Ivaretagelse av naturressurser","Støv i grovfòr langs veg ",1,1,1,1,"Standard med støvreduserende tiltak","Ikke aktuelt","EN",1,1,1,1]
["Naturressurser","Usikkerhet rundt påvirkning",null,null,"Drikkevannsforskriften","Påvirker drikkevann",1,2,1,2,"Skaffe geografisk informasjon om drikkevann ","I forkant av arbeidet","BH",1,1,1,1,null,null,null,"Forutsatt at dette følges opp av SJA av EN"]
["Naturressurser","Usikkerhet rundt påvirkning",null,null,"Drikkevannsforskriften","Påvirker drikkevann",1,2,1,2,"Gjøre SJA basert på info om drikkevann","I forkant av arbeidet","EN",1,1,1,1]
["Naturmangfold","Usikkerhet rundt påvirkning",null,null,"Handle i tråd med verneforskrifter, naturmangfoldloven og vannforskriften","Uventet påvirkning som reduserer viktig natur",3,3,10,30,"Skaffe geografisk informasjon om viktig natur (naturreservater, prioirterte arter, sårbart vassdrag) med særskilte restriksjoner. ","I forkant av arbeidet","BH",3,1,10,10,null,null,null,"Forutsatt at dette følges opp av SJA av EN"]
["Naturmangfold","Usikkerhet rundt påvirkning",null,null,"Handle i tråd med verneforskrifter, naturmangfoldloven og vannforskriften","Uventet påvirkning som reduserer viktig natur",3,3,{"$f":"IF(G19=1,\"1\",\"0\")+IF(G19=2,5,0)+IF(G19=3,10,0)+IF(G19=4,25,0)+IF(G19=5,75,0)","v":10},{"$f":"H19*I19","v":30},"Gjøre SJA basert på info om viktig natur som naturreservater, lakseelv","I forkant av arbeidet","EN",3,1,{"$f":"IF(N19=1,\"1\",\"0\")+IF(N19=2,5,0)+IF(N19=3,10,0)+IF(N19=4,25,0)+IF(N19=5,75,0)","v":10},{"$f":"O19*P19","v":10}]
["Naturmangfold","Søl med bitumemeulsjon/asfaltlim",null,null,"Naturmangfoldloven","Det blir søl fra asfaltlim ved rengjøring av limtraktor/bil ",5,1,75,75,"Parkeres der det er grus eller fast dekke. Ikke på vegetasjon.","I etterkant av arbeid","EN",3,1,10,10]
["Naturmangfold","Asfalt som faller mellom bil og utlegger plasseres vanligvis med spade på vegskulder/grøft før det ryddes opp på slutten av skiftet. ",null,null,"Naturmangfoldloven","Skade på naturmangfold ved manglende kunnskap om verdifulle områder markert på sårbarhetskart. ",5,1,{"$f":"IF(G21=1,\"1\",\"0\")+IF(G21=2,5,0)+IF(G21=3,10,0)+IF(G21=4,25,0)+IF(G21=5,75,0)","v":75},{"$f":"H21*I21","v":75},"Gjøre SJA basert på info om viktig natur som naturreservater, artsrike vegkanter, fiskeførende vassdrag  m.m ","I forkant av arbeidet","EN",3,1,{"$f":"IF(N21=1,\"1\",\"0\")+IF(N21=2,5,0)+IF(N21=3,10,0)+IF(N21=4,25,0)+IF(N21=5,75,0)","v":10},{"$f":"O21*P21","v":10}]
["Friluftsliv/ by- og bygdeliv","Forhold til lokale arrangementer",null,null,"Frekommelighet og tilgjengelighet","Dekkelegging er til sjenanse under lokale arrangementer",2,2,{"$f":"IF(G22=1,\"1\",\"0\")+IF(G22=2,5,0)+IF(G22=3,10,0)+IF(G22=4,25,0)+IF(G22=5,75,0)","v":5},{"$f":"H22*I22","v":10},"Det sendes pressemelding knyttet til asfaltlegging, arrangører må selv ta kontakt. ","I forkant av arbeidet","BH",2,2,{"$f":"IF(N22=1,\"1\",\"0\")+IF(N22=2,5,0)+IF(N22=3,10,0)+IF(N22=4,25,0)+IF(N22=5,75,0)","v":5},{"$f":"O22*P22","v":10},null,null,null,"Hovedsakelig fremkommelighetsproblematikk for bilister"]
["Forurensning av jord og vann","Mellomlagring av frese-/feieemasse etter fresing ",null,null,"Forurensingsloven","Feiemasser, fresemasser o.l. blir mellomlagret og deponert. ",1,1,1,1,"Gjenbrukes i asfaltproduksjon, eventuelt mellomlagret før det gjenbrukes. Høy andel bindemiddel - verdifult materiale","Ikke aktuelt","EN",1,1,1,1]
["Forurensning av jord og vann","Oppbevaring/lager av materialer/drivstoff",null,null,"Forurensingsloven","Påkjørsel kan gi revnet tank og utslipp",4,3,25,75,"Fokus på valg av sted. Plassere utstyr slik at det ikke er fare for påkjørsel som kan gi skade og deretter forurensing","Under dekkelgging","EN",4,2,25,50,null,null,null,"Asfalt er ikke flytende i romtemperatur, og gir slik ikke utslipp. Emulsjon "]
["Forurensning av jord og vann","Riggplass, oppstillingsplass for maskiner",null,null,"Forurensingsloven","Søl ved fylling av drivstoff/bitumenemulsjon/slippmiddel",2,5,5,25,"Foreta fylling om mulig i avstand fra vann. Ved fare for søl til vassdrag skal absobsjonsmatter legges ut i forkant av fylling. SJA med fokus på YM.","Under dekkelgging","EN",2,3,5,15,null,null,null,"Mest sannsynlig at sølet vil være begrenset. Større søl vil kunne gi større konsekvens."]
["Forurensning av jord og vann","Ved arbeid i områder som regnes som spesielt sårbare som nær drikkevannskilder",null,null,"Forurensingsloven","Forurensing til vann og drikkevannkilder (brønner, grunnvann, overflatevann) ved fylling av diesel/bitumenemulsjon/slippmiddel",5,2,75,150,"Foreta fylling om mulig i avstand fra vann. Ved fare for søl til vassdrag skal absobsjonsmatter legges ut i forkant av fylling. SJA med fokus på YM.","Under dekkelgging","EN",2,1,5,5]
["Forurensning av jord og vann","Vegmerking kilde til mikroplast",null,null,"Forurensingsloven","Fresing av asfalt bidrar til at mikroplast spres i naturen. ",1,1,1,1,"Vegmerkingen går inn i fresemassen, som eventuelt går inn i asfaltproduksjonen eller annet gjenbruk","Under dekkelgging","EN",1,1,1,1]
["Klimagassutslipp","CO2-utslipp i dekkelegging","Klimaloven","Dekkelegging bidrar til CO2-utslipp i unødig grad","Klimaloven                  Nasjonale mål                       SVV's mål","Dekkelegging bidrar til CO2-utslipp i unødig grad",4,4,25,100,"Kontrakten tar hensyn til utslipp (fra EPD) i tillegg til pris som total konkurransesum.","Ved valg av tilbyder","BH",2,2,5,10]

{"sheet":"Hjelpedok. for bruvedlikehold","index":9,"n_rows":30,"n_cols":20,"rows_kept":30,"cut":false,"hidden":false,"merged":[[3,1,3,2],[3,3,3,4],[3,5,3,10],[0,1,0,2],[0,3,0,4],[0,5,0,10],[1,1,1,2],[1,3,2,4],[1,5,2,10],[2,1,2,2]]}
["PROSJEKT: ",null,null,"FORMÅL:",null,null,null,null,null,null,null,"Kontrakter som inneholder ett eller flere av elementene under, trenger alltid en egen kontraktspesifikk YM-plan:"]
["STED: ",null,null,"PROSJEKTINFORMASJON ",null,null,null,null,null,null,null,"All nybygging eller utskifting av bru og brukar, støping i vann, pelearbeider/gravearbeider i vann og på land, reis og understøttelse i vann, vannmeisling, våtsprøyting."]
["DATO: "]
["UTARBEIDET AV :",null,null,"GRUNNLAGSDATA:"]
[]
["Fagtema","Problemstilling","Vegelement","Profil-nummer fra-til","Miljøkrav (Samsvarsforpliktelse) og egne mål","Uønsket hendelse (UH)","Kons før tiltak","Sanns før tiltak","Kolonne1","Risiko før tiltak","Tiltak","Ansvar","Kons etter tiltak","Sanns etter tiltak","Kolonne2","Risiko etter tiltak","Prosesskode","Tegningstype/-nummer","Virksomhet","Merknad"]
["Materialvalg og avfallshåndtering","Tørrsprøyting med sprøytebetong",null,null,"Forurensingsloven","Restbetong som kommer på avveie ved tørrsprøyting. Tørrspryting genererer  opp mot 20 % rester.",4,5,{"$f":"IF(G7=1,\"1\",\"0\")+IF(G7=2,5,0)+IF(G7=3,10,0)+IF(G7=4,25,0)+IF(G7=5,75,0)","v":25},{"$f":"H7*I7","v":125},"Skjerming og oppsamling av restbetong som kommer på aveie. Null utslipp beskrives i kontrakt. ",null,2,2,{"$f":"IF(M7=1,\"1\",\"0\")+IF(M7=2,5,0)+IF(M7=3,10,0)+IF(M7=4,25,0)+IF(M7=5,75,0)","v":5},{"$f":"N7*O7","v":10}]
["Forurensning av jord og vann","Mørtling",null,null,"Forurensingsloven","Rester av mørtel kommer på avveie og havner i omgivelsene",3,2,10,20,"Skjerming og oppsamling av mørtel som kommer på aveie.  Null utslipp beskrives i kontrakt. ",null,1,1,1,1]
["Naturmangfold","Vask av bru",null,null,"Forskrift om fremmede organismer (naturmangfoldloven)","Spredning av fremmede arter i vann ved flytting av vann mellom vannforekomster. Hvis arbeid i infiserte vassdrag - ta inn beskrivelse fra drift. Si noe om fremmede arter generelt",5,3,75,225,"Vann fra samme vannforekomst eller offentlig vann",null,5,1,75,75]
["Støy","Støyende arbeider over grenseverdier i T-1442. ",null,null,"Retningslinje for støy i arealplanlegging T-1442","Støyende arbeider skaper sjenanse for naboer.",3,4,10,40,"Entreprenør må planlegge sine arbeider på en slik måte at støynivået holdes så lavt som mulig, og innenfor de grenser gitt i T-1442. Ved arbeid over grenseverdier må det innhentes tillaltelse hos kommunen. Ved mindre arbeider kan grenseverdiene i T1442 fravikes. Som mindre arbeider regnes anleggsaktivitet som kun foregår på dagtid (07-19) på hverdager, der støyende aktivitet har en varighet på maksimalt to uker",null,2,4,{"$f":"IF(M10=1,\"1\",\"0\")+IF(M10=2,5,0)+IF(M10=3,10,0)+IF(M10=4,25,0)+IF(M10=5,75,0)","v":5},20]
["Luftforurensing","Støvende arbeider",null,null,"Retningslinje for luftkvalitet i arealplanleggingen T-1520","Støv som fører til helseplage for naboer. Vil gjelde ved arbeider i tett bebyggelse. Vil gjelder for flere arbeidsprosesser.",3,4,10,40,"Renhold av veg, salting, spyling av maskiner før de kjører gjennom boligområder",null,3,3,{"$f":"IF(M11=1,\"1\",\"0\")+IF(M11=2,5,0)+IF(M11=3,10,0)+IF(M11=4,25,0)+IF(M11=5,75,0)","v":10},30]
["Materialvalg og avfallshåndtering","Arbeider som innebærer bruk av farlige stoffer",null,null,"Produktkontrolloven § 3 a","Manglende substitusjonsplikt for arbeider som innebærer kjemiske stoffer som kan medføre helseskade eller miljøforstyrrelse. Disse arbeidene innebærer:   Impregnering av betong, eventuell bruk av såper til vask, maling",2,4,5,20,"Entreprenør skal gjøre substitusjonsvurderinger. Vurderingene skal dokumenteres. Etterspørre substitusjonsplikten i byggemøter. ",null,2,2,{"$f":"IF(M12=1,\"1\",\"0\")+IF(M12=2,5,0)+IF(M12=3,10,0)+IF(M12=4,25,0)+IF(M12=5,75,0)","v":5},10]
["Materialvalg og avfallshåndtering","Avfallshåndtering i tråd med regelverk",null,null,"Avfallsforskriften","Manglende opprydding og håndtering av avfall som bryter med lovverk. Omfatter blant annet følgende arbeider (listen er ikke uttømmende): Asfaltfuge, mekansike fuger, rester av asfalt og asfaltmembran, restbetong og rester av mørtel, hulkil, betongkjerner, rekkverksdeler, stillasdeler, forskaling og armering",5,5,75,375,"Avfall skal fjernes. Avfall må leveres til godkjent deponi. Sorteringgrad 80%. Avfallsrapportering i Elrapp. Aksomhet for avfall i vann. Oppfølging av avfallshåndtering i byggemøter og vernerunde.",null,5,2,75,150]
["Materialvalg og avfallshåndtering","Avfallshåndtering for godt omdømme",null,null,"Avfallsforskriften","Manglende opprydding og håndtering av avfall skaper dårlig omdømme",4,4,{"$f":"IF(G14=1,\"1\",\"0\")+IF(G14=2,5,0)+IF(G14=3,10,0)+IF(G14=4,25,0)+IF(G14=5,75,0)","v":25},{"$f":"H14*I14","v":100},"Avfall skal fjernes. Oppfølging av avfallshåndteringen i byggemøter og vernerunde. Fokus på opprydding ved endt prosjekt.",null,4,2,{"$f":"IF(M14=1,\"1\",\"0\")+IF(M14=2,5,0)+IF(M14=3,10,0)+IF(M14=4,25,0)+IF(M14=5,75,0)","v":25},{"$f":"N14*O14","v":50}]
["Materialvalg og avfallshåndtering","Kjerneborring (vannavløp) og annen boring i betong",null,null,"Avfallsforskriften","Betongkjerne havner i elva. Det er svært sannsynlig at kjernene blir værende i elva da det er vanskelig å få hentet de opp",2,5,{"$f":"IF(G15=1,\"1\",\"0\")+IF(G15=2,5,0)+IF(G15=3,10,0)+IF(G15=4,25,0)+IF(G15=5,75,0)","v":5},{"$f":"H15*I15","v":25},"Det skal alltid forsøkes å fjerne alle betongkjerner som havner i vassdraget. I større vassdrag kan det være utfordrende på grunn av høy vannføring. Det vurderes at det utgjør mindre skade om oppsamling ikke er mulig å slike tilfeller fordi resipienten er stor.",null,2,4,{"$f":"IF(M15=1,\"1\",\"0\")+IF(M15=2,5,0)+IF(M15=3,10,0)+IF(M15=4,25,0)+IF(M15=5,75,0)","v":5},{"$f":"N15*O15","v":20}]
["Materialvalg og avfallshåndtering","Stillas",null,null,"Avfallsforskriften","Dårlig opprydning av stillas fører til forsøpling av vassdrag. ",2,4,5,20,"Opprydding og fokus på å få med seg alle deler",null,2,3,5,15]
["Materialvalg og avfallshåndtering","Riving",null,null,"TEK17 §9-7 ","Riving som overgår 10 tonn i omfang har ikke miljøsanringsplan",4,2,{"$f":"IF(G17=1,\"1\",\"0\")+IF(G17=2,5,0)+IF(G17=3,10,0)+IF(G17=4,25,0)+IF(G17=5,75,0)","v":25},{"$f":"H17*I17","v":50},"Estimere mengden rivingsavfall før oppstart. TEK17 §9-7 krever miljøsaneringsplan for tiltak som generer over 10 tonn bygg- og rivingsavfall Miljøsaneringsplan dersom omfanget overgår grensene. Det ansees som sjelden at det genereres så store mengder bygg- og rivingsavfall fra tiltakene som omfattes av denne planen.",null,4,1,{"$f":"IF(M17=1,\"1\",\"0\")+IF(M17=2,5,0)+IF(M17=3,10,0)+IF(M17=4,25,0)+IF(M17=5,75,0)","v":25},{"$f":"N17*O17","v":25}]
["Naturmangfold","Montering av reis/understøttelse",null,null,"Naturmangfoldloven","Reis monteres i vann og medfører tilslamming av vassdrag",3,3,10,30,"Det stilles krav om at reisen skal monteres uten å berøre vannstrengen. ",null,3,1,{"$f":"IF(M18=1,\"1\",\"0\")+IF(M18=2,5,0)+IF(M18=3,10,0)+IF(M18=4,25,0)+IF(M18=5,75,0)","v":10},10]
["Luftforurensing","Fresing og fjerning av asfalt",null,null,"Forurensingsloven","Oppvirvling av partikler til omgivelsene",1,1,{"$f":"IF(G19=1,\"1\",\"0\")+IF(G19=2,5,0)+IF(G19=3,10,0)+IF(G19=4,25,0)+IF(G19=5,75,0)","v":1},{"$f":"H19*I19","v":1},"Oppsamling av frest asfalt. Generelt er det tunge partikler, som fører til liten oppvirvling. Det er små mengder totalt sett da prosjektområdet er begrenset",null,1,1,{"$f":"IF(M19=1,\"1\",\"0\")+IF(M19=2,5,0)+IF(M19=3,10,0)+IF(M19=4,25,0)+IF(M19=5,75,0)","v":1},{"$f":"N19*O19","v":1}]
["Støy","Mekansik meisling",null,null,"Forurensingsloven","Spesielt støyende og støvende arbeid",4,5,{"$f":"IF(G20=1,\"1\",\"0\")+IF(G20=2,5,0)+IF(G20=3,10,0)+IF(G20=4,25,0)+IF(G20=5,75,0)","v":25},{"$f":"H20*I20","v":125},"Valg av minst støyende utstyr. Arbeid gjennomføres på dagtid",null,3,5,{"$f":"IF(M20=1,\"1\",\"0\")+IF(M20=2,5,0)+IF(M20=3,10,0)+IF(M20=4,25,0)+IF(M20=5,75,0)","v":10},{"$f":"N20*O20","v":50}]
["Støy","Boring/saging i betong",null,null,"Forurensingsloven","Spesielt støyende og støvende arbeid",4,5,25,125,"Valg av minst støyende utstyr. Arbeid gjennomføres på dagtid",null,3,5,10,50]
["Forurensning av jord og vann","Sandblåsing (betong og stål)",null,null,"Forurensingsloven","Spredning av partikler med farlige stoffer. Bruer som har blymønje kan spre farlige stoffer til omgivelsene. ",4,3,25,75,"Tildekningskrav og oppsamling av blåsesand. Dokumentasjon på luftkvalitet på \"vanlig bru\" Prøvetaking utenfor tildekking på bruer med blymønje før vi kan konkludere på det. ",null,4,2,25,50]
["Forurensning av jord og vann","Betongstøp",null,null,"Forurensingsloven","Forurensing fra undervannsbetong",2,2,null,10,"Det brukes betong (undervannsbetong) som er egnet for støping under vann. Denne skiller seg i liten grad og medfører lite forurensing.",null,2,2]
["Forurensning av jord og vann","Behov for utstlippstillatelse",null,null,"Forurensingsloven § 8 og §11","Vedlikeholdstiltak som krever tillatelse etter forurensingsloven har ikke godkjent tillaltelse",5,1,{"$f":"IF(G24=1,\"1\",\"0\")+IF(G24=2,5,0)+IF(G24=3,10,0)+IF(G24=4,25,0)+IF(G24=5,75,0)","v":75},{"$f":"H24*I24","v":75},"Jmf forurensingsloven § 8 er vanlig forurensing fra midlertidig anleggsvirksomhet tillatt. Forurensing som ikke medfører nevneverdig skader eller ulemper kan finne sted uten tillatelse etter §11. Bruvedlikehold som følger denne miljørisikovruderingen regnes som vanlig forurensing fra midlertidig anleggsarbeid og krever ikke søknad. Bruvedlikehold som krever egne vurderinger og plan kan kreve søknad og tiltaket må avklares med tanke på dette. ",null,5,1,{"$f":"IF(M24=1,\"1\",\"0\")+IF(M24=2,5,0)+IF(M24=3,10,0)+IF(M24=4,25,0)+IF(M24=5,75,0)","v":75},{"$f":"N24*O24","v":75}]
["Landskapsbilde","Utskifting av utstyr",null,null,null,"Feil valg og plassering av vegutstyr (utforming av rekkverk, rekkverksender, skiltstolper, lysstolper, belysning) ifht eksisternde bru og omgivelsene.",2,4,{"$f":"IF(G25=1,\"1\",\"0\")+IF(G25=2,5,0)+IF(G25=3,10,0)+IF(G25=4,25,0)+IF(G25=5,75,0)","v":5},{"$f":"H25*I25","v":20},"Valg og tilpasning av utstyr avtales med byggherre og sjekkes ut med formingsveileder for stedet hvis det foreligger. Om bruelementer skal byttes ut må de nye delene være estetisk tilsvarende de som skiftes ut. Om ikke dette er mulig må det gjøres egne vurderinger (landskapsarkitektoniske) knyttet til hvilke materialer som skal benyttes.",null,2,2,5,10]
["Andre forhold/generelt fagtemaer","Tiltaket går utenfor de 25 meterne som er kartlagt",null,null,null,"Skade på miljø som følge at områder som ikke er kartlagt berøres",5,1,{"$f":"IF(G26=1,\"1\",\"0\")+IF(G26=2,5,0)+IF(G26=3,10,0)+IF(G26=4,25,0)+IF(G26=5,75,0)","v":75},{"$f":"H26*I26","v":75},"Det er lite sannsynlig at bruvedlikeholdsprosjekter er av et så stort omfang. Dersom tiltaket viser seg å overgå 25 meter fra brua i utstrekning, må miljøverdier gjennomgås på nytt",null,3,1,10,10]
["Forurensning av jord og vann","Akutt forurensing",null,null,"Forurensingsloven","Akutte utslipp av drivstoff, olje eller kjemikalier på anlegget",3,3,{"$f":"IF(G27=1,\"1\",\"0\")+IF(G27=2,5,0)+IF(G27=3,10,0)+IF(G27=4,25,0)+IF(G27=5,75,0)","v":10},{"$f":"H27*I27","v":30},"Entreprenør må utarbeide beredskapsplan for akutte utslipp. Ved behov for lagring av drivstoff, olje og kjemikalier skal lagringen skje forsvarlig med tilstrekkelig avstand til vann og kummer.  Alle maksiner skal være godt vedlikeholdt og ha absorberende midler tilgjengelig.",null,3,2,10,20]
["Kulturarv","Kulturminner",null,null,"Kulturminneloven","Skade på kulturminner som ikke var kjent ved oppstart av prosjektet.",4,2,{"$f":"IF(G28=1,\"1\",\"0\")+IF(G28=2,5,0)+IF(G28=3,10,0)+IF(G28=4,25,0)+IF(G28=5,75,0)","v":25},{"$f":"H28*I28","v":50},"Ved funn eller mistanke om funn skal arbeidet stanses umiddelbart og rådføres med fagkyndig på kulturminner.",null,3,1,10,10]
["Naturmangfold","Fjerning av kantsone langs vassdrag",null,null,"Vannressursloven §11","Brudd med vannressursloven § 11 som sier at det skal opprettholdes et begrenset naturlig vegetasjonsbetle langs vassdrag med årsikker vannføring. ",2,2,{"$f":"IF(G29=1,\"1\",\"0\")+IF(G29=2,5,0)+IF(G29=3,10,0)+IF(G29=4,25,0)+IF(G29=5,75,0)","v":5},10,"Det er gjort unntak i lovverket for byggverk som står i nødvendig sammenheng med vassdraget. Bruer tolkes å omfattes av denne definisjonen. Det tillaltes fjerning av kantsone der det er helt nødvendig for å utføre arbeidet. Omfanget av fjerning av kantsone ansees som lite da tiltaketene er begrenset i utstrekning.",null,2,1,5,5]
["Forurensning av jord og vann","Forurensing fra vask av bru",null,null,"Forurensingsloven","Skade på sårbar vannforekomst/art som følge av bruvask",3,2,{"$f":"IF(G30=1,\"1\",\"0\")+IF(G30=2,5,0)+IF(G30=3,10,0)+IF(G30=4,25,0)+IF(G30=5,75,0)","v":10},{"$f":"H30*I30","v":20},"Det er sjelden behov for vask av bru i forbindelse med vedlikehold. Når det allikevel skal gjøres må det vurderes om vaskevannet kan ha negativ påvirkning på sårbar vannforekomst (eks. vannforekomster med elvemusling, viktige gytebekker etc. hvor det er svært lenge siden sist vask). Tiltak er tilpasning av tidspunkt for vask.",null,3,1,10,10]

{"sheet":"Eksempler Tiltaksoversikt","index":10,"n_rows":120,"n_cols":6,"rows_kept":120,"cut":false,"hidden":false,"merged":[[0,0,0,5]]}
["Her følger eksempler på tiltak hentet fra YM-planer. Tiltakslisten er ikke uttømmende. \n Det anbefales ikke at tiltak kopieres direkte da dette er historiske tiltak. Det må alltid gjøres en vurdering og tilpasning til prosjektet. "]
["Noen av tiltakene kan også håndteres i andre planer, verktøy e.l.  -Da trenger de ikke være med i YM-planen. "]
["YM-tema (de 10 i malen)","Fase: Anlegg= anleggsgjennomføring. Planlegging er til og med prosjektering","Stikkord problemstilling","Tiltaksbeskrivelse","Ansvar","Kommentar"]
["Støy","Anlegg","Støy","Gjennomføre støyberegning før arbeidene begynner for å forsikre at støy ikke overstiger grenseverdier. ","Entreprenør (EN)","Dette bør gjøres i de områdene hvor det skal være langvarig støyende arbeider i nærføring av bebyggelse"]
["Støy","Anlegg","Støy","Bruk av \"støysvake\" maskiner i anlegget. Alle maskiner skal være støymerket ihht Forurensningsforskriften ","EN","Usikkert: Maskinene er stor sett av nyere dato. Sjelden en maskin er mer enn 3-5 år gammel"]
["Støy","Planlegging","Nærmiljø/friluftsliv","Erstatningsområder og kartlagte nærmiljøområder som skal opprettholdes i anleggsperioden vurderes ift. behov for til reduserende tiltak.","Statens vegvesen (SVV)","Nærmiljøområder bør det vurderes midlertidig støytiltak under anleggsgjennomføring. Det er kun krav til permanente støytiltak ettet T-1442 i friområder som er regulert som støyfrisone i kommuneplan"]
["Støy","Anlegg","Støy","Før igangsetting av anlegg må entreprenør gjennomføre en beregning av anleggsstøy i området og gjennomføre en tiltaksvurdering.\nKnuseverk og andre støyende installasjoner skal plasseres i egnet område som ikke gir unødige støyulemper for omgivelsene. Plasseres i samarbeid med byggherren.\n\n• Støyende arbeider\nInnenfor de fastsatte arbeidstider skal arbeidene gjennomføres i samsvar med retningslinjene T- 1442 - 2012 i forhold til begrensing av støy fra bygg- og anleggsvirksomhet. Denne retningslinjen gjelder for kontraktsarbeidet, og støygrensene for anleggstid opp til 24 måneder skal gjelde. Entreprenøren skal\ndokumentere at han holder seg innenfor kravene.\nDet vil pågå arbeider i tunnelen om natten, og som følge av dette vil det være nødvendig med aktiviteter i dagsonen (inn og uttransport av maskiner, transport av betong for injeksjon med mer). Entreprenøren må utforme riggen og støyskjærme områdene slik at grenseverdiene ikke overskrides for kveld og natt.\nI deler av tunnelen vil det ikke bli tillatt med boring, pigging eller andre støyende arbeider som gir strukturlyd om natten (kl. 2300-0700). Det er i mengdefortegnelsen tatt med regulerbare prosesser for tillegg pr. løpemeter tunnel for antatte strekninger hvor det ikke tillates i ovennevnte denne type arbeider. Det er byggherren som avgjør hvor det kan bores, pigges eller utføres andre støyende arbeider.\nTunnelvifter, luftinntak og ventilasjonsduk/-kanal må støydempes og plasseres slik at grenseverdiene for anleggsstøy i Miljøverndepartementets retningslinje T-1442 - 2012 skjerpet for opptil 24 måneders drift tilfredsstilles utendørs ved boliger og fritidsboliger. Entreprenør skal fremlegge beregninger og tegninger som dokumenterer dette.","EN"]
["Vibrasjoner","Anlegg","Rystelser","Redusere vibrasjoner i anleggsperioden ved å oppnå god standard på anleggsveger.","EN"]
["Vibrasjoner","Anlegg","Rystelser","Det skal være en kartlegging av maksimum rystelser. Tidspunkt for avfyring av salver skal noteres slik at resultater fra måling av rystelser kan sammenholdes med sprengningsplanen og nyttes som et korrektiv for denne. Naboer og andre berørte parter skal varsles i god tid på forhånd. ","EN"]
["Vibrasjoner","Anlegg","Rystelser","NS 8141 skal gjelde for vibrasjoner og rystelser på bygninger.","EN","Det skal tas spesielle hensyn og settes krav til slikt arbeid ved kulturminner. "]
["Luftforurensing","Anlegg","På anlegg og anleggsveger","Krav om miljøvennlig støvbinding med magnesiumklorid","SVV/EN"]
["Luftforurensing","Planlegging/anlegg","Knuseverk mm","Hensiktsmessig plassering av knuseverk","SVV"]
["Luftforurensing","Anlegg","Rengjøring o.l.","Beskrive tiltak som for eksempel: hjulvask, rengjøring av veger, tildekking av masser, spyling med vannkanon, «støvsuger på boremaskiner», asfaltering av anleggsveger","SVV/EN"]
["Luftforurensing","Anlegg","Rengjøring o.l.","Ved anlegg i leireområder hjelper det at kjøretøy må kjøre over en strekning med pukk før utkjøring på offentlig veg for å fjerne partikler fra dekk","SVV/EN"]
["Luftforurensing","Anlegg","Støv","Begrense støvplager fra anleggsmaskiner skal vurderes i anleggsperioden. Tiltak som vask, salting og feiing skal vurderes fortløpende.","EN","Ingen krav til støv i anleggs etter forurensningsforskriften… Dette er ikke riktig bør fjernes."]
["Luftforurensing","Anlegg","Støv","Støvdemping med saltløsning ved høye forurensningskonsentrasjoner","EN"]
["Luftforurensing","Anlegg","Støv","Asfaltering av anleggsvei der anleggstransport gi høye konsentrasjoner over lang tid i nærheten av boliger eller annen sårbar bebyggelse","EN","Bør inngå som tiltak i en beredskapsplan "]
["Luftforurensing","Anlegg","Støv","Gjennomføre målinger av luftkvaliteten på anlegget dersom det er mistanke om høye konsentrasjoner","EN"]
["Luftforurensing","Anlegg","Støv","Dekke til masser under massetransport ","EN"]
["Luftforurensing","Anlegg","Støv","Informasjon til nærmeste beboere ","EN"]
["Luftforurensing","Anlegg","Støv","Ved svært høye konsentrasjoner, skader eller dokumenterte helseplager må evakuering eller husvask tilbys","EN","Bør inngå som tiltak i en beredskapsplan "]
["Luftforurensing","Anlegg","Støv","Ansatte med YM-kompetanse må være ute på anlegget så mye som mulig for å sikre at miljøkravene overholdes. ","YM-koord"]
["Luftforurensing","Anlegg","Støv","Ta hensyn til forurensningssituasjon og eksponering ved aktiviteter som knusing og sprengning","EN"]
["Luftforurensing","Anlegg","Avgasser","Unngå tomgangskjøring på anlegg","EN"]
["Luftforurensing","Anlegg","Støv","Støvsamler ved boring i dagen. Støv fra boring skal samles opp og deponeres på godkjent deponi. ","EN"]
["Forurensning av jord og vann","Planlegging/anlegg","Tunnel - utfylling/deponi med sprengsteinmasser på land-  Problemstilling: Spreding av partikler, oljerester, nitrogen og plast.","Ved plassering av deponi må det sikres tilstrekkelig buffersone til vannforekomst. Oppsamling av avrenningsvann fra deponi i f.eks sedimentasjonsbaseng, eller infiltrasjon i grunn/ terreng.","SVV","Steinnåler er assosiert med myke bergarter som fylitt, skifere m.f. (se SVV rapport nr 389)"]
["Forurensning av jord og vann","Planlegging/anlegg","Tunnel - utfylling/deponi med sprengsteinmasser i sjø og vassdrag. Problemstilling: Spreding av partikler, oljerester, nitrogen og plast.","Sprengstein skal vaskes før utfylling. Vaskevannet må ikke slippes direkte ut i vannforekomst/resipient.                                                                                                                               Bruk av siltgardin for tilbakeholdelse av partikler og/eller  plast (skyteledninger eller elektroniske tennsystemer). Tilbakeholdt plast må samles inn daglig (se R760, Prosesskode 1: 12.513 Siltgardin/siltskjørt)","SVV/EN","Vaskingen skal fjerne nitrogen og steinnåler. Dette er aktuelt ved utfylling i, eller nær vassdrag som er sensitive for eutrofiering og/eller for bergarter som danner flisige/nåleformede partikler. Vaskingen må unngå nærhet til grunnvann og vassdrag. Spesielle vuredringer må ligge til grunn for vasking av sprengstein. Vaskevannet må ev. håndteres i etterkant. Øvrige/andre tiltak for håndtering av plastavfall fra sprengningsarbeider skal beskrives i prosesskode 1 12.514. Per i dag er det ingen gode  gode løsninger for å fjerne plastavfall(skyteledninger og elektroniske tennsystemer) fra sprengsteinmasser før bruk til utfylling i vann. Miljømyndighetene har økt fokus på denne problemstillingen og det jobbes for finne gode løsninger. "]
["Forurensning av jord og vann","Planlegging/anlegg","Tunneldrivevann Problemstilling: Forurenset drivevann (partikler, metaller, radionuklider, oljeforbindelser, høy pH, og ammoniakk). ","Ulike renseløsninger som sedimentasjonsbasseng med eller uten fellingskjemikalier, filtrering, pH-justering. Utslippsted/vannforekomst må vurderes opp mot sårbarhet (unngå f.eks. lokaliteter med elvemusling). ",null,"Tunneldrift og utslipp av tunneldrivevann vil være søknadspliktig etter forurensningsloven §§ 7 og 11.  Forurensningsforskriften  §36-2. angir hva søknad om tillatelse i medhold av forurensningsloven § 11 skal inneholde. (I utslippsøknaden kan det vurderes og foreslås grenseverdier for drivevannet  eksempelvis for suspendert stoff, øvre og nedre pH og olje. Grenseverdier må vurderes ut fra vannforekomstens sårbarhet.)                                                                                                                                                                                Krav i N500. Vedlegg 3. kap 3.5 utslipp av vann: \nDette vannet skal minimum renses for olje og partikler, samt pH-justeres. Grenseverdier for olje og partikler skal være fastsatt. \nKrav til rensing er beskrevet i prosesskode 1 \"12.511 Renseanlegg\" og kan utdypes i spesiell beskrivelse.    Aktuelle parametere for f.eks. stikkprøvekontroll og ukeblandprøver fra provisorisk renseanlegg (drivevann) er: Tot-N, ammoniakk, tot-fosfor, THC-forbindelser (olje), PAH, utvalgte tungmetaller (bl.a. arsen, aluminium), sulfat, pH, turbiditet og ledningsevne.  Orientering om renseanlegget og resultater inngår som sak på byggemøter.                                                                                                                                                                                                                                                                                                                           "]
["Forurensning av jord og vann","Anlegg","Forurensning - tunnel ","Forslag om krav til entreprenørens vannbehandlingsanlegg som kan beskrives i spesiell beskrivelse:\nVannbehandlingsanlegget skal ha et oppsamlingssystem, sedimentasjonsbasseng, filtreringsanlegg, tilhørende rørsystemer og pumper, vannmengdemålere, utstyr for pH justering og uttak for vannprøver. Renseløsningen skal ha oljeutskillingsfunksjon og adsorbsjonslenser på vannflaten for å fjerne eventuelle. Renseanlegget for drivevann skal fungere også under tømming av slam. Vannbehandlingsanlegget skal utformes slik at det er mulig å stenge halvparten av anlegget ved slamtømming, og fremdeles opprettholde tilfredsstillende rensegrad. Innløp til bassengene skal utformes slik at en får en jevn og fordelt vannstrøm gjennom bassengene for optimalisert sedimentasjon.\nrester av olje eller drivstoff. Syredoseringsanlegget skal ha automatisk tilbakekoblingsmekanisme mot pH-målinger og grensesettinger.                                                                                                                                                                                                                                                  \nDe hydrauliske forhold skal være optimale for å få maksimal sedimentering. ","EN"]
["Forurensning av jord og vann","Anlegg","Drift og oppfølging av renseløsninger for tunneldrivevann: Problemstilling: Ikke optimal drift, kan føre til overskridelse av grenseverdier m.m","Automatisk overvåkning med alarmfunksjon for pH og turbiditet. Orientering om renseanlegget og resultater inngår som sak på byggemøter. ","EN","Krav til rensing er beskrevet i prosesskode 1 \"12.511 Renseanlegg\"                       Stikkprøvekontroll utført av byggherre/SVV er også aktuelt.                                                                Aktuelle parametere for f.eks. stikkprøvekontroll og ukeblandprøver fra provisorisk renseanlegg (drivevann) er: Tot-N, ammoniakk, tot-fosfor, THC-forbindelser (olje), PAH, utvalgte tungmetaller (bl.a. arsen, aluminium), sulfat, pH, turbiditet og ledningsevne. Turbiditet og pH måles kontinuerlig. Det skal etableres automatisk varsling for turbiditet og pH når grenseverdier nærmerer seg. Orientering om renseanlegget og resultater inngår som sak på byggemøter. Prøvene leveres akkreditert laboratorium. "]
["Forurensning av jord og vann","Planlegging/anlegg","Mellomlagring av masser fra veg i dagen. Problemstilling: Problemstilling: Erosjon og avrenning m/partikler og nitrogen","Jord- og sprengsteinsmasser skal plasseres slik at erosjon og avrenning av næringsstoffer til vassdrag m.m. begrenses. Erosjonssikring, buffersoner mot vassdrag, voller. Ta høyde for flom. Vis til hensynssoner i reg.plan. ","SVV/EN","Tunnelsprengstein inneholder ca. dobbelt så mye nitrogen som dagsprengt stein. "]
["Forurensning av jord og vann","Anlegg","Håndtering av restbetong. Problemstilling: Avrenning med høy pH","Sette krav til \"deponering\" av  restbetong og at det ikke skjer kontakt mellom våt/fersk betong og vann. ","EN"]
["Forurensning av jord og vann","Planlegging ","Vurdering av masser med mulig diffus forurensing, eks grøftekanter, sidearealer.","Gjennomføre en risikovurdering av mulig forurenset grunn for å avdekke om det må gjøres prøver eller om eksisterende kunnskap er tilstrekkelig. Deretter vurdere hvor disse massene kan brukes i anlegget.  (Denne vurderinge må inn i tiltaksplanen til kommunen. For prosess, se V220 kap 8).","SVV","Lovkrav; Forurensingsforskriften §2-4"]
["Forurensning av jord og vann","Planlegging ","Vurdere miljøkonsekvenser av gjenbruk av forurensede masser","Vurder f.eks: Midtrabatt, sideareal (helning, avstand), faunapassasjer, støyvoll, rudkjøring, rasteplass ect.","SVV","Tenk på dette ved vurdering: Avrenning, utvasking, jordtype, sårbarhet til resipient, hvilke forurensingsparameter. Ph i jorda, organisk innhold, jordstruktur, løselighet og mobilitet av stoffene, plantevalg…"]
["Forurensning av jord og vann","Planlegging ","Kartlegging av forurenset grunn","Tiltaksplan for kjente lokaliteter med forurenset grunn skal utarbeides og godkjennes av kommunen  iht forurensningsforskriften kap 2.","SVV","Lovkrav: forurensningsforskriften kap. 2. Tiltakshaver skal undersøke potensielt forurensede områder og kartlegge omfang, evt ta ut prøver til analyse. Hvordan massene skal behandles avgjøres av innholdet av potensielt forurensende stoffer. I henhold til Forurensningsforskriften Kapittel 2, §2-4; så er vi pliktet til å ta undersøkelser «dersom det er grunn til å tro at det er forurenset grunn i området» «Undersøkelsene skal som minimum avklare om normverdier, jf. Vedlegg 1 til dette kapitlet, er overskredet». Bruk av Grunnforurensingsdatabasen er ikke tilstrekkelig dokumentasjon. NB. databasens koordinatsfesting er svært upresis. Her må vi ut i felt! Se også V220 (Geoteknikk i vegbygging) kap. 8. om forurenset grunn"]
["Forurensning av jord og vann","Anlegg","Forurenset grunn ","Inngrep i  forurenset grunn skal gjennomføres iht tiltaksplan og Mljøteknisk graveplan.  ","EN","Som regel vil forurensningsgraden variere og tiltaksplanen bør derfor også inneholde en miljøteknisk graveplan som visuelt viser forurensningsgrad og håndtering. Dette er en graveplan som maskinfører bør pålegges å ha tilgjengelig i faser hvor graving i forurenset grunn pågår. Graveplan og koordinater skal innarbeides i modellgrunnlaget, slik at maskinfører kan følge graveplanen med høy presisjon. Se V220 (Geoteknikk i vegbygging) kap. 8. om forurenset grunn"]
["Forurensning av jord og vann","Anlegg","Forurenset grunn ","Sluttrapport skal leveres miljømyndighet som dokumentasjon på håndtering av forurenset grunn. ","SVV","Lovkrav. Forurensningsforskriften kap. 2. § 2-9.Gjennomføring av tiltak, rapportering m.m. "]
["Forurensning av jord og vann","Anlegg","Forurenset grunn ","Ved mistanke om forurenset grunn skal arbeid stanses, byggherren varsles, og prøver skal tas etter standard prosedyre.","EN","Lovkrav. Forurensningsforskriften kap. 2. § 2-10.Plikt til å stanse igangsatt terrenginngrep dersom det oppdages forurensning i grunnen.                                                                                                                                                        Mulighet for rask avdekking med oljemåler og XRF-utstyr for metalforurensning. Det er mulighet for \"over-natta-analyser\"."]
["Forurensning av jord og vann","Planlegging/prosjektering","Tilslamming av vassdrag, forurensing","Avklarte tiltak, for å skåne vassdrag mot frigjøring av partikler, skadelige stoffer og væsker, skal visualiseres f.eks. i rm-plan, X- eller O-tegninger. Ev. tidsrestriksjoner skal komme frem på tegninger.","SVV","Vis til ev. hensynssoner i reg.plan eller sett krav til minsteavstand til vassdrag for aktiviteter som kan medføre partikkelavrenning og forurensing (næringsstoffer, oljesøl, drivstoffsøl, maskinvask m.m.).  "]
["Forurensning av jord og vann","Planlegging/anlegg","Tilslamming av vassdrag","Erosjon og partikkelspredning til vann og vassdrag skal begrenses. Erosjonsreduserende tiltak som sedimentasjonsdammer, avskjærende grøfter, midlertidig omlegging av elva, plastring, siltgardiner ol skal vurderes. ","SVV/EN","Vurdere og tilpasse til vannføring (størrelse vassdrag). Ta høyde for flom. Vedr. omlegging av bekker/elver - se Vassdragshåndboka til NVE."]
["Forurensning av jord og vann","Anlegg","Tilslamming av vassdrag","Siltgardin monteres for å redusere spredning av partikler fra graving eller utfylling i vann. All graving og utfylling skal foregå innenfor siltgardin som er forankret til land. ","EN","Se Prosesskode 1: 12.513 Siltgardin/siltskjørt\n Sørg for at siltgardinen er dimensjonert riktig i forhold til dybde, vind, kornstørrelse til partiklene og strømningsforhold. Synliggjør avgrensning av fyllingsfot - steiner, molo etc. Se SVV rapport nr. 205  om siltgardiner. Siltgardin er mest optimal der strømmen er lavere enn 1m per sekund."]
["Forurensning av jord og vann","Planlegging/anlegg","Vasking og renhold av maskin- og utstyrspark inkludert spyling av betongbiler","Spyleanlegg/verkstedhall skal ha tilfredsstillende rensing (oljeavskiller, tett såle,  tett tank ev. kobling til kommunalt avløp osv.) etter gjeldende forskrifter. Renhold nær vann og grøfter/bekker som leder til vassdrag er ikke tillatt. Vurder å vise vann, grøfter og bekker som er sårbare på rigg- og marksikringsplan. ","EN","Kommunen regulerer dette. Entreprenør må søke kommunen om utslippstillatelse og tilrigging av verkstedshall. SVV sette krav om hensynssoner mot vassdrag i planen. Se også prosess 12.511"]
["Forurensning av jord og vann","Anlegg","Spredning av forurening fra slam fra vaskeplasser, oljeutskillere mm","Slam  fra oljeutskillere og renseanlegg leveres til offentlig godkjent mottak, jf. forurensningsforskriften og avfallsforskriften. ","EN","Kontraktsfestet. Se Prosesskode 1: 12.512 Håndtering av vann fra verksted, vaskerigg og anleggsdrift "]
["Forurensning av jord og vann","Anlegg","Forurensning, kjemikalielager","Kjemikalielager skal være sikret mot lekkasje ut, slik at ev. lekkasjer samles opp. Oppsamlingskapasiteten skal minimum tilsvare volum på største kjemikalietank.","EN","Beredskapsplan. Lovkrav.  Forurensningsloven kap 6 akutt forurensning.  § 40.(beredskapsplikt). Den som driver virksomhet som kan medføre akutt forurensning skal sørge for en nødvendig beredskap for å hindre, oppdage, stanse, fjerne og begrense virkningen av forurensningen. Beredskapen skal stå i et rimelig forhold til sannsynligheten for akutt forurensning og omfanget av skadene og ulempene som kan inntreffe.\n"]
["Forurensning av jord og vann","Anlegg","Forurensning, maskinpark","Det skal utarbeides vedlikeholdsplaner for maskinparken. Det skal være rimelig mengde absorberende materiale i alle anleggsmaskiner.","EN","Beredskapsplan. Se også kap 29.1 i C2 (R763)."]
["Forurensning av jord og vann","Planlegging","Forurensning vann ","Ved utslipp av overvann fra lukket avløp må utslippspunktet vurderes i tråd med økologisk belastning/hva resipienten kan tåle uten å endre tilstand jf. Vannforskriften (salt, tungmetaller, organiske miljøgifter). Ev. tiltak må på plass og mulig reguleres inn.","SVV","Kanskje heller i reguleringsplanen?"]
["Forurensning av jord og vann","Planlegging","Forurensning vann ","Saltholdig vann bør ikke slippes ut i små resipienter med stillestående vann. Vurder grundig andre løsninger (kost-nytte-funksjon) - velg utslipp til rennende vann nedstrøms eller infiltrasjon i grunnen minimum 200 meter fra sårbar resipient, ev. pumpe vannet til robust resipient.","SVV/EN","Kanskje heller i reguleringsplanen?"]
["Forurensning jord og vann","Anlegg","Vann, tilslamming, forurensing","Tiltak for å skåne vassdrag mot frigjøring av partikler, skadelige stoffer og væsker iverksettes før anleggsarbeid starter, metoder vurderes og detaljeres i hvert tilfelle. ","EN"]
["Forurensning jord og vann","Planlegging og anlegg","Vann, sprengning","Sprengsteinsmasser med nåleformede steinpartikler (uvaska) skal ikke legges i vassdrag uten forhåndsbehandling, grunnet perforeringsfare av gjeller (bunndyr, fisk, muslinger etc.). ","SVV","Se også Naturmangfold"]
["Landskapsbilde","Planlegging/ prosjektering","Landskapstilpasning","Typiske tverrsnitt/prinsipptegninger som supplerer normalprofilene innarbeides i KG tegningsheftet ","SVV evt. via konsulent"]
["Landskapsbilde","Planlegging/ prosjektering","Landskapstilpasning","Tegninger av prinsippløsninger eller utforming av sideterreng, massetak, deponier, motfyllinger, skredtiltak, erosjonssikring, jordbruksareal mm innarbeidet i KG-tegningshefte","SVV evt. via konsulent"]
["Landskapsbilde","Planlegging/ reise-opplevelse","Reiseopplevelse Eksisterende vegetasjon","Inneholder KG tegninger og beskrivelse av eksisterende gatetrær, alle eller annen verdifull vegetasjon i området som skal bevares. RM-tegninger, fysisk inngjerding, restriksjoner mot graving i rotsonen, fastsettelse av bøter ved overtredelse?","SVV evt. via konsulent"]
["Landskapsbilde","Planlegging/ reise-opplevelse","Reiseopplevelse Eksisterende vegetasjon","Inneholder KG tegninger og beskrivelse av eksisterende landskapselement, vegetasjonsdekke, skogholt el som skal bevares. RM-tegninger, fysisk inngjerding, restriksjoner mot graving, mellomlagring av masser, kjøring, fastsettelse av bøter ved overtredelse?","SVV evt. via konsulent"]
["Landskapsbilde","Planlegging/ prosjektering","Formgiving ","Er det avklart hvordan prosjektet skal videreføre formingsmessige kvalitetskrav gitt i planbestemmelser, plankart, beskrivelse og/ eller formingsveileder?","SVV evt. via konsulent"]
["Landskapsbilde","Planlegging/ prosjektering","Formgiving konstruksjoner","Framgår det av bestilling til prosjekterende at KG-tegninger/ beskrivelse skal ha nærmere angitte og konkrete føringer for overflate, form og lengde på konstruksjoner (bruer, kulverter, portaler, murer, støyskjermer)? ","SVV evt via konsulent"]
["Landskapsbilde","Planlegging/ prosjektering","Landskapstilpasning","Er det i KG-tegninger avsatt tilstrekkelig areal til landskapsforming av tunnelpåhugg, inklusive tilkomst til sprengning, gjerding, omfylling/ muring i anleggsperioden. Er lengden på portalen tverrfaglig avklart (geologi, rassikring, landskapstilpasning, vannhåndtering, muligheter for revegetering mm). Er KG- beskrivelse dekkende for hvordan arbeidet skal gjennomføres?","SVV evt. via konsulent"]
["Landskapsbilde","Planlegging/ prosjektering","Landskapstilpasning","Framgår terrengtilpasning av viltgjerder, sikringsgjerder på bergskjæringer (linjeføring, terrengbearbeiding under gjerdet, fargebruk på stolper, mm)av KG -tegninger og beskrivelse","SVV evt. via konsulent"]
["Landskapsbilde","Planlegging/ prosjektering","Landskapstilpasning/ Drift","Er plassering av utstyr, skilt etc. gjennomgått tverrfaglig både med tanke på visuelt uttrykk og driftsvennlighet (brøyting, slått) ","SVV evt. via konsulent"]
["Landskapsbilde","Planlegging/ prosjektering","Grøntanleggsplanter og revegeterings-metode","Er plantevalg og revegeteringsmetode i tråd med skriftlig risikovurdering (forskrift for fremmede skadelige arter)?","SVV evt. via konsulent","Evt. Naturmangfold"]
["Landskapsbilde","Planlegging/ prosjektering","Grøntanlegg Jord","Er det i KG aktuelt å beskrive blanding av jord til grøntanlegg eller vegens sideterreng, der undergrunnsjord, myrmasser el. andre masser fra anlegget er komponenter?","SVV evt. via konsulent"]
["Landskapsbilde","Planlegging/ prosjektering","Drift","Utarbeides det skjøtselsplan for etableringsskjøtsel og drift parallelt med prosjekteringen, slik at skjøtselsvennlige løsninger blir valgt?","SVV evt. via konsulent"]
["Landskapsbilde","Planlegging/ prosjektering","Drift","Er tilpasning/ forming av overgangen mellom gate og naboeiendommer/ bygninger eller mellom ulike framtidige vegeiere avklart? ","SVV evt. via konsulent"]
["Landskapsbilde","Planlegging/ prosjektering","Drift","Hvordan bør materialvalg og detaljløsningene være med tanke på framtidig drift (slått, ugrashåndtering, behov for snølagring) og med tanke på hvem skal eie/ drifte arealet? Er løsningene innarbeidet i skjøtselsplan, med ansvar for hvem som drifter hva?","SVV evt. via konsulent"]
["Landskapsbilde","Planlegging/ prosjektering","Støyskjermer","Gjennomgå planleggings- og prosjekteringsrutine for støyskjermer SVV-rapport 2008/13 \"Veileder for lokale skjermer\" som grunnlag for å bestille/ gjennomføre fagkyndig prosjektering","SVV evt. via konsulent","Evt Støy"]
["Landskapsbilde","Planlegging/ prosjektering","Rigg- og marksikring","Sikre tverrfaglig prosess underveis i prosjekteringen knyttet til innhold og utarbeidelse av rigg- og marksikringstegningene til KG-tegningsheftet. Tydelig avklart hvem som skal føre RM-planen i pennen","SVV evt. via konsulent","Evt Naturmangfold eller Naturressurser "]
["Landskapsbilde","Planlegging/ prosjektering","Rigg- og marksikring","Gjennomgå RM-planen i forbindelse med Miljørisken. Hensikt: Sikre en mest mulig oppdatert RM-plan. Bruke RM-kartene til å diskutere seg gjennom prosjektet. Sørge for at de YM-tiltakene som det er hensiktsmessig å stedfeste via RM-tegningene, fanges opp av denne","SVV evt. via konsulent","Evt Naturmangfold eller Naturressurser "]
["Landskapsbilde","Planlegging/ prosjektering","Rigg- og marksikring Massehåndtering","Gir KG (RM-tegninger eller O-tegninger og beskrivelsen) føringer for separat mellomlagring/ permanent lagring av ulike typer jordmasser? Matjord, fremmedartinfisert jord, vegetasjonsdekke til naturlig revegetering, undergrunnsjord til jordproduksjon. ","SVV evt. via konsulent","Evt Naturmangfold eller Naturressurser "]
["Landskapsbilde","Planlegging/ prosjektering","Rigg- og marksikring Massehåndtering","Dersom prosjektområdet ikke har avsatt egne rigg/ deponiarealer klargjør konkurransegrunnlaget hvordan byggherre skal sikre at entreprenøren håndterer masser i hht. lov og forskriftskrav? ","Prosjekteier","Evt Naturmangfold eller Naturressurser "]
["Landskapsbilde","Planlegging/ prosjektering","Rigg- og marksikring Massehåndtering","Krav til at entreprenørens mannskaper skal delta på Grønn time innarbeides i KG","SVV evt. via konsulent","Evt Naturmangfold eller Naturressurser "]
["Landskapsbilde","Anlegg","Rigg- og marksikring Massehåndtering","Inneholder SVVs kontrollplan konkret opplegg for å følge opp entreprenørens massehåndtering","SVV","Evt Naturmangfold eller Naturressurser "]
["Landskapsbilde","Planlegging/ prosjektering","Vegetasjon og masser","Er det foretatt skriftlig miljørisikovurdering av vegetasjon og masser (vektorer) (forskrift for fremmede skadelige arter) og evt. tiltak innarbeidet i prosessbeskrivelsen?","SVV evt. via konsulent","Evt Naturmangfold"]
["Friluftsliv - byliv","Planlegging/anlegg","Sikkerhet","Alle normalt brukte anlegg for friluftsliv, gsv og turløyper skal opprettholdes eller omlegges i anleggsperioden. Områdene for ferdsel skal sikres og krav til universell utforming skal ivaretas så langt som mulig. ","Entreprenør"]
["Friluftsliv - byliv","Planlegging","Områdebruk","Planområdets bruk ift. nærmiljø- og friluftsaktiviteter, møteplasser, institusjoner og kommende arrangementer kartlegges. ","SVV","Skolevegkartlegging, stier. Skiløyper osv. "]
["Friluftsliv - byliv","Planlegging","Avbøtende ","Anleggsvirksomhet skal ihensynta områdebruk (tilkomst, støy etc.). Nivå av avbøtende tiltak vurderes og planlegges.","SVV","Gjelder blant annet midlertidig omlegging av høytrafikkerte veger til lokale veger som ikke er tilpasset mengden trafikk og store kjøretøy. Gjelder også nærmiljøets tilbud til befolkningen (åpningstider, endret atkomst til fasiliteter)."]
["Friluftsliv - byliv","Planlegging/anlegg","Informasjon","Informere sentra i nærmiljøet, skoler, industri etc. om konsekvensene av tiltaket og hvilke gangsystemer som er planlagt. Dialog for å finne beste løsning.","SVV","Sikkerhet, helseplager (støv, støy). Orientere om endringer i nærmiljøets fasiliteter/tjenester (kortere åpningstider, endret atkomst osv)."]
["Friluftsliv - byliv","Planlegging","Kompenserende tiltak","Vurdere erstatningsområder for friluftsliv/nærmiljø. Tiltak kartfestes.","SVV","Eksempler kan være å flytte fasiliteter/tjenester (lekeplasser, bibliotek mm)"]
["Naturmangfold","Planlegging","Fremmede skadelige arter","Håndtering av fremmede skadelige arter skal utføres i tråd med Statens vegvesen Rapport 387 Fremmede skadelige arter - oppfølging av lovverk. Konkrete artsspesifikke tiltak må tilpasses hvert prosjekt. ","SVV"]
["Naturmangfold","Anlegg","Massehåndering (fremmede skadelige arter)","Mellomlagring av infiserte masser skal legges på fiberduk. ","EN"]
["Naturmangfold","Anlegg","Massehåndering (fremmede skadelige arter)","Maskiner og utstyr som brukes til graving og flytting av infiserte masser må rengjøres for jord og røtter på stedet, før de flyttes til annet sted. ","EN"]
["Naturmangfold","Anlegg","Massehåndering (fremmede skadelige arter)","Transport av infiserte masser skal dekkes med presenning eller nett hvis fare for avrasing. ","EN"]
["Naturmangfold","Anlegg/Drift","Fremmede skadelige arter ","Arealer med toppmasser eller nedgravde masser med fremmede skadelige arter skal håndteres slik at de ikke er spiringsdyktige og at de ikke graves opp igjen.","EN"]
["Naturmangfold","Planlegging/anlegg","Fremmede skadelige arter ","Fremmede skadelige arter bør bekjempes i anlegget før graving. Det er avgjørende at det er tilstekkelig tid og kompetanse til dette slik at bekjempelsen blir vellykket. Konkrete tiltak må tilpasses art og sted. Dersom plantevernmidler skal benyttes, følg Plantevernforskriften og NA-rundskriv nr 2-2016.","EN","Eksempler på bekjempelsesstrategier for utvalgte arter kan man finne i R763: Vedlegg til driftsmalen: 0505-D2-S34-UonskedeArterSmittestoffer og bekjempelsesstrategier: 0505-D2-ID7480c, 0505-D2-ID7480e, 0505-D2-ID7480f"]
["Naturmangfold","Planlegging","Massehåndtering - planteskadegjørere og floghavre","Unngå spredning av floghavre og kjente planteskadegjørere (som potetcystenematode, potetkreft, potetringråte),  over eiendomsgrenser. Sjekk med Mattilsynet, og beskriv massehåndtering.","SVV","Egen forskrift. "]
["Naturmangfold","Planlegging","Massehåndtering - floghavre","Oppfordre grunneiere i åpne møter eller andre arenaer om å søke fritak fra floghavreregisteret dersom de kun dyrker grovfôr, og har gjort det de siste 5 årene. Send brev.","SVV","Egen forskrift.  "]
["Naturmangfold","Planlegging","Faunapassasjer","Dersom faunapassasjene ikke er håndtert/detaljert i andre planer, ta det inn her.","EN"]
["Naturmangfold","Planlegging/Anlegg","Verdifull natur","Dersom det finnes spesielt verdifull natur i prosjektet (for eksempel utvalgte naturtyper, prioriterte arter, rødlistede arter og naturtyper el) så må det gjøres tiltak for å sikre disse i anleggsfasen.","EN"]
["Naturmangfold","Anlegg","Fremmede skadelige arter","Benytte vann fra kommunalt anlegg eller vann som er fri for annen smitte enn det som finnes på stedet. Se forrøverig vedlegg 0505-D2-S34-UonskedeArterSmittestoffer","EN"]
["Naturmangfold","Planlegging og anlegg","Vann, strømingsendring","Tilbakeføring/omlegging av bekker skal gjøres slik at bekken oppnår et naturlik utforming med variasjoner i løp, kulper og stryk. Unngå ensartet og teknisk utforming. Unngå bruk av sprengstein i reetablering av bekkeløp.","EN"]
["Naturmangfold","Planlegging","Vann, strømingsendring","Ved eventuelle endringer fra reguleringsplanen  (for konstruksjoner, endring av aktivitet, e.l.). Skal det søkes om tillatelse etter Laks- og innlandsfiskeloven, (Forskrift om fysiske tiltak i vassdrag) og sjekke ut  Vannressursloven.","SVV"]
["Naturmangfold","Planlegging","Vann, strømingsendring","Anleggsviksomhet skal ikke foregå i gyteperioder som må defineres i hvert enkelt tilfelle (må sjekkes for de ulike lokalitetene og nedstrøms disse).  Restriksjonsområder fremheves og kartfestes. ","SVV"]
["Naturmangfold","Planlegging","Vann, strømingsendring","Behov for erosjonssikring skal utredes, og planlegges ved behov (krever tegning).","SVV"]
["Naturmangfold","Planlegging","Vann, strømingsendring","Ivareta stedlig strømningsforhold, kantvegetasjon (hjemlet Vannressursloven §11) og bunnsubstrat. Hensynssoner kartfestes. Anleggsarbeid og konstruksjoner skal hensynta dette. ","SVV"]
["Naturmangfold","Planlegging og anlegg","Vann, strømingsendring","Kulverter og stikkrenner skal utformes slik at det ikke hindrer fiskens frie gang. Det er en fordel at kulverter utformes med mest mulig naturlig bunnforhold. Består bunnen av bekken av f.eks. stein/rullesteine skal dette etterstrebes  gjenskapt i bunnen av kulverter.","SVV"]
["Naturmangfold","Planlegging","Massehåndtering","Naturlig revegetering fra stedlige toppmasser skal  gjennomføres der anlegget berører naturområder og massene ikke inneholder uønskede arter. Det legges inn en buffersone mot landbruk, bebyggelse osv. for å forhindre forurensning av de naturlige toppmassene. Det må gjøres lokale tilpasninger.","SVV"]
["Naturmangfold","Planlegging","Generelt","Vurder botområder (arealer eller f.eks. trær), der inngrep medfører bøtelegging. Kartfestes. Markes i felt.","SVV/EN"]
["Naturmangfold","Planlegging","Generelt","Eventuelle tilleggskartlegginger av noen naturmangfoldtema kan være nødvendig for å detaljere tiltak. Det forutsettes at generell kartlegging er utført i tidligere fase.","SVV","Pass på dette i de andre temaene også!"]
["Naturmangfold","Anlegg","Oppfølging, undersøkelser","Det skal gjennomføres følgende etter-undersøkelser XXXX, innen XXXX (YM-plan for driftsfasen). Presenteres på overleveringsmøtet med drift og legges som vedlegg til sluttrapport. (Hvilke før- og etterundersøkelser følger av reguleringsplanen.)","SVV"]
["Naturmangfold","Planlegging","Massehåndtering","I store og kompliserte prosjekter bør det utarbeides en plan for håndtering av ulike masser (massehåndteringsplan, rigg- og marksikringsplan e.l.). Utfordringene kan være: Masser til naturlig revegetering fra stedlige toppmasser,  ivaretakelse av landbruksjord, fremmede skadelige arter, andre uønskede arter (feks floghavre og PCN) og, eventuelt forurensede masser.  Det skal konkret vises hvordan massene skal tas av og, mellomlagres (Z-tegning) og legges ut igjen (O-tegning). Tilpass dette til prosjektets plantyper og tegningen.","SVV","Naturressurs, Forurensing jord og vann, Landskapsbilde"]
["Naturmangfold","Anlegg","Utlegging av gytegrus","Utklipp fra Tiltaksakshåndbok for bedre fysisk vannmiljø(Miljødirektoratet):\nDet bør legges ut tilstrekkelig med gytegrus på egnede plasser, der den ligger stabilt nok til å motstå utspyling ved flommer, men samtidig strømutsatt nok til at vanngjennomstrømning sikrer gode oksygenforhold for egg, og minimerer sedimentasjon av finsediment og begroing.  Grusen må legges slik at den ikke blir tørrlagt ved lave vannføringer. Vanndyp og vannhastighet  bør i utgangspunktet ligge innenfor 30-150 cm vanndyp og 30-80 cm/s vannhastighet. Grusblanding bør ligge på 1-10 cm som tilsvarer siktesortering på 8-64 mm. En bør fortrinnsvis bruke avrundet grus fra morene eller elveavsetninger",null,"Behov for utlegging av gytegrus er noe som skal miljørisikovurderes og behov skal vurderes faglig, det krever tillatelse for utlegging. Det anbefales at en bruker Tiltaksakshåndbok for bedre fysisk vannmiljø utarbeidet av Miljødirektoratet."]
["Naturmangfold","Anlegg","Ivareta felte trær som  som leveområde","Store trær som ikke kan bevares i anlegget, tas ned i sin helhet. Den hele stammen plasseres i stedsnær skog slik at stammen kan brytes ned på en naturlig måte og skape bosted for sopp, insekter og andre nedbryterorganismer. "]
["Kulturmiljø","Anlegg","Kulturminner i planområdet","Verneverdige kulturminner markert i rigg- og marksikringsplanen (eller ev. O-tegninger) og i felt, skal ikke berøres i anleggsperioden. ","SVV/EN","Vurdere mulighet for å ilegge bøter ved brudd. "]
["Kulturmiljø","Anlegg","Kulturminner i anleggsområdet","Anleggsarbeidet skal straks stanses, og byggherren og Fylkeskommunen varsles, dersom man finner automatisk fredete kulturminner under anleggsarbeidet.  (Lovkrav)","SVV/EN"]
["Kulturmiljø","Anlegg","Kulturminner i anleggsområdet","Anleggsarbeidet skal straks stanses, og byggherren og Fylkeskommunen varsles, dersom nyere tids kulturminner står i fare for å bli skadet.","SVV/EN","Tenke på denne setningen"]
["Kulturmiljø","Anlegg","Kulturminner  -setningsskader","Kartlegge grunnvannsstand og sikre at grunnvannsstand ikke synker, for å unngå setningsskader på verneverdig bebyggelse","SVV/EN"]
["Kulturmiljø","Anlegg","Kulturminner -uttørking av kulturlag","Kartlegge grunnvannsstand og sikre at grunnvannsstand ikke synker, for å unngå uttørking av fredete (og eldre) kulturlag","SVV/EN"]
["Kulturmiljø","Anlegg","Kulturminner - vibrasjoner","Kartlegge grunnforhold og montere vibrasjonsmålere for å unngå setningsskader på verneverdig bebyggelse og konstruksjoner.","SVV/EN"]
["Kulturmiljø","Planlegging","Unngå spredning av plantesykdommer/uønskete arter","Vurdere om følgende tiltak er nødvendig: Vask/rens av gravemaskin mellom ulike eiendommer eller åkerstykker for å unngå spredning av plantesykdommer/uønskete arter i forbindelse med arkeologiske registreringer. (Se tema naturmangfold)","SVV, EN, fylkeskommunen"]
["Kulturmiljø","Drift","Oppfølging, tilstandsvurdering","Det skal gjennomføres befaring for kartlegging av eventuelt skader av kulturminner/kulturmiljø etter endt anleggsarbeid. Ved skader må utbedring gjøres etter antikvariske metoder.","SVV, fylkeskommunen"]
["Kulturmiljø","Planlegging",null,"Dokumentasjon (antikvarisk dokumentasjon) av verneverdig bebyggelse/anlegg. Vurdere flytting eller gjenbruk av deler.","SVV"]
["Klimagasser og energiforbruk","Anlegg","Forbruk av drivstoff","Forbrukt drivstoffmengde og KWT rapporteres byggherren hver måned. Tilpasse periode til felles krav til rapportering. ","EN","Rapporteres kvartalsvis eller pr. 6 mnd . Kan rapporteres som en del av månedsrapporten fra Entreprenør "]
["Klimagasser og energiforbruk","Planlegging/anlegg","Forbruk av drivstoff","Vurdere avstand til massedeponiområder, bør tenke på deponier i nærføring av anleggslinja. - kortere kjørevei = bedre energiforbruk. Viktig å legge inn deponi og midlertidig deponi i reg.plan tegning.","SVV/EN","Grei, men hovedvurderingen må gjøres under regulering/byggeplan."]
["Klimagasser og energiforbruk","Planlegging","Materialvalg","Produksjonen av materialet bør vurderes også holdbarheten, livsløp ","SVV","Kan være vanskelig, men mulig. "]
["Klimagasser og energiforbruk","Anlegg","Maskiner","Stille krav til maskinpark med tanke på forbruk. ","SVV/EN","Maskiner har sertifisering, går å se på disse og hvilke som gir minst energiforbruk"]
["Klimagasser og energiforbruk","Planlegging","Valg av belysning","Det skal tas miljøhensyn ved valg av belysning (LED-lys, ingen lys, vanlig vegbelysning, en- eller tosidig belysning, høyde på stolper, lysfarge)","SVV"]
["Materialvalg og avfallshåndtering","Anlegg","Materialvalg","Kreve vurdering av substitusjonsplikt etter produktkontrolloven § 3, se også internkontrollforskriften. ","EN","Denne trengs jo egentlig ikke (lovpålagt), men byggherre har en pålegg til å følge opp."]
["Materialvalg og avfallshåndtering","Anlegg","Håndtering av avfall","Sluttrapport skal utarbeides og leveres til kommunene med kopi til byggherren  KOMMER nytt forslag i C2, som kan tas med her fordi lovverket er endret!","EN","Tek 10"]
["Naturressurser","Anlegg","Forurensning, vann","Drikkevannsbrønner skal skjermes mot forurensing i anleggsperioden. Følgelig skal oljeskift, fylling av drivstoff og andre aktiviteter, forbundet med forurensningsrisiko, foregå på sikker avstand. (De aktuelle områdene bør absolutt visualiseres f.eks. i rm-plan, X- eller O-tegninger).","EN"]
["Naturressurser","Planlegging","Forurensning, vann","Førundersøkelser av drikkevannsbrønner","SVV"]
["Naturressurser","Planlegging","Landbruk","Økologisk drift skal beskyttes mot bruk og avdrift av sprøytemidler og kunstgjødselpåvirking (buffersone kreves).","SVV"]
["Naturressurser","Anlegg","Uønska arter","Masser som tilføres strekningen skal være fri for problemarter som uønska arter knyttet til landbruk, bl.a. floghavre, potetcystenematode og potetkreft.","EN"]

{"sheet":"Beskrivelse av prosess","index":11,"n_rows":6,"n_cols":1,"rows_kept":6,"cut":false,"hidden":true,"merged":[]}
["Fastlegging av relevante miljøtema samt den systematiske gjennomgangen av miljøtemaene for prosjektet skal utføres av personell med miljøfaglig kompetanse."]
["Risikovurderingen skal gjøres av en gruppe som består av minst tre personer inkludert prosjektleder/byggeleder og en tilrettelegger med kunnskap om metodikken i risiko­vurderinger samt bruk av verktøyet Risken. Fagpersoner med kunnskap om de relevante miljøtemaene er viktige deltagere i gruppen."]
[]
["Når risikovurderingen er gjennomført og dokumentert, skal resultatet kvalitetssikres av utvalgte fagmiljøer."]
[]
["Risikovurdering gjøres i første rekke i fasen før prosjektering og suppleres og detaljeres deretter under prosjekteringen og under bygging."]

{"sheet":"Avgrensning","index":12,"n_rows":15,"n_cols":7,"rows_kept":15,"cut":false,"hidden":false,"merged":[[12,6,13,6],[10,1,11,1],[10,2,11,2],[10,3,11,3],[10,4,11,4],[10,5,11,5],[10,6,11,6],[12,1,13,1],[12,2,13,2],[12,3,13,3],[12,4,13,4],[12,5,13,5],[8,6,9,6],[2,6,3,6],[4,1,5,1],[4,2,5,2],[4,3,5,3],[4,4,5,4],[4,5,5,5],[4,6,5,6],[8,1,9,1],[8,2,9,2],[8,3,9,3],[8,4,9,4],[8,5,9,5],[0,0,1,0],[0,1,1,1],[0,2,1,2],[0,6,1,6],[2,0,3,0],[2,1,3,1],[2,2,3,2],[2,3,3,3],[2,4,3,4],[2,5,3,5]]}
[null,"Landskapsbilde","Friluftslliv-Hverdagsliv",null,null,null,"Prissatte konsekvenser "]
[null,null,null,"Naturmangfold","  Kulturmiljø","Naturressurser"]
["Landskapskonvensjonen","Det romlig-visuelle landskapet","Landskapet slik folk opplever og bruker det","Det økologiske landskapet","Det kulturhistoriske landskapet","Produksjons- landskapet "]
[]
[null,"Landskaps- vurderinger; visuelt, romlig, estetisk","Områder for rekreasjon og sosialt liv","Grøntområder med biologisk funksjon","Kulturhistorisk betydning","Sjelden relevant"]
["Byområder"]
["Kulturland- skap","Landskaps- vurderinger; visuelt, romlig, estetisk","Bruk og opp- levelse","Artsmangfold og naturtyper","Kulturhistorisk betydning","Landbruks- produksjon, bergverks- aktiviteter","Økonomisk tap** som følge av arealbeslag, eller drifts- ulemper"]
["Utmark og vilt","Landskaps- vurderinger; visuelt, romlig, estetisk","Turbruk, jakt, fiske etc. som friluftsaktivitet","Leveområder/ funksjoner for viltarter","Kulturhistorisk betydning","Skogbrukets produksjon, bergverks- aktiviteter","Økonomisk tap** som følge av arealbeslag, eller drifts- ulemper"]
[null,"Landskaps- vurderinger; visuelt, romlig, estetisk","Bade- og fiske- plasser","Vann som leve- sted, økologisk tilstand i vann","Automatisk fredede kultur- minner under vann","Vann som ressurs, drik- kevann, vann til jordbruks- vanning etc.","Økonomisk tap** ved forrin- gelse av vann- ressurser"]
["Vann"]
[null,"Sjelden relevant","Redusert bruk som følge av støy-/ støv- plager / endret lokalklima","Støy som påvir- ker dyrelivet, luftforurensning som påvirker floraen","Sjelden relevant","Sjelden relevant","Plager og redu- sert livskvalitet knyttet til støy og luft-forurensning"]
["Støy og luft"]
[null,"Linjeføring og skala","Turbruk og ferdsel i nærmiljøet","Sjelden relevant","Ferdselsveger med kulturhisto- risk betydning","Ferdselsveger som er viktige for adkomst til naturressurser","Omfang og tidsbruk for gående og syklende (hvis det ikke finnes data, skal dette inngå i nærmiljø/ friluftsliv)"]
["Ferdselsveger"]
["Enkelt elementer*","Landskaps- vurderinger; visuelt, romlig, estetisk","Identitets- skapende symbol","Tilknyttet biolo- gisk mangfold","Kulturhistorisk betydning","Ikke relevant"]

{"sheet":"Miljørett og veiledning","index":13,"n_rows":115,"n_cols":6,"rows_kept":115,"cut":false,"hidden":true,"merged":[[51,0,63,0],[51,3,52,3],[53,1,56,1],[64,0,73,0],[27,0,32,0],[27,2,28,2],[27,3,30,3],[29,1,31,1],[33,0,50,0],[0,0,0,4],[3,0,16,0],[17,0,26,0],[17,2,20,2],[17,3,22,3],[21,1,24,1],[23,2,24,2],[74,0,86,0],[87,0,92,0],[87,3,92,3],[93,0,108,0],[109,0,111,0]]}
[]
["Tema","Lover ","Forskrifter","Standarder, retningslinjer m.m.","Håndbøker, veileder, o.l."]
["Alle fagtemaer",null,null,null,"N100, N200, V712, R610, R761 og R763"]
["Støy","Forurensningsloven"]
[null,"Plan- og bygningsloven (§ 12-7)"]
[null,null,"Forurensningsforskriften (kap. 5, 24 og 30) "]
[null,null,"Byggtekniskforskrift (TEK 10) /NS- 8175",null,null,"Støyretningslinjen T-1442, praktisering i Statens vegvesen"]
[null,null,"Forskrift om begrensning av støy i Oslo kommune"]
[null,null,null,"Retningslinjer for behandling av støy i arealplanlegging T-1442/2012 (kap. 4) og 2016 "]
[null,null,null,"NS 8176:2005  Vibrasjoner og støt - Måling i bygninger av vibrasjoner fra landbasert samferdsel og veiledning for bedømmelse av virkning på mennesker"]
[null,null,null,"Norsk standard NS 8175:2012 Lydforhold i bygninger - Lydklasser for ulike bygningstyper"]
[null,null,null,null,"V135 - Fasadeisloering mot støy"]
[null,null,null,null,"SVV-rapport nr. 2008/13 - Veileder for lokale støyskjemer"]
[null,null,null,null,"SVV-notat 2007: Støyretningslinjen T-1442, praktisering i Statens Vegvesem (Sveis 2004/047879-033)"]
[null,null,null,null,"Veilder M128 til retningslinjen T-1442"]
[null,null,null,null,"V520 Tunnelveiledning"]
[null,null,null,null,"V134 - Veger og Dyreliv"]
["Vibrasjoner","Plan- og bygningsloven "]
[null,"Forurensningsloven"]
[null,"Naboloven"]
[null,"Kommunehelsetjenesteloven"]
[null,null,"Forurensningsforskriften"]
[null,null,"Forskrift om krav til byggverk og produkter til byggverk (kap. 13)"]
[null,null,null,"NS 8141 Vibrasjoner og støy. Måling av svingehastighet og beregning av veiledende grenseverdier for å unngå skader på byggverk."]
[null,null,null,"NS 8176 Vibrasjoner og støt - Måling i bygninger av vibrasjoner fra landbasert samferdsel og veiledning for bedømmelse av virkning på mennesker"]
[null,null,null,null,"V220 - Geoteknikk i vegbygging"]
[null,null,null,null,"M-128 Veileder til retningslinje for behandling av støy i arealplanlegging"]
["Luftforurensning","Forurensningsloven"]
[null,"Kommunehelsetjenesteloven"]
[null,null,"Forurensningsforskriften"]
[null,null,"Lokale forskrifter (f.eks. Bergen)"]
[null,null,null,"T-1520 Retningslinje for behandling avluftkvalitet i arealplanlegging (kap. 6.1-3) "]
[null,null,null,null,"Utredning av lokal luftkvalitet i arealplanlegging - Interne råd for bruk av retningslinje T-1520 i Statens vegvesen"]
["Forurensning av jord og vann ","Vannressursloven"]
[null,"Plan- og bygningsloven"]
[null,"Forurensningsloven"]
[null,"Grannelova"]
[null,"Lakse- og innlandsfiskeloven"]
[null,"Naturmangfoldloven"]
[null,"Lov om vassdrag og grunnvann"]
[null,null,"Vannforskriften"]
[null,null,"Avfallsforskriften"]
[null,null,"Drikkevannsforskriften"]
[null,null,"Forurensningsforskriften"]
[null,null,"Forskrift om forurensningslovens anvendelse på radioaktiv forurensning og radioaktivt avfall "]
[null,null,"Forskrift om rikspolitiske retningslinjer for vernede vassdrag"]
[null,null,"Forskrift om varsling av akutt forurensning eller fare for akutt forurensning"]
[null,null,"Internkontrollforskriften"]
[null,null,"Forskrift om vassdrag og grunnvann "]
[null,null,null,"Flomdirektivet: Europaparlamentets og Rådets direktiv 2007/60/EF av 23. oktober 2007 om vurdering og styring av risikoen for oversvømmelser"]
[null,null,null,null,"Vannettsiden - https://www.vegvesen.no/intranett/Etat/Veg/Omgivelser/Vann\n"]
["Landskapsbilde/bybilde","Plan- og bygningsloven, (bla. § 12-7, LOV 2008-06-27 nr 71)"]
[null,"Naturmangfoldloven"]
[null,null,null,"Universell utforming"]
[null,null,null,"Statelig arkitekturpolitkk \"arkitektur nå\""]
[null,null,null,"Statens vegvesen sin arkitekturstrategi"]
[null,null,null,"Den europeiske landskapskonvensjonen"]
[null,null,null,null,"V271 - Vegetasjon i veg- og gatemiljø"]
[null,null,null,null,"N101 - Rekkverk og vegens sideområder"]
[null,null,null,null,"V130 - Vegen i landskapet"]
[null,null,null,null,"Gaten som by- og stedformer"]
[null,null,null,null,"SVV rapport nr. 2009/12 E10 Lofotens fastlandsforbindelse"]
[null,null,null,null,"SVV rapport nr. 387 Fremmede skadelig arter"]
[null,null,null,null,"SVV rapport nr. 300 Vegen i landskapet"]
["Nærmiljø og friluftsliv","Plan og bygningsloven"]
[null,"Friluftsloven"]
[null,"Folkehelseloven"]
[null,null,"Forskrift om rikspolitiske retningslinjer for vernede vassdrag"]
[null,null,"Forurensningsforskriften"]
[null,null,"Forskrift om konsekvensutredninger"]
[null,null,null,"Rikspolitiske retningslinjer for barn og planlegging"]
[null,null,null,"Statlige planretningslinjer for differensiert forvaltning av strandsonen langs sjøen"]
[null,null,null,"T-3/09 Iverksetting av markaloven"]
[null,null,null,"T-4/09 Fylkesmannens myndighet i klagesaker i Marka – endringer til rundskriv "]
["Naturmangfold","Naturmangfoldloven"]
[null,"Lov om laksefiske og innlandsfiske"]
[null,"Plan og byggingsloven"]
[null,"Vannressursloven"]
[null,null,"Forskrift om utvalgte naturtyper "]
[null,null,"Forskrifter om prioriterte arter (se også §§ 23 og 24 i naturmangfoldloven)"]
[null,null,"Forskrift om fysiske tiltak i vassdrag"]
[null,null,"Forskrift om fremmede organismer"]
[null,null,"Forskrift om konsekvensutredninger"]
[null,null,null,null,"V271 - Vegetasjon i veg- og gatemiljø"]
[null,null,null,null,"V134 - Veger og dyreliv"]
[null,null,null,null,"SVV rapport nr. 387 Fremmede skadelig arter"]
[null,null,null,null,"Fagnettside - http://www.vegvesen.no/fag/fokusomrader/Miljo+og+omgivelser/Naturmangfold\n"]
["Kulturmiljø","Lov om kulturminner"]
[null,"Plan og bygningsloven"]
[null,null,"Forskrift om konsekvensutredninger"]
[null,null,"Forskrift om fredning av byggverk i Statens vegvesens eie"]
[null,null,"Forskrift om fredning av bruer i Statens vegvesen"]
[null,null,"Forskrift om fredning av veganlegg i Statens vegvesens eie (1 og 2)"]
["Materialvalg og avfall","Forurensningsloven"]
[null,"Produktkontrolloven"]
[null,"Plan- og bygningsloven"]
[null,"Lov om offentlige anskaffelser"]
[null,null,"Forurensningsforskriften"]
[null,null,"Produktforskriften"]
[null,null,"Forskrift om krav til byggverk og produkter til byggverk (TEK)"]
[null,null,"Forskrift om offentlige anskaffelser"]
[null,null,"Biocidforskriften"]
[null,null,"Avfallsforskriften (kap. 9 og 11)"]
[null,null,"Forskrift om klassifisering, merking og emballering av stoffer og stoffblandinger (CLP )"]
[null,null,"Produktforskriften"]
[null,null,"Internkontrollforskriften"]
[null,null,"REACH-forskriften"]
[null,null,null,"Prioriterte miljøgifter"]
[null,null,null,null,"R765 - Avfallshåndtering"]
["Naturressurser","Reindriftsloven"]
[null,"Naturmangfoldloven"]
[null,"Plan- og bygningsloven"]
[null,null,"Forskrift om fremmede organismer"]
[null,null,null,null,"V271 - Vegetasjon i veg- og gatemiljø"]
["Klimagasser og energiforbruk",null,null,"Krav til klimakutt i konkurransegrunnlag?"]

{"sheet":"Beskr Støy og vibrasjon","index":14,"n_rows":2,"n_cols":13,"rows_kept":2,"cut":false,"hidden":false,"merged":[]}
[]
["Støy",null,null,null,null,null,null,null,null,null,null,null,"Vibrasjon"]

{"sheet":"Beskr Luftforurensing","index":15,"n_rows":2,"n_cols":1,"rows_kept":2,"cut":false,"hidden":false,"merged":[]}
[]
["Luftforurensing"]

{"sheet":"Beskr Forurensing jord og vann","index":16,"n_rows":2,"n_cols":1,"rows_kept":2,"cut":false,"hidden":false,"merged":[]}
[]
["Forurensing av jord og vann"]

{"sheet":"Beskr Landskapsbilde","index":17,"n_rows":2,"n_cols":1,"rows_kept":2,"cut":false,"hidden":false,"merged":[]}
[]
["Landskapsbilde og bybilde"]

{"sheet":"Beskr Friluftsliv by- og bygd","index":18,"n_rows":2,"n_cols":1,"rows_kept":2,"cut":false,"hidden":false,"merged":[]}
[]
["Friluftsliv/by- og bygdeliv"]

{"sheet":"Beskr Naturmangfold","index":19,"n_rows":83,"n_cols":13,"rows_kept":83,"cut":false,"hidden":false,"merged":[]}
[]
["Naturmangfold"]
[]
[]
[]
[]
[]
[]
[]
[]
[]
[]
[]
[]
[]
[]
[]
[]
[]
[]
[]
[]
[]
[]
[]
[]
[]
[]
[]
[]
[]
[]
[]
[]
[]
[]
[]
[]
[]
[]
[]
[]
[]
[]
[]
[]
[]
[]
[]
[]
[]
[]
[]
[]
[]
[]
[]
[]
[]
[]
[]
[]
[]
[]
[]
[]
[]
[]
[]
[]
[]
[]
[]
[]
[]
[]
[]
[]
[]
[]
[]
[null,null,null,null,null,null,null,null,null,null,null,null,"Veganlegget skal ikke medføre permanent arealbeslag i vernede områder. "]
[null,null,null,null,null,null,null,null,null,null,null,null,"Inngrep som kan skade naturmiljøet utover det som er høyst nødvendig for gjennomføring av tiltaket skal unngås. Utforming og bygging av bru og veganlegg skal legge vekt på å begrense negative virkninger for vassdrag, naturmiljø og ravinelandskap i Daueruddalen. Veganlegget skal ikke bidra til å spre fremmede uønskede arter."]

{"sheet":"Beskr Kulturarv","index":20,"n_rows":2,"n_cols":1,"rows_kept":2,"cut":false,"hidden":false,"merged":[]}
[]
["Kulturarv"]

{"sheet":"Beskr Klimagassut - energiforbr","index":21,"n_rows":2,"n_cols":1,"rows_kept":2,"cut":false,"hidden":false,"merged":[]}
[]
["Klimagassutslipp og energiforbruk"]

{"sheet":"Beskr Materialvalg - avfallshån","index":22,"n_rows":2,"n_cols":1,"rows_kept":2,"cut":false,"hidden":false,"merged":[]}
[]
["Materialvalg og avfallshåndtering"]

{"sheet":"Beskr Naturressurser","index":23,"n_rows":2,"n_cols":1,"rows_kept":2,"cut":false,"hidden":false,"merged":[]}
[]
["Naturressurser"]

{"sheet":"Data","index":24,"n_rows":11,"n_cols":5,"rows_kept":11,"cut":false,"hidden":false,"merged":[]}
["Forurensning av jord og vann",null,1,null,"BH"]
["Friluftsliv/ by- og bygdeliv",null,2,null,"PK"]
["Klimagass og energiforbruk",null,3,null,"EN"]
["Kulturarv",null,4,null,"TE"]
["Landskapsbilde",null,5]
["Luftforurensing"]
["Materialvalg og avfallshåndtering"]
["Naturmangfold"]
["Naturressurser"]
["Støy og vibrasjoner"]
["Andre forhold/generelt fagtemaer"]

{"sheet":"Innspill MiljøRisken","index":25,"n_rows":4,"n_cols":10,"rows_kept":4,"cut":false,"hidden":true,"merged":[]}
[]
[]
["Arkfane","Rad","Innspill fra","Dato","Innspill ","Merknad","Dato","Navn","Endring","Dato"]
["Vanlig samsvarsforpliktelser",33,"Ola Rosing Eide","2022-09-30","Denne teksten kunne med fordel vært kuttet ned og kun vist til det som er relevant for veg, punkt A.","Avventer endring. Antar at punkt B og C kan være relevant i noen tilfeller der det gjennomføres habitatforbedring i vassdrag som en et avbøtenderestaurerende tiltak","2022-10-03","Frode Nordang Bye"]

{"sheet":"Data1","index":26,"n_rows":37,"n_cols":6,"rows_kept":37,"cut":false,"hidden":true,"merged":[]}
["Forurensning av jord og vann",null,1,null,"BH","Anleggsveger"]
["Friluftsliv/ by- og bygdeliv",null,2,null,"PK","Annet veg- og gateutstyr"]
["Andre forhold/generelt fagtemaer",null,3,null,"EN","Avlastet veg"]
["Klimagassutslipp",null,4,null,"TE","Belysning"]
["Kulturarv",null,5,null,null,"Byggetid"]
["Landskapsbilde",null,null,null,null,"Elver og bekker"]
["Luftforurensing",null,null,null,null,"Fartsdempende tiltak (fartshump/dump)"]
["Materialvalg og avfallshåndtering",null,null,null,null,"Fjellskjæringer"]
["Naturmangfold",null,null,null,null,"Forstøtninger (murer o.l.)"]
["Naturressurser",null,null,null,null,"Fyllinger"]
["Støy og vibrasjoner",null,null,null,null,"Gjenbruk av asfalt"]
["Energiforbruk",null,null,null,null,"Grøfter, parallelle g/s-veger og adkomstveger"]
[null,null,null,null,null,"Jordskjæringer"]
[null,null,null,null,null,"Kontrollplasser, vedlikeholdslommer, busslommer"]
[null,null,null,null,null,"Kontrollplasser, vedlikeholdslommer, busslommer"]
[null,null,null,null,null,"Kryss"]
[null,null,null,null,null,"Kryssinger"]
[null,null,null,null,null,"Massedeponi"]
[null,null,null,null,null,"Opplagsplass for snø"]
[null,null,null,null,null,"Overgangsbruer og kulverter"]
[null,null,null,null,null,"Rasteplasser"]
[null,null,null,null,null,"Rekkverk og kantstein"]
[null,null,null,null,null,"Renseløsning (sedimentasjonsbasseng, tekniske renseløsninger, bortledning)"]
[null,null,null,null,null,"Rigg- og anleggsområde"]
[null,null,null,null,null,"Sedimentasjons- og fordrøyningsbasseng"]
[null,null,null,null,null,"Skilt"]
[null,null,null,null,null,"Støyskjerming (skjerm og voll)"]
[null,null,null,null,null,"Underganger og kulverter"]
[null,null,null,null,null,"Vann og strandsone"]
[null,null,null,null,null,"Veg- og gatebelegning"]
[null,null,null,null,null,"Vegbruer (inkl fyllinger i vann)"]
[null,null,null,null,null,"Vegetasjon: Eksisterende og ny"]
[null,null,null,null,null,"Veglinje generelt"]
[null,null,null,null,null,"Veglinjens lokalisering i landskapet"]
[null,null,null,null,null,"Vegoppmerking, rumlefelt etc (lydgivende)"]
[null,null,null,null,null,"Vegtunnel"]
[null,null,null,null,null,"Viltgjerder og andre gjerder"]